{"text_format":"1","workbook":"xlsx","n_sheets":4,"sheets":["AJUNTAMENT","PAME","PMC","PMO"],"not_rendered":{"charts":0,"images":0,"macros":0,"external_links":0,"defined_names":8,"comments":0,"pivot_tables":0},"unopened":[],"bounds":{"document_bytes":16777216,"sheet_cells":100000,"rows_first":2000,"rows_last":500,"rows_between":2000,"halvings":0,"cell_chars":16384,"cell_head_chars":4096},"cells_cut":0,"cells_raw":0,"read":"whole","date_system":"1900"}

{"sheet":"AJUNTAMENT","index":0,"n_rows":1597,"n_cols":7,"rows_kept":1597,"cut":false,"hidden":false,"merged":[]}
["Descripció del bé","Data adquisició","Valoració","Millores","Total","Família","Ubicació"]
["PARC DELS MESTRES - C/ DEL PADRÓ NÚM 63 - N. URBÀ","1943-09-24",19782.4725,1027.01,{"$f":"SUM(C2,D2)","v":20809.482499999998},"111 - PARCS I JARDINS","MUNICIPI"]
["PARC RIZAL - C/ RIZAL S/N - NUCLI URBÀ","1981-06-09",82592.25,18554.009999999998,{"$f":"SUM(C3,D3)","v":101146.26},"111 - PARCS I JARDINS","MUNICIPI"]
["PARC PRIMER DE MAIG - C/ TAMARIT 89 - NUCLI URBÀ","1980-01-15",168022.5,1568195.0500000005,1736217.5500000005,"111 - PARCS I JARDINS","MUNICIPI"]
["PARC Mª LLUÏSA GALOBART - C/ PADRÓ Nº16 - N. URBÀ","1977-02-02",173763,1027.01,174790.01,"111 - PARCS I JARDINS","MUNICIPI"]
["PARC Mª REGORDOSA - CRTA. BARCELONA / TARRAGONA","1975-10-15",193403.25,1027.01,194430.26,"111 - PARCS I JARDINS","MUNICIPI"]
["PARC MASSOT - CRTA. BARCELONA - C/ BARCELONA","1975-10-15",439599.75,1027.01,440626.76,"111 - PARCS I JARDINS","MUNICIPI"]
["PARC GAUDÍ O DEL CEMENTIRI - NUCLI URBÀ","1977-09-07",85591.5,1027.01,86618.51,"111 - PARCS I JARDINS","MUNICIPI"]
["PARC CAN CALVET - CRTA. SANTIGA S/N - NUCLI URBÀ","1987-11-12",76497,1027.01,77524.009999999995,"111 - PARCS I JARDINS","MUNICIPI"]
["PARC RIZAL INTERIOR - PASSEIG MONTURIOL - N. URBÀ","1992-01-01",56308.5,1027.01,57335.51,"111 - PARCS I JARDINS","MUNICIPI"]
["PARC DE LES MORERES - C/ S.JOSEP S/N -P. MOLÍ RATA","1979-03-21",92905.155000000013,1027.01,93932.165000000008,"111 - PARCS I JARDINS","MUNICIPI"]
["ZONA VERDA - PARCEL·LA Nº1 - P.P. BARICENTRO","1980-12-31",95427.75,1027.01,96454.76,"111 - PARCS I JARDINS","MUNICIPI"]
["ZONA VERDA - PARCEL·LA Nº2 - P.P. BARICENTRO","1980-12-31",258258,1027.01,259285.01,"111 - PARCS I JARDINS","MUNICIPI"]
["ZONA VERDA - PARCEL·LA Nº3 - P.P. BARICENTRO","1980-12-31",4735902.5025000004,1027.01,4736929.5125000002,"111 - PARCS I JARDINS","MUNICIPI"]
["PARC MOLÍ DE VENT -  NUCLI URBÀ","1986-05-14",117196.5,1027.01,118223.51,"111 - PARCS I JARDINS","MUNICIPI"]
["Z. VERDA PINETONS - POL 3 PARC 3 - PINETONS BAIXA","1993-03-01",413670.75,1027.01,414697.76,"111 - PARCS I JARDINS","MUNICIPI"]
["PARC NORBERT FUSTÉ - P. GASSÓ VARGAS","1992-07-23",198337.5,57409.36,255746.86,"111 - PARCS I JARDINS","MUNICIPI"]
["PARC ELS PINETONS - ADQUISICIÓ PRÈVIA P. PARCIAL","1991-06-28",7312004.4450000003,1027.01,7313031.4550000001,"111 - PARCS I JARDINS","MUNICIPI"]
["ZONA VERDA - C/ TARRAGONA - CAN MASACHS","1993-05-06",29670,1027.01,30697.01,"111 - PARCS I JARDINS","MUNICIPI"]
["PARC RIU RIPOLL - C/ ESTACIÓ - CAN MASACHS","1996-04-18",664575.75,4394.7,668970.44999999995,"111 - PARCS I JARDINS","MUNICIPI"]
["Z. VERDA FONT PETRICÓ - C/ ST. SEBASTIÀ -CAN TIANA","1995-02-10",177052.5,1027.01,178079.51,"111 - PARCS I JARDINS","MUNICIPI"]
["PARC FERRAN FERRÉ - C/ BALMES - NUCLI URBÀ","1995-12-13",125517,1027.01,126544.01,"111 - PARCS I JARDINS","MUNICIPI"]
["ZONA VERDA - C/ PADRÓ - P. II GASSÓ-VARGAS","1992-07-23",108940.5,1027.01,109967.51,"111 - PARCS I JARDINS","MUNICIPI"]
["Z. VERDA P.P. PINETONS VP-1","1998-10-30",43882.897499999999,1027.01,44909.907500000001,"111 - PARCS I JARDINS","MUNICIPI"]
["Z. VERDA P.P. PINETONS VP-2 -AV.CATALUNYA 9-11","1998-10-30",1010510.535,1027.01,1011537.545,"111 - PARCS I JARDINS","MUNICIPI"]
["Z. VERDA P.P. PINETONS VP-3 AV CATALUNYA 10","1998-10-30",500907,1027.01,501934.01,"111 - PARCS I JARDINS","MUNICIPI"]
["Z. VERDA P.P. PINETONS VP-4","1998-10-30",282283.92749999999,1027.01,283310.9375,"111 - PARCS I JARDINS","MUNICIPI"]
["Z. VERDA P.P. PINETONS VP-7","1998-10-30",324421.45500000002,1027.01,325448.46500000003,"111 - PARCS I JARDINS","MUNICIPI"]
["Z. VERDA P.P. PINETONS VP-8","1998-10-30",83092.77,1027.01,84119.78,"111 - PARCS I JARDINS","MUNICIPI"]
["Z. VERDA P.P. PINETONS VP-9","1998-10-30",55337.775000000001,1027.01,56364.785000000003,"111 - PARCS I JARDINS","MUNICIPI"]
["Z. VERDA P.P. PINETONS VP-10 ","1998-10-30",1166742.1125,1027.01,1167769.1225000001,"111 - PARCS I JARDINS","MUNICIPI"]
["Z. VERDA P.P. PINETONS VP-11 - AV. CATALUNYA 40","1998-10-30",743968.79999999993,1027.01,744995.80999999994,"111 - PARCS I JARDINS","MUNICIPI"]
["Z. VERDA P.P. PINETONS VP-12 - RB VINYES 6","1998-10-30",116325.75,1027.01,117352.76,"111 - PARCS I JARDINS","MUNICIPI"]
["Z. VERDA P.P. PINETONS VP-13 - RB PINETONS 47 BIS","1992-01-01",57442.087500000001,1027.01,58469.097500000003,"111 - PARCS I JARDINS","MUNICIPI"]
["ZONA VERDA - C/ PEDRAFORCA - P. MOLÍ D'EN RATA","2000-07-26",92075.878499999992,1027.01,93102.888499999986,"111 - PARCS I JARDINS","MUNICIPI"]
["PARC DOLORES IBARRURI - P. GASSÓ-VARGAS II","1992-07-23",170151,1027.01,171178.01,"111 - PARCS I JARDINS","MUNICIPI"]
["ZONA VERDA - PISOS EDIGSA - P. MOLÍ D'EN RATA","1992-01-01",1,1027.01,1028.01,"111 - PARCS I JARDINS","MUNICIPI"]
["Z. VERDA P.E.M.U. M. D'EN RATA UZ0301","1999-12-23",184179.75,1027.01,185206.76,"111 - PARCS I JARDINS","MUNICIPI"]
["Z. VERDA P.E.M.U. M. D'EN RATA UZ0302","1999-12-23",1870.5,1027.01,2897.51,"111 - PARCS I JARDINS","MUNICIPI"]
["Z. VERDA P.E.M.U. M. D'EN RATA UZ0303","1999-12-23",212688.75,1027.01,213715.76,"111 - PARCS I JARDINS","MUNICIPI"]
["Z. VERDA P.E.M.U. M. D'EN RATA UZ0304","1999-12-23",25767.75,1027.01,26794.76,"111 - PARCS I JARDINS","MUNICIPI"]
["Z. VERDA P.E.M.U. M. D'EN RATA UZ0306","1999-12-23",19156.5,1027.01,20183.509999999998,"111 - PARCS I JARDINS","MUNICIPI"]
["Z. VERDA P.P. PINETONS VP-6","2006-02-01",114423,1027.01,115450.01,"111 - PARCS I JARDINS","MUNICIPI"]
["PARC ANSELM CLAVÉ - NUCLI URBÀ","1992-01-01",53412.450000000004,12709.710000000001,66122.16,"111 - PARCS I JARDINS","MUNICIPI"]
["Z.VERDA P.II P.P GASSÓ VARGAS (P-13)","1996-04-30",172440.75,1027.01,173467.76,"111 - PARCS I JARDINS","MUNICIPI"]
["Z.VERDA P.II P.P GASSÓ VARGAS (P-14)","1996-04-30",51180.75,1027.01,52207.76,"111 - PARCS I JARDINS","MUNICIPI"]
["Z.VERDA P.II P.P GASSÓ VARGAS (P-15)","1996-04-30",64242,1027.01,65269.01,"111 - PARCS I JARDINS","MUNICIPI"]
["Z.VERDA P.II P.P GASSÓ VARGAS (P-16)","1996-04-30",8675.25,1027.01,9702.26,"111 - PARCS I JARDINS","MUNICIPI"]
["Z.VERDA P.II P.P GASSÓ VARGAS (P-17)","1996-04-30",6643.5,1027.01,7670.51,"111 - PARCS I JARDINS","MUNICIPI"]
["Z.VERDA P.II P.P GASSÓ VARGAS (P-18)","1996-04-30",12287.25,1027.01,13314.26,"111 - PARCS I JARDINS","MUNICIPI"]
["Z.VERDA P.II P.P GASSÓ VARGAS (P-19)","1996-04-30",40473.75,1027.01,41500.76,"111 - PARCS I JARDINS","MUNICIPI"]
["Z.VERDA P.II P.P GASSÓ VARGAS (P-20)","1996-04-30",2838,1027.01,3865.01,"111 - PARCS I JARDINS","MUNICIPI"]
["Z.VERDA P.II P.P GASSÓ VARGAS (P-21)","1996-04-30",7062.75,1027.01,8089.76,"111 - PARCS I JARDINS","MUNICIPI"]
["Z.VERDA P.II P.P GASSÓ VARGAS (P-22)","1996-04-30",11416.5,1027.01,12443.51,"111 - PARCS I JARDINS","MUNICIPI"]
["PARC GASSÓ VARGAS - P.P. GASSÓ-VARGAS","1992-05-28",1704799.5,28218.87,1733018.37,"111 - PARCS I JARDINS","MUNICIPI"]
["ZONA VERDA FINCA IV- POLÍGON LA FERRERIA","2003-06-20",1317380.25,1027.01,1318407.26,"111 - PARCS I JARDINS","MUNICIPI"]
["ZONA VERDA FINCA V- POLÍGON LA FERRERIA","2003-04-16",737460.75,1027.01,738487.76,"111 - PARCS I JARDINS","MUNICIPI"]
["ZONA VERDA - RBLA VINYES (VEPU 1) - TORRENT II","1993-05-10",118624.2075,1027.01,119651.2175,"111 - PARCS I JARDINS","MUNICIPI"]
["PARC ORIOL MARTORELL (VEPU 2) - TORRENT II","1993-05-10",550105.34249999991,1546.9299999999998,551652.27249999996,"111 - PARCS I JARDINS","MUNICIPI"]
["Z. VERDA - P. PABLO PICASSO UA-5 (B-1) - CAN TIANA","2000-01-25",28497.39,1027.01,29524.399999999998,"111 - PARCS I JARDINS","MUNICIPI"]
["Z. VERDA - P. PABLO PICASSO UA-5 (B-2) - CAN TIANA","2000-01-25",10606.702499999999,1027.01,11633.7125,"111 - PARCS I JARDINS","MUNICIPI"]
["ZONA VERDA ZV4 - P. JARDINS S. ROSA UA3 - C. TIANA","1998-07-08",18740.1525,1027.01,19767.162499999999,"111 - PARCS I JARDINS","MUNICIPI"]
["ZONA VERDA ZV3 - P. JARDINS S. ROSA UA3 - C. TIANA","2006-12-14",34681.65,1027.01,35708.660000000003,"111 - PARCS I JARDINS","MUNICIPI"]
["ZONA VERDA ZV1 - P. JARDINS S. ROSA UA3 - C. TIANA","1998-07-08",77741.527500000011,1027.01,78768.537500000006,"111 - PARCS I JARDINS","MUNICIPI"]
["ZONA VERDA ZV2 - P. JARDINS S. ROSA UA3 - C. TIANA","1998-07-08",57648.165000000001,1027.01,58675.175000000003,"111 - PARCS I JARDINS","MUNICIPI"]
["ZONA VERDA - P.E.R.I. CAN BALLBE UA-2 - CAN TIANA","2000-02-23",101974.5,1027.01,103001.51,"111 - PARCS I JARDINS","MUNICIPI"]
["ZONA VERDA (ZV3) - PLA PARCIAL \"EL MARTINET\"","2005-09-13",143389.94999999998,1027.01,{"$f":"SUM(C67,D67)","v":144416.95999999999},"111 - PARCS I JARDINS","MUNICIPI"]
["ZONA VERDA (ZV4) - PLA PARCIAL \"EL MARTINET\"","2005-09-13",310077.3,1027.01,311104.31,"111 - PARCS I JARDINS","MUNICIPI"]
["ZONA VERDA (ZV5) - PLA PARCIAL \"EL MARTINET\"","2005-09-13",61133.1,1027.01,62160.11,"111 - PARCS I JARDINS","MUNICIPI"]
["ZONA VERDA (ZV6) - PLA PARCIAL \"EL MARTINET\"","2005-09-13",160198.65,136630.04,296828.69,"111 - PARCS I JARDINS","MUNICIPI"]
["PASSATGE DE L'AJUNTAMENT - NUCLI URBÀ","1998-01-01",1,19257.64,19258.64,"113 - PLACES I VIALS","MUNICIPI"]
["CARRER ÀNGEL GUIMERÀ - NUCLI URBÀ","1998-01-01",1,19257.64,19258.64,"113 - PLACES I VIALS","MUNICIPI"]
["CARRER ÀNSELM CLAVÉ - NUCLI URBÀ","1998-01-01",1,146668.10000000003,146669.10000000003,"113 - PLACES I VIALS","MUNICIPI"]
["PTGE. ANTONIO MACHADO - NUCLI URBÀ","1998-01-01",1,19257.64,19258.64,"113 - PLACES I VIALS","MUNICIPI"]
["PLAÇA AVRILLÉ - ELS PINETONS","1998-01-01",1,187541.03000000003,187542.03000000003,"113 - PLACES I VIALS","MUNICIPI"]
["CARRER BALMES - NUCLI URBÀ","1998-01-01",1,650244.95000000007,650245.95000000007,"113 - PLACES I VIALS","MUNICIPI"]
["CARRER BARBERÀ DEL VALLÈS - ELS PINETONS","1998-01-01",1,19257.64,19258.64,"113 - PLACES I VIALS","MUNICIPI"]
["CARRER BERGUEDÀ - NUCLI URBÀ","1998-01-01",1,19257.64,19258.64,"113 - PLACES I VIALS","MUNICIPI"]
["CARRER BESÓS - POLÍGON CADESBANK","1998-01-01",1,19257.64,19258.64,"113 - PLACES I VIALS","MUNICIPI"]
["CARRER BILBAO - POLÍGON CADESBANK","1998-01-01",1,19257.64,19258.64,"113 - PLACES I VIALS","MUNICIPI"]
["CARRER BLASCO IBÁÑEZ - POLÍGON LA SIBÈRIA","1998-01-01",1,19257.64,19258.64,"113 - PLACES I VIALS","MUNICIPI"]
["CARRER DE LA BONAVISTA - CAN TIANA","1998-01-01",1,19257.64,19258.64,"113 - PLACES I VIALS","MUNICIPI"]
["CARRER CALVARI - NUCLI URBÀ","1998-01-01",1,19257.64,19258.64,"113 - PLACES I VIALS","MUNICIPI"]
["CARRER CAN MASACHS - NUCLI URBÀ","1998-01-01",1,86083.42,86084.42,"113 - PLACES I VIALS","MUNICIPI"]
["CARRER CANIGÓ - NUCLI URBÀ","1998-01-01",1,19257.64,19258.64,"113 - PLACES I VIALS","MUNICIPI"]
["CARRER CASANOVAS - NUCLI URBÀ","1998-01-01",1,19257.64,19258.64,"113 - PLACES I VIALS","MUNICIPI"]
["AVINGUDA DE CATALUNYA - ELS PINETONS","1998-01-01",1,56787.19,56788.19,"113 - PLACES I VIALS","MUNICIPI"]
["PASSATGE DEL CELLER - NUCLI URBÀ","1998-01-01",1,19257.64,19258.64,"113 - PLACES I VIALS","MUNICIPI"]
["PASSATGE DELS CEPS - NUCLI URBÀ","1998-01-01",1,19257.64,19258.64,"113 - PLACES I VIALS","MUNICIPI"]
["CARRER DE LA CERANOVA - NUCLI URBÀ","1998-01-01",1,19257.64,19258.64,"113 - PLACES I VIALS","MUNICIPI"]
["CARRER  CERDANYOLA DEL VALLÈS - ELS PINETONS","1998-01-01",1,19257.64,19258.64,"113 - PLACES I VIALS","MUNICIPI"]
["CARRER  CERVANTES - NUCLI URBÀ","1998-01-01",1,19257.64,19258.64,"113 - PLACES I VIALS","MUNICIPI"]
["CARRER CLOS - CAN TIANA","1998-01-01",1,19257.64,19258.64,"113 - PLACES I VIALS","MUNICIPI"]
["PLAÇA D'EN CLOS - NUCLI URBÀ","1998-01-01",1,19257.64,19258.64,"113 - PLACES I VIALS","MUNICIPI"]
["CARRER COLLSEROLA - ELS PINETONS","1998-01-01",1,19257.64,19258.64,"113 - PLACES I VIALS","MUNICIPI"]
["PLAÇA DE LA CONSTITUCIÓ - NUCLI URBÀ","1998-01-01",1,19257.64,19258.64,"113 - PLACES I VIALS","MUNICIPI"]
["CARRER COT - POLÍGON CADESBANK","1998-01-01",1,26257.64,26258.639999999999,"113 - PLACES I VIALS","MUNICIPI"]
["PASSATGE COT - NUCLI URBÀ","1998-01-01",1,19257.64,19258.64,"113 - PLACES I VIALS","MUNICIPI"]
["CARRER COVADONGA - NUCLI URBÀ","1998-01-01",1,19257.64,19258.64,"113 - PLACES I VIALS","MUNICIPI"]
["CARRER DOCTOR BERGÓS - NUCLI URBÀ","1998-01-01",1,19257.64,19258.64,"113 - PLACES I VIALS","MUNICIPI"]
["CARRER DOCTOR FIGAROLA - NUCLI URBÀ","1998-01-01",1,19257.64,19258.64,"113 - PLACES I VIALS","MUNICIPI"]
["CARRER DOCTOR GIL - CAN TIANA","1998-01-01",1,19257.64,19258.64,"113 - PLACES I VIALS","MUNICIPI"]
["CARRER DOCTOR ZAMENHOFF - NUCLI URBÀ","1998-01-01",1,19257.64,19258.64,"113 - PLACES I VIALS","MUNICIPI"]
["CARRER DUC DE TETUAN - NUCLI URBÀ","1998-01-01",1,19257.64,19258.64,"113 - PLACES I VIALS","MUNICIPI"]
["PASSATGE DUC DE TETUAN - NUCLI URBÀ","1998-01-01",1,19257.64,19258.64,"113 - PLACES I VIALS","MUNICIPI"]
["CARRER DE L'ERA - ELS PINETONS","1998-01-01",1,19257.64,19258.64,"113 - PLACES I VIALS","MUNICIPI"]
["CARRER DE LES ESCOLES - NUCLI URBÀ","1998-01-01",1,19257.64,19258.64,"113 - PLACES I VIALS","MUNICIPI"]
["CARRETERA DE L'ESTACIÓ - NUCLI URBÀ","1998-01-01",1,26180.51,26181.51,"113 - PLACES I VIALS","MUNICIPI"]
["CARRER DE L'ESTRELLA - NUCLI URBÀ","1998-01-01",1,19257.64,19258.64,"113 - PLACES I VIALS","MUNICIPI"]
["CARRER FEDERICO GARCÍA LORCA - NUCLI URBÀ","1998-01-01",1,19257.64,19258.64,"113 - PLACES I VIALS","MUNICIPI"]
["CARRER FERRAN EL CATÒLIC - NUCLI URBÀ","1998-01-01",1,19257.64,19258.64,"113 - PLACES I VIALS","MUNICIPI"]
["PLAÇA DE LA FONT - NUCLI URBÀ","1998-01-01",1,19257.64,19258.64,"113 - PLACES I VIALS","MUNICIPI"]
["CARRER FONT DE LA MINA - POLÍGON ELS PINETONS","1998-01-01",1,19257.64,19258.64,"113 - PLACES I VIALS","MUNICIPI"]
["CARRER FONTANELLA - NUCLI URBÀ","1998-01-01",1,19257.64,19258.64,"113 - PLACES I VIALS","MUNICIPI"]
["CARRER GENERAL PRIM - NUCLI URBÀ","1998-01-01",1,19257.64,19258.64,"113 - PLACES I VIALS","MUNICIPI"]
["CARRER GIRONA - NUCLI URBÀ","1998-01-01",1,19257.64,19258.64,"113 - PLACES I VIALS","MUNICIPI"]
["CARRER INDÚSTRIA - POLÍGON CADESBANK","1998-01-01",1,19257.64,19258.64,"113 - PLACES I VIALS","MUNICIPI"]
["CARRER ISABEL LA CATÒLICA - NUCLI URBÀ","1998-01-01",1,38295.72,38296.720000000001,"113 - PLACES I VIALS","MUNICIPI"]
["CARRER JACINT VERDAGUER - NUCLI URBÀ","1998-01-01",1,19257.64,19258.64,"113 - PLACES I VIALS","MUNICIPI"]
["CARRER JAUME I - POLÍGON CADESBANK","1998-01-01",1,19257.64,19258.64,"113 - PLACES I VIALS","MUNICIPI"]
["CARRER JOAN MIRÓ - NUCLI URBÀ","1998-01-01",1,19257.64,19258.64,"113 - PLACES I VIALS","MUNICIPI"]
["CARRER JOSEP DE VIURE - NUCLI URBÀ","1998-01-01",1,19257.64,19258.64,"113 - PLACES I VIALS","MUNICIPI"]
["PLAÇA JOSEP MARIA BRULL - ELS PINETONS","1998-01-01",1,19257.64,19258.64,"113 - PLACES I VIALS","MUNICIPI"]
["CARRER LA PALMA - NUCLI URBÀ","1998-01-01",1,19257.64,19258.64,"113 - PLACES I VIALS","MUNICIPI"]
["CARRER LEPANT - CAN TIANA","1998-01-01",1,19257.64,19258.64,"113 - PLACES I VIALS","MUNICIPI"]
["CARRER LLOBREGAT - POLÍGON CADESBANK","1998-01-01",1,19257.64,19258.64,"113 - PLACES I VIALS","MUNICIPI"]
["PLAÇA LLUÍS MILLET - ELS PINETONS","1998-01-01",1,19257.64,19258.64,"113 - PLACES I VIALS","MUNICIPI"]
["CARRER LLUNA - NUCLI URBÀ","1998-01-01",1,19257.64,19258.64,"113 - PLACES I VIALS","MUNICIPI"]
["CARRER MAGALLANES - NUCLI URBÀ","1998-01-01",1,281641.32000000007,281642.32000000007,"113 - PLACES I VIALS","MUNICIPI"]
["CARRER MANCOMUNITAT - CAN TIANA","1998-01-01",1,19257.64,19258.64,"113 - PLACES I VIALS","MUNICIPI"]
["CARRER MARAGALL - NUCLI URBÀ","1998-01-01",1,373774.94,{"$f":"SUM(C131,D131)","v":373775.94},"113 - PLACES I VIALS","MUNICIPI"]
["PLAÇA MARIA AURÈLIA CAMPMANY - ELS PINETONS","1998-01-01",1,19257.64,19258.64,"113 - PLACES I VIALS","MUNICIPI"]
["AVINGUDA MARIA TORRAS - ELS PINETONS","1998-01-01",1,141099.29,141100.29,"113 - PLACES I VIALS","MUNICIPI"]
["PASSATGE MASSOT - CAN TIANA","1998-01-01",1,19257.64,19258.64,"113 - PLACES I VIALS","MUNICIPI"]
["AVINGUDA DEL MEDITERRANI - ELS PINETONS","1998-01-01",1,174513.37000000002,174514.37000000002,"113 - PLACES I VIALS","MUNICIPI"]
["CARRER MERCÈ - POLÍGON CAN MAS","1998-01-01",1,68954.03,68955.03,"113 - PLACES I VIALS","MUNICIPI"]
["CARRER METAL·LÚRGIA - POLÍGON CAN MAS","1998-01-01",1,19257.64,19258.64,"113 - PLACES I VIALS","MUNICIPI"]
["CARRER MILÀ - POLÍGON CADESBANK","1998-01-01",1,29987.18,29988.18,"113 - PLACES I VIALS","MUNICIPI"]
["CARRER MOLÍ - POLÍGON CADESBANK","1998-01-01",1,19257.64,19258.64,"113 - PLACES I VIALS","MUNICIPI"]
["CARRER MOLÍ D'EN GINESTAR - NUCLI URBÀ","1998-01-01",1,19257.64,19258.64,"113 - PLACES I VIALS","MUNICIPI"]
["CARRER MOLÍ D'EN RATA - NUCLI URBÀ","1998-01-01",1,139096.33000000002,139097.33000000002,"113 - PLACES I VIALS","MUNICIPI"]
["CARRER MOLÍ D'EN XEC - POLÍGON CAN BERNEDA","1998-01-01",1,19257.64,19258.64,"113 - PLACES I VIALS","MUNICIPI"]
["CARRER MONTCADA - NUCLI URBÀ","1998-01-01",1,19257.64,19258.64,"113 - PLACES I VIALS","MUNICIPI"]
["CARRER MONTSENY - NUCLI URBÀ","1998-01-01",1,19257.64,19258.64,"113 - PLACES I VIALS","MUNICIPI"]
["CARRER MONTURIOL - NUCLI URBÀ","1998-01-01",1,19257.64,19258.64,"113 - PLACES I VIALS","MUNICIPI"]
["CARRER MORERES - NUCLI URBÀ","1998-01-01",1,19257.64,19258.64,"113 - PLACES I VIALS","MUNICIPI"]
["PASSATGE MORERES - NUCLI URBÀ","1998-01-01",1,19257.64,19258.64,"113 - PLACES I VIALS","MUNICIPI"]
["PASSATGE NÍQUEL - POLÍGON CADESBANK","1998-01-01",1,19257.64,19258.64,"113 - PLACES I VIALS","MUNICIPI"]
["CARRER DEL NORD - NUCLI URBÀ","1998-01-01",1,54011.94,54012.94,"113 - PLACES I VIALS","MUNICIPI"]
["CARRER NOSTRA SENYORA DEL PILAR - CAN TIANA","1998-01-01",1,48467.24,48468.24,"113 - PLACES I VIALS","MUNICIPI"]
["CARRER NOSTRA SENYORA DELS ÀNGELS - CAN TIANA","1998-01-01",1,19257.64,19258.64,"113 - PLACES I VIALS","MUNICIPI"]
["CARRER NOU - NUCLI URBÀ","1998-01-01",1,70697.599999999991,70698.599999999991,"113 - PLACES I VIALS","MUNICIPI"]
["PLAÇA ONZE DE SETEMBRE - NUCLI URBÀ","1998-01-01",1,215572.1,215573.1,"113 - PLACES I VIALS","MUNICIPI"]
["CARRER PABLO PICASSO - CAN TIANA","1998-01-01",1,19257.64,19258.64,"113 - PLACES I VIALS","MUNICIPI"]
["CARRER PADRÓ - NUCLI URBÀ","1998-01-01",1,127478.67,127479.67,"113 - PLACES I VIALS","MUNICIPI"]
["CARRER PALAU AUSIT - NUCLI URBÀ","1998-01-01",1,19257.64,19258.64,"113 - PLACES I VIALS","MUNICIPI"]
["PLAÇA PALAU AUSIT - NUCLI URBÀ","1998-01-01",1,19257.64,19258.64,"113 - PLACES I VIALS","MUNICIPI"]
["CARRER PARC - POLÍGON ELS PINETONS","1998-01-01",1,19257.64,19258.64,"113 - PLACES I VIALS","MUNICIPI"]
["CARRER PAU CASALS - NUCLI URBÀ","1998-01-01",1,59956.31,59957.31,"113 - PLACES I VIALS","MUNICIPI"]
["CARRER PEDRAFORCA - NUCLI URBÀ","1998-01-01",1,19257.64,19258.64,"113 - PLACES I VIALS","MUNICIPI"]
["RAMBLA DELS PINETONS - ELS PINETONS","1998-01-01",1,236206.07,236207.07,"113 - PLACES I VIALS","MUNICIPI"]
["CARRER PIZARRO - ELS PINETONS","1998-01-01",1,837791.60999999987,837792.60999999987,"113 - PLACES I VIALS","MUNICIPI"]
["CARRER POLLANCRES - POLÍGON CAN MAS","1998-01-01",1,19257.64,19258.64,"113 - PLACES I VIALS","MUNICIPI"]
["CARRER PUIGMAL - ELS PINETONS","1998-01-01",1,19257.64,19258.64,"113 - PLACES I VIALS","MUNICIPI"]
["PASSATGE QUEVEDO - NUCLI URBÀ","1998-01-01",1,19257.64,19258.64,"113 - PLACES I VIALS","MUNICIPI"]
["CARRER RAFAEL ALBERTI - NUCLI URBÀ","1998-01-01",1,264072.03000000003,264073.03000000003,"113 - PLACES I VIALS","MUNICIPI"]
["CARRER RAMON LLULL - NUCLI URBÀ","1998-01-01",1,19257.64,19258.64,"113 - PLACES I VIALS","MUNICIPI"]
["CARRER RAMON Y CAJAL - NUCLI URBÀ","1998-01-01",1,19257.64,19258.64,"113 - PLACES I VIALS","MUNICIPI"]
["CARRER DEL RIU - POLÍGON CADESBANK","1998-01-01",1,19257.64,19258.64,"113 - PLACES I VIALS","MUNICIPI"]
["AVINGUDA RIU RIPOLL - POLÍGON CADESBANK","1998-01-01",1,911861.08000000007,911862.08000000007,"113 - PLACES I VIALS","MUNICIPI"]
["CARRER RIZAL - NUCLI URBÀ","1998-01-01",1,19257.64,19258.64,"113 - PLACES I VIALS","MUNICIPI"]
["CARRER ROCABRUNA - NUCLI URBÀ","1998-01-01",1,19257.64,19258.64,"113 - PLACES I VIALS","MUNICIPI"]
["CARRER ROSARI - CAN TIANA","1998-01-01",1,19257.64,19258.64,"113 - PLACES I VIALS","MUNICIPI"]
["CARRER SAGRERA - NUCLI URBÀ","1998-01-01",1,19257.64,19258.64,"113 - PLACES I VIALS","MUNICIPI"]
["CARRER SAGUNT - POLÍGON CADESBANK","1998-01-01",1,19257.64,19258.64,"113 - PLACES I VIALS","MUNICIPI"]
["CARRER SALUT - NUCLI URBÀ","1998-01-01",1,19257.64,19258.64,"113 - PLACES I VIALS","MUNICIPI"]
["CARRER SALVADOR ESPRIU - NUCLI URBÀ","1998-01-01",1,19257.64,19258.64,"113 - PLACES I VIALS","MUNICIPI"]
["CARRER SANT ANDREU - NUCLI URBÀ","1998-01-01",1,231921.46000000002,231922.46000000002,"113 - PLACES I VIALS","MUNICIPI"]
["RAMBLA SANT ANDREU - NUCLI URBÀ","1998-01-01",1,19257.64,19258.64,"113 - PLACES I VIALS","MUNICIPI"]
["PASSATGE SANT CARLES - NUCLI URBÀ","1998-01-01",1,19257.64,19258.64,"113 - PLACES I VIALS","MUNICIPI"]
["CARRER SANT ENRIC - NUCLI URBÀ","1998-01-01",1,19257.64,19258.64,"113 - PLACES I VIALS","MUNICIPI"]
["PASSATGE SANT ENRIC - NUCLI URBÀ","1998-01-01",1,19257.64,19258.64,"113 - PLACES I VIALS","MUNICIPI"]
["RAMBLA SANT ESTEVE - NUCLI URBÀ","1998-01-01",1,999558.28000000026,999559.28000000026,"113 - PLACES I VIALS","MUNICIPI"]
["CARRER SANT FRANCESC - CAN TIANA","1998-01-01",1,596971.39,596972.39,"113 - PLACES I VIALS","MUNICIPI"]
["CARRER SANT JAUME - NUCLI URBÀ","1998-01-01",1,20069.64,20070.64,"113 - PLACES I VIALS","MUNICIPI"]
["CARRER SANT JOAN - NUCLI URBÀ","1998-01-01",1,19257.64,19258.64,"113 - PLACES I VIALS","MUNICIPI"]
["RAMBLA SANT JORDI - NUCLI URBÀ","1998-01-01",1,2462175.8000000003,2462176.8000000003,"113 - PLACES I VIALS","MUNICIPI"]
["CARRER SANT JOSEP - ELS PINETONS","1998-01-01",1,73710.84,73711.839999999997,"113 - PLACES I VIALS","MUNICIPI"]
["CARRER SANT LLUÍS - NUCLI URBÀ","1998-01-01",1,19257.64,19258.64,"113 - PLACES I VIALS","MUNICIPI"]
["CARRER SANT PERE - POLÍGON LA SIBÈRIA","1998-01-01",1,19257.64,19258.64,"113 - PLACES I VIALS","MUNICIPI"]
["CARRER SANT POL - POLÍGON CAN MAS","1998-01-01",1,19257.64,19258.64,"113 - PLACES I VIALS","MUNICIPI"]
["CARRER SANT SALVADOR - NUCLI URBÀ","1998-01-01",1,109096.33,109097.33,"113 - PLACES I VIALS","MUNICIPI"]
["CARRER SEBASTIÀ - CAN TIANA","1998-01-01",1,19257.64,19258.64,"113 - PLACES I VIALS","MUNICIPI"]
["CARRER SANTA ROSA - CAN TIANA","1998-01-01",1,19257.64,19258.64,"113 - PLACES I VIALS","MUNICIPI"]
["CARRER SARRIÀ DE TER - NUCLI URBÀ","1998-01-01",1,132111.52000000002,{"$f":"SUM(C195,D195)","v":132112.52000000002},"113 - PLACES I VIALS","MUNICIPI"]
["CARRER SEGRE - POLÍGON CADESBANK","1998-01-01",1,19257.64,19258.64,"113 - PLACES I VIALS","MUNICIPI"]
["CARRER SERRA DE LA SALUT - NUCLI URBÀ","1998-01-01",1,21630.129999999997,21631.129999999997,"113 - PLACES I VIALS","MUNICIPI"]
["CARRER SOL - NUCLI URBÀ","1998-01-01",1,53722.95,53723.95,"113 - PLACES I VIALS","MUNICIPI"]
["CARRER TAMARIT - POLÍGON CAN MAS","1998-01-01",1,23145.079999999998,23146.079999999998,"113 - PLACES I VIALS","MUNICIPI"]
["CARRER TARRAGONA - POLÍGON CAN MASACHS","1998-01-01",1,53055.83,53056.83,"113 - PLACES I VIALS","MUNICIPI"]
["CARRER TIANA - CAN TIANA","1998-01-01",1,19257.64,19258.64,"113 - PLACES I VIALS","MUNICIPI"]
["CARRER TORRENT TORTUGUER - POLÍGON ELS PINETONS","1998-01-01",1,32557.64,32558.639999999999,"113 - PLACES I VIALS","MUNICIPI"]
["CARRER TRAMUNTANA - ELS PINETONS","1998-01-01",1,19257.64,19258.64,"113 - PLACES I VIALS","MUNICIPI"]
["CARRER URALITA - POLÍGON LA SIBÈRIA","1998-01-01",1,19257.64,19258.64,"113 - PLACES I VIALS","MUNICIPI"]
["CARRER VALÈNCIA - POLÍGON CAN MAS","1998-01-01",1,19257.64,19258.64,"113 - PLACES I VIALS","MUNICIPI"]
["CARRER VEREMA - ELS PINETONS","1998-01-01",1,19257.64,19258.64,"113 - PLACES I VIALS","MUNICIPI"]
["CARRER VERGE DE MONTSERRAT - CAN TIANA","1998-01-01",1,26097.14,26098.14,"113 - PLACES I VIALS","MUNICIPI"]
["PLAÇA DELS VINATERS - NUCLI URBÀ","1998-01-01",1,19257.64,19258.64,"113 - PLACES I VIALS","MUNICIPI"]
["RAMBLA DE LES VINYES - ELS PINETONS","1998-01-01",1,19257.64,19258.64,"113 - PLACES I VIALS","MUNICIPI"]
["CARRER X - POLÍGON CAN MAS","1998-01-01",1,19257.64,19258.64,"113 - PLACES I VIALS","MUNICIPI"]
["PLAÇA PERE IV - NUCLI URBÀ","1998-01-01",1,3574599.24,3574600.24,"113 - PLACES I VIALS","MUNICIPI"]
["CAMÍ ACCÉS A POLIESPORTIU MUNICIPAL - NUCLI URBÀ","1985-07-09",1,19257.64,19258.64,"113 - PLACES I VIALS","MUNICIPI"]
["CARRER DELS AFORES - NUCLI URBÀ","1998-01-01",1,19257.64,19258.64,"113 - PLACES I VIALS","MUNICIPI"]
["CARRER CAN ROQUETA - NUCLI UIRBÀ","1998-01-01",1,19257.64,19258.64,"113 - PLACES I VIALS","MUNICIPI"]
["CARRER CONCORDIA - NUCLI URBÀ","1998-01-01",1,19257.64,19258.64,"113 - PLACES I VIALS","MUNICIPI"]
["CARRER DE LA BOBILA - NUCLI URBÀ","1998-01-01",1,19257.64,19258.64,"113 - PLACES I VIALS","MUNICIPI"]
["CARRER CAN BARNEDA - POLÍGON CAN BARNEDA","1998-01-01",1,19257.64,19258.64,"113 - PLACES I VIALS","MUNICIPI"]
["PASSATGE CAN BOTER - NUCLI URBÀ","1998-01-01",1,19257.64,19258.64,"113 - PLACES I VIALS","MUNICIPI"]
["PASSATGE INSTITUT  - NUCLI URBÀ","1998-01-01",1,19257.64,19258.64,"113 - PLACES I VIALS","MUNICIPI"]
["PLAÇA DE L'AJUNTAMENT - NUCLI URBÀ","1998-01-01",1,66203.659999999989,66204.659999999989,"113 - PLACES I VIALS","MUNICIPI"]
["CAMÍ DE LA SERRA - PINETONS","1998-01-01",1,221764.04,221765.04,"113 - PLACES I VIALS","MUNICIPI"]
["CARRER A - EL MARTINET (C/ DEL MARTINET)","2005-09-13",1,19257.64,19258.64,"113 - PLACES I VIALS","MUNICIPI"]
["CARRER B - EL MARTINET","2005-09-13",1,19257.64,19258.64,"113 - PLACES I VIALS","MUNICIPI"]
["CARRER C - EL MARTINET","2005-09-13",1,19257.64,19258.64,"113 - PLACES I VIALS","MUNICIPI"]
["CARRER 2 - EL MARTINET","2005-09-13",1,19257.64,19258.64,"113 - PLACES I VIALS","MUNICIPI"]
["CARRER 3 - EL MARTINET","2005-09-13",1,19257.64,19258.64,"113 - PLACES I VIALS","MUNICIPI"]
["VIAL D'ACCÉS A BARNEDA - MOLÍ D'EN XEC","1998-01-01",1,18604.5,18605.5,"113 - PLACES I VIALS","MUNICIPI"]
["TERRENY DESTINAT A VIAL - FINCA MONTSERRAT /CTRA BARCELONA","2008-01-31",1,104171.75999999998,104172.75999999998,"113 - PLACES I VIALS","MUNICIPI"]
["CARRIL BICI","2008-01-31",1,504692.31,504693.31,"113 - PLACES I VIALS","MUNICIPI"]
["BOSC PINETONS","2008-01-31",1,1027.01,1028.01,"111 - PARCS I JARDINS","MUNICIPI"]
["FINCA ROTONDA","2008-01-31",1,51274.49,51275.49,"113 - PLACES I VIALS","MUNICIPI"]
["SOBRANT VIA PÚBLICA LAS VERBENAS - NUCLI URBÀ","1991-12-31",33742.07,23225.15,56967.22,"121 - INMOBLES (DOMINI PÚBLIC)","MUNICIPI"]
["PROTECCIÓ SISTEMES VI  - POL. LA FERRERIA-REDOSA","2008-04-16",392966.26750000002,0,392966.26750000002,"121 - INMOBLES (DOMINI PÚBLIC)","MUNICIPI"]
["PROTECCIÓ SISTEMES VII - POL. LA FERRERIA-REDOSA","2008-04-16",159768.29880000002,0,159768.29880000002,"121 - INMOBLES (DOMINI PÚBLIC)","MUNICIPI"]
["PROTECCIÓ SISTEMES PS 1 - P. PARCIAL \"EL MARTINET\"","2005-09-13",197064.96299999999,0,197064.96299999999,"121 - INMOBLES (DOMINI PÚBLIC)","MUNICIPI"]
["PROTECCIÓ SISTEMES PS 2 - P. PARCIAL \"EL MARTINET\"","2005-09-13",235630.78,0,235630.78,"121 - INMOBLES (DOMINI PÚBLIC)","MUNICIPI"]
["PROTECCIÓ SISTEMES PS 3 - P. PARCIAL \"EL MARTINET\"","2005-09-13",398011.47199999995,0,398011.47199999995,"121 - INMOBLES (DOMINI PÚBLIC)","MUNICIPI"]
["AJUNTAMENT - C/ BALMES, 2 - CAN MASACHS","1995-10-10",382429.57,181948.26,564377.83000000007,"121 - INMOBLES (DOMINI PÚBLIC)","MUNICIPI"]
["POLICIA LOCAL - CRTA. SANTIGA - 1 - CAN MASACHS","1988-11-04",365647.28,43368.22,409015.5,"121 - INMOBLES (DOMINI PÚBLIC)","MUNICIPI"]
["CEIP ENRIC TATCHÉ - C/ PAU CASALS S/N - NUCLI URBÀ","1975-05-07",2831492.86,325534.58,3157027.44,"121 - INMOBLES (DOMINI PÚBLIC)","MUNICIPI"]
["CEIP FRANCESC ESCURSELL -CRTA. ESTACIÓ S/N - N. U.","1975-05-07",1019462.03,85018.709999999992,1104480.74,"121 - INMOBLES (DOMINI PÚBLIC)","MUNICIPI"]
["CEIP CAN TIANA - C/ VERGE MONTSERRAT 25 - C. TIANA","1988-03-29",1928276.41,26939.59,1955216,"121 - INMOBLES (DOMINI PÚBLIC)","MUNICIPI"]
["TERRENY IES PALAU AUSIT - CRTA. SANTIGA - NUCLI URBÀ","1975-07-21",1326444.0900000001,0,1326444.0900000001,"121 - INMOBLES (DOMINI PÚBLIC)","MUNICIPI"]
["CENTRE OBERT \"LA PLACETA\"- C/ CALVARI 5,7- N. URBÀ","1996-06-12",91100.37,23225.15,114325.51999999999,"121 - INMOBLES (DOMINI PÚBLIC)","MUNICIPI"]
["JUTJAT DE PAU - C/ NOU, 21 - NUCLI URBÀ","1976-09-10",70374.62,0,70374.62,"313 - BÉNS PATRIMONIALS IMMOBLES","MUNICIPI"]
["CEMENTIRI MUNICIPAL - C/ DR. BERGÓS S/N - N. URBÀ","1900-01-02",74946.45,23225.15,98171.6,"121 - INMOBLES (DOMINI PÚBLIC)","MUNICIPI"]
["CEIP GASSÓ I VIDAL - C/ ROCABRUNA, 1 - NUCLI URBÀ","1969-02-21",354878.44,83807.27,438685.71,"121 - INMOBLES (DOMINI PÚBLIC)","MUNICIPI"]
["CEIP JMª GINESTA - C/ PUIGMAL 59 - ELS PINETONS","1973-02-22",2267101.81,280751.65999999997,2547853.4700000002,"121 - INMOBLES (DOMINI PÚBLIC)","MUNICIPI"]
["CEIP ANSELM CLAVÉ - C/ ESCOLES 1, 5 - NUCLI URBÀ","1914-05-12",879742.96,88793.43,968536.3899999999,"121 - INMOBLES (DOMINI PÚBLIC)","MUNICIPI"]
["DIPÒSIT POLICIA LOCAL - PLÇ. SINIA - NUCLI URBÀ","1989-10-24",16421.21,23225.15,39646.36,"121 - INMOBLES (DOMINI PÚBLIC)","MUNICIPI"]
["TERRENY EQUIPAMENTS - C/ PADRÓ - P. GASSÓ-VARGAS (PERMUTA)","1992-07-23",777399.62,0,777399.62,"121 - INMOBLES (DOMINI PÚBLIC)","MUNICIPI"]
["LOCAL C.C. MARAGALL - C/ MARAGALL 7 - NUCLI URBÀ","1994-06-20",142382.19,50693.78,193075.97,"121 - INMOBLES (DOMINI PÚBLIC)","MUNICIPI"]
["DEIXALLERIA MUNICIPAL - CRTA SANTIGA - P. PINETONS","2001-01-23",2000,36775.120000000003,38775.120000000003,"121 - INMOBLES (DOMINI PÚBLIC)","MUNICIPI"]
["EQUIPAMENTS - C/ NOU 2 - NUCLI URBÀ","1996-10-02",34083.4,0,34083.4,"121 - INMOBLES (DOMINI PÚBLIC)","MUNICIPI"]
["TERRENY EQUIPAMENTS - SECTOR BARICENTRO","1995-12-13",361.39,0,361.39,"121 - INMOBLES (DOMINI PÚBLIC)","MUNICIPI"]
["POLICIA NACIONAL - C/ TAMARIT, 78 - NUCLI URBÀ","1974-12-20",137250.42000000001,295,137545.42000000001,"313 - BÉNS PATRIMONIALS IMMOBLES","MUNICIPI"]
["TORRE L'ARGENTERA - RBA ST JORDI - OTG - N. URBÀ","1989-09-20",132222.66,60493.15,192715.81,"121 - INMOBLES (DOMINI PÚBLIC)","MUNICIPI"]
["ENSENYAMENT I S. SOCIALS (ANTIC AJUNTAMENT)- C/ ISABEL C.2 - N. URBÀ","1900-01-02",214820.48000000001,64543.37,279363.85000000003,"121 - INMOBLES (DOMINI PÚBLIC)","MUNICIPI"]
["C. RECURSOS PEDAGÒGICS - C/ CALVARI, 112 - N. URBÀ","1990-05-16",75928.710000000006,23225.15,{"$f":"SUM(C259,D259)","v":99153.860000000015},"121 - INMOBLES (DOMINI PÚBLIC)","MUNICIPI"]
["MAGATZEM MUNICIPAL - C/ COT, 1- NUCLI URBÀ","1981-03-25",68350.91,0,68350.91,"313 - BÉNS PATRIMONIALS IMMOBLES","MUNICIPI"]
["MAGATZEM MUNICIPAL 2  - C/ CALVARI, 86- NUCLI URBÀ","1981-03-25",113791.18,0,113791.18,"313 - BÉNS PATRIMONIALS IMMOBLES","MUNICIPI"]
["ANTIC CASAL D'AVIS - C/ MOLI, 2 - NUCLI URBÀ","1981-03-25",100987.91,0,100987.91,"313 - BÉNS PATRIMONIALS IMMOBLES","MUNICIPI"]
["MERCAT MUNICIPAL - RBA SANT ESTEVE - NUCLI URBÀ","1982-11-02",2450914.2200000002,886354.43999999983,3337268.66,"121 - INMOBLES (DOMINI PÚBLIC)","MUNICIPI"]
["CASAL D'AVIS - C/ CALVARI, 88 - NUCLI URBÀ","1995-12-13",731781.16,222463.33000000002,954244.49,"121 - INMOBLES (DOMINI PÚBLIC)","MUNICIPI"]
["CENTRE CÍVIC CAN CALVET - CRTA. SANTIGA - N. URBÀ","1995-12-13",150632.01,23225.15,173857.16,"121 - INMOBLES (DOMINI PÚBLIC)","MUNICIPI"]
["FRANJA CEIP ESCURSELL - C/ ESTACIÓ 9B - NUCLI URBÀ","1989-10-02",360570.2,0,360570.2,"121 - INMOBLES (DOMINI PÚBLIC)","MUNICIPI"]
["FINCA PALLARÉS - AV. VGE. MONTSERRAT - CAN TIANA","1989-10-02",42144.29,0,42144.29,"121 - INMOBLES (DOMINI PÚBLIC)","MUNICIPI"]
["TERRENY ENVOLTA IES PALAU AUSIT - NUCLI URBÀ","1986-12-16",562184.72,0,562184.72,"121 - INMOBLES (DOMINI PÚBLIC)","MUNICIPI"]
["DIPÒSIT AIGUA I - ELS PINETONS","1995-03-02",418232.39,23225.15,441457.54000000004,"121 - INMOBLES (DOMINI PÚBLIC)","MUNICIPI"]
["DIPÒSIT AIGUA II - ELS PINETONS","1992-01-01",1,23225.15,23226.15,"121 - INMOBLES (DOMINI PÚBLIC)","MUNICIPI"]
["DIPÒSIT AIGUA III - ELS PINETONS","1995-07-06",1857,23225.15,25082.15,"121 - INMOBLES (DOMINI PÚBLIC)","MUNICIPI"]
["TORRE DIPÒSIT AIGUA - C/ GRAL. PRIM 6 - EN DESÚS","1995-07-06",91858.69,70897.149999999994,162755.84,"121 - INMOBLES (DOMINI PÚBLIC)","MUNICIPI"]
["DIPÒSIT D'AIGÜES - CEMENTIRI - EN DESÚS","1980-01-01",300.51,23225.15,23525.66,"121 - INMOBLES (DOMINI PÚBLIC)","MUNICIPI"]
["APARCAMENT \"EL MOLÍ\" - NUCLI URBÀ","2003-01-01",272084.8,378310.06000000006,650394.8600000001,"121 - INMOBLES (DOMINI PÚBLIC)","MUNICIPI"]
["LLAR D'INFANTS - LA VEREMA","2008-01-31",30052.28,1064783.24,1094835.52,"121 - INMOBLES (DOMINI PÚBLIC)","MUNICIPI"]
["CASA NATURA - CRTA. SANTIGA KM 1,2 - ELS PINETONS","2008-01-31",348515.12,63649.91,412165.03,"121 - INMOBLES (DOMINI PÚBLIC)","MUNICIPI"]
["CEIP EL MARTINET (EQ1) - PLA PARCIAL EL MARTINET","2005-09-13",941854.72100000002,23225.15,965079.87100000004,"121 - INMOBLES (DOMINI PÚBLIC)","MUNICIPI"]
["COMISSARIA MOSSOS  (EQ2) - PLA PARCIAL EL MARTINET","2005-09-13",96636,0,96636,"121 - INMOBLES (DOMINI PÚBLIC)","MUNICIPI"]
["EQUIPAMENTS (EQ3) - PLA PARCIAL EL MARTINET","2005-09-13",248241.77799999999,23225.15,271466.92800000001,"121 - INMOBLES (DOMINI PÚBLIC)","MUNICIPI"]
["APARCAMENT DE CAMIONS - PLA PARCIAL \"LA GRANJA\"","1990-07-18",357628.5,0,357628.5,"121 - INMOBLES (DOMINI PÚBLIC)","MUNICIPI"]
["EQUIPAMENTS  (EQ2) - PLA PARCIAL EL MARTINET","2005-09-13",315654.69,0,315654.69,"121 - INMOBLES (DOMINI PÚBLIC)","MUNICIPI"]
["SERVEIS TÈCNICS (ST1) - PLA PARCIAL \"EL MARTINET\"","2005-09-13",2367.5819999999999,0,2367.5819999999999,"121 - INMOBLES (DOMINI PÚBLIC)","MUNICIPI"]
["SERVEIS TÈCNICS (ST2) - PLA PARCIAL \"EL MARTINET\"","2005-09-13",2278.9990000000003,0,2278.9990000000003,"121 - INMOBLES (DOMINI PÚBLIC)","MUNICIPI"]
["SERVEIS TÈCNICS (ST3) - PLA PARCIAL \"EL MARTINET\"","2005-09-13",2278.9990000000003,0,2278.9990000000003,"121 - INMOBLES (DOMINI PÚBLIC)","MUNICIPI"]
["SERVEIS TÈCNICS (ST4) - PLA PARCIAL \"EL MARTINET\"","2005-09-13",2278.9990000000003,0,2278.9990000000003,"121 - INMOBLES (DOMINI PÚBLIC)","MUNICIPI"]
["SERVEIS TÈCNICS (ST5) - PLA PARCIAL \"EL MARTINET\"","2005-09-13",2432.0059999999999,0,2432.0059999999999,"121 - INMOBLES (DOMINI PÚBLIC)","MUNICIPI"]
["XARXA D'ENLLUMENAT PÚBLIC - INST. GRAL","1992-01-01",4005500,367791.1700000001,4373291.17,"150 -INSTAL·LACIONS XARXES","MUNICIPI"]
["XARXA DISTRIBUCIÓ AIGÜES - INSTAL·LACIÓ GENERAL","1992-01-01",4211692.4400000004,0,4211692.4400000004,"150 -INSTAL·LACIONS XARXES","MUNICIPI"]
["XARXA DE CLAVEGUERAM PÚBLIC - INST. GRAL","1992-01-01",1,304247.78999999998,304248.78999999998,"150 -INSTAL·LACIONS XARXES","MUNICIPI"]
["ESCOLA BRESSOL \"LA RODETA DEL MOLÍ\"  - P. MOLÍ D'EN RATA","1999-12-23",126421.46,23225.15,149646.61000000002,"121 - INMOBLES (DOMINI PÚBLIC)","MUNICIPI"]
["MOLÍ D'EN RATA - P. MOLÍ D'EN RATA","1999-12-23",126421.46,24951.9,151373.36000000002,"121 - INMOBLES (DOMINI PÚBLIC)","MUNICIPI"]
["TERRENY EQUIPAMENTS (C) C.5.A - P.P. ELS PINETONS","1998-01-01",551242.48,0,551242.48,"313 - BÉNS PATRIMONIALS IMMOBLES","MUNICIPI"]
["TERRENY EQUIPAMENTS (C) C.5.B - P.P. ELS PINETONS","1998-01-01",437980.58,0,437980.58,"313 - BÉNS PATRIMONIALS IMMOBLES","MUNICIPI"]
["TERRENY EQUIPAMENTS (C) C.5.C - P.P. ELS PINETONS","1998-01-01",411939.71,0,411939.71,"313 - BÉNS PATRIMONIALS IMMOBLES","MUNICIPI"]
["TERRENY EQUIPAMENTS (C) C.5.D - P.P. ELS PINETONS","1998-01-01",682313.9,0,682313.9,"313 - BÉNS PATRIMONIALS IMMOBLES","MUNICIPI"]
["FINCA INSCASÒL - PLA PARCIAL PINETONS","1997-05-12",15895.816699999999,0,15895.816699999999,"313 - BÉNS PATRIMONIALS IMMOBLES","MUNICIPI"]
["ANTIGA OFICINA RECAPTACIÓ - C/ ISABEL CATÒLICA, 10","1996-11-09",48718.46,0,48718.46,"313 - BÉNS PATRIMONIALS IMMOBLES","MUNICIPI"]
["TERRENY EQUIPAMENTS (A) C.1.A - P.P. ELS PINETONS","1998-11-30",606658.73,0,606658.73,"313 - BÉNS PATRIMONIALS IMMOBLES","MUNICIPI"]
["TERRENY EQUIPAMENTS (A) C.1.C - P.P. ELS PINETONS","1998-11-30",481570.81,0,481570.81,"313 - BÉNS PATRIMONIALS IMMOBLES","MUNICIPI"]
["CENTRE D'ATENCIÓ GENT GRAN - P.P. ELS PINETONS","1998-11-30",3040106.97,0,3040106.97,"313 - BÉNS PATRIMONIALS IMMOBLES","MUNICIPI"]
["TERRENY PARATGE \"AIGUAMOIX I\" - CAN CLOS","1960-06-18",145884.92679999999,0,145884.92679999999,"313 - BÉNS PATRIMONIALS IMMOBLES","MUNICIPI"]
["TERRENY PARATGE \"AIGUAMOIX II\" - CAN CLOS","1967-02-15",27889.149600000001,0,27889.149600000001,"313 - BÉNS PATRIMONIALS IMMOBLES","MUNICIPI"]
["APARCAMENT  CL CAN MASACHS 0020 01-1 0121","2005-05-21",3060.14,0,3060.14,"313 - BÉNS PATRIMONIALS IMMOBLES","MUNICIPI"]
["APARCAMENT  CL CAN MASACHS 0020 01-1 0123","2005-05-21",1691.13,0,1691.13,"313 - BÉNS PATRIMONIALS IMMOBLES","MUNICIPI"]
["APARCAMENT  CL CAN MASACHS 0020 01-1 0124","2005-05-21",1691.13,0,1691.13,"313 - BÉNS PATRIMONIALS IMMOBLES","MUNICIPI"]
["APARCAMENT  CL CAN MASACHS 0020 01-1 0125","2005-05-21",1691.13,0,1691.13,"313 - BÉNS PATRIMONIALS IMMOBLES","MUNICIPI"]
["APARCAMENT  CL CAN MASACHS 0020 01-1 0126","2005-05-21",1691.13,0,1691.13,"313 - BÉNS PATRIMONIALS IMMOBLES","MUNICIPI"]
["APARCAMENT  CL CAN MASACHS 0020 01-1 0127","2005-05-21",1691.13,0,1691.13,"313 - BÉNS PATRIMONIALS IMMOBLES","MUNICIPI"]
["APARCAMENT  CL CAN MASACHS 0020 01-1 0128","2005-05-21",1691.13,0,1691.13,"313 - BÉNS PATRIMONIALS IMMOBLES","MUNICIPI"]
["APARCAMENT  CL CAN MASACHS 0020 01-1 0129","2005-05-21",1691.13,0,1691.13,"313 - BÉNS PATRIMONIALS IMMOBLES","MUNICIPI"]
["APARCAMENT  CL CAN MASACHS 0020 01-1 0130","2005-05-21",1691.13,0,1691.13,"313 - BÉNS PATRIMONIALS IMMOBLES","MUNICIPI"]
["APARCAMENT  CL CAN MASACHS 0020 01-1 0131","2005-05-21",1691.13,0,1691.13,"313 - BÉNS PATRIMONIALS IMMOBLES","MUNICIPI"]
["APARCAMENT  CL CAN MASACHS 0020 01-1 0132","2005-05-21",1691.13,0,1691.13,"313 - BÉNS PATRIMONIALS IMMOBLES","MUNICIPI"]
["APARCAMENT  CL CAN MASACHS 0020 01-1 0122","2005-05-21",1530.07,0,1530.07,"313 - BÉNS PATRIMONIALS IMMOBLES","MUNICIPI"]
["CAP PINETONS -  AVINGUDA DE CATALUNYA, 18 - NUCLI URBÀ","2005-05-21",1,3090863.2,3090864.2,"121 - INMOBLES (DOMINI PÚBLIC)","MUNICIPI"]
["LOCAL OFICINES - PLANTA 1ª HOTEL IBIS","2005-05-21",387200,0,387200,"313 - BÉNS PATRIMONIALS IMMOBLES","MUNICIPI"]
["APARCAMENT - PARKING CASINO - C/ DE LA SALUT Nº 18",{"$error":"#N/A"},15600,302952.68,318552.68,"121 - INMOBLES (DOMINI PÚBLIC)","MUNICIPI"]
["CENTRE CIVIC CAN MAS - PRIMER DE MAIG","2008-10-15",1,467116,467117,"121 - INMOBLES (DOMINI PÚBLIC)","MUNICIPI"]
["CEIP PINETONS -AVINGUDA DE CATALUNYA, 16 - NUCLI URBÀ",{"$error":"#N/A"},644240,25568.960000000003,669808.96,"121 - INMOBLES (DOMINI PÚBLIC)","MUNICIPI"]
["IES LLUIS COMPANYS - CRTA DE L'ESTACIÓ - NUCLI URBÀ",{"$error":"#N/A"},901774.94000000006,0,901774.94000000006,"121 - INMOBLES (DOMINI PÚBLIC)","MUNICIPI"]
["TERRENY -EXPROPIACIÓ 267M2","2008-09-29",21501.510000000002,28842.84,50344.350000000006,"121 - INMOBLES (DOMINI PÚBLIC)","MUNICIPI"]
["LOCAL I PLANTA SOTERRÀNIA -C/ MONTCADA 77-79","2008-10-01",41231.360000000001,23225.15,64456.51,"121 - INMOBLES (DOMINI PÚBLIC)","MUNICIPI"]
["CENTRE DE DIA -LOCAL BARRI SANT ANDREU","2008-05-29",8648.9220000000005,23225.15,{"$f":"SUM(C323,D323)","v":31874.072},"121 - INMOBLES (DOMINI PÚBLIC)","MUNICIPI"]
["CONCESSIÓ TANATORI","2011-03-15",0,0,0,"CONCESSIONS","MUNICIPI"]
["XARXA ELECTRICA","1992-01-01",1,20341.48,20342.48,"150 -INSTAL·LACIONS XARXES","MUNICIPI"]
["CONCESSIONS PARADES - MERCAT MUNICIPAL","1982-12-31",0,0,0,"CONCESSIONS","MUNICIPI"]
["MANCOMUNITAT CERDANYOLA / RIPOLLET / MONTCADA I R.","1956-02-02",0,0,0,"CONCESSIONS","MUNICIPI"]
["CONCESSIÓ CENTRE D'ATENCIÓ GENT GRAN - SERGESA SA","2006-11-21",0,0,0,"CONCESSIONS","MUNICIPI"]
["DISPENSARI DE LA CREU ROJA - MANCOMUNITAT","1956-06-29",0,0,0,"CONCESSIONS","MUNICIPI"]
["CONCESSIÓ SERVEIS FUNERARIS MUNICIPALS","1983-02-09",0,0,0,"CONCESSIONS","MUNICIPI"]
["CONCESSIÓ APARCAMENT AUBAREL SL - PARC RIU RIPOLL","2007-05-03",0,0,0,"CONCESSIONS","MUNICIPI"]
["CONCESSIÓ C. OCUPACIONAL I TREBALL - A.C.E.T.S.M.","2006-02-01",0,0,0,"CONCESSIONS","MUNICIPI"]
["CONCESSIÓ APARCAMENT CAMIONS \"LA GRANJA\"","2006-02-23",0,0,0,"CONCESSIONS","MUNICIPI"]
["CONCESSIÓ QUIOSC - PARC RIU RIPOLL","2007-01-01",0,0,0,"CONCESSIONS","MUNICIPI"]
["CONCESSIÓ MERCAT MUNICIPAL - MERCADONA S.A.","2005-09-22",0,0,0,"CONCESSIONS","MUNICIPI"]
["CONCESSIÓ RÈTOLS PUBLI. - SIST. E IMÁGENES PUB. SL","2005-09-22",0,0,0,"CONCESSIONS","MUNICIPI"]
["CESSIÓ LOCAL C/ MARAGALL - AAVV DEL BARRI MARAGALL","2008-04-24",0,0,0,"CONCESSIONS","MUNICIPI"]
["CESSIÓ D'ÚS LOCAL AV CAN TIANA - PATRONAT OCUPACIÓ","2003-01-08",0,0,0,"CONCESSIONS","MUNICIPI"]
["CONCESSIÓ ESCOLA DE MÚSICA - RIPOLLET EDUCACIÓ SL","2007-11-06",0,0,0,"CONCESSIONS","MUNICIPI"]
["CONVENIS CESSIÓ D'ÚS HORTS MUNICIPALS","1998-12-14",0,0,0,"CONCESSIONS","MUNICIPI"]
["CESSIÓ D'ÚS LOCALS ASSATJOS MUSICALS - KANYAPOLLET","2002-03-06",0,0,0,"CONCESSIONS","MUNICIPI"]
["CONCESSIÓ SERVEI EDUCATIU - CENTRE OBERT","2003-12-31",0,0,0,"CONCESSIONS","MUNICIPI"]
["CONCESSIÓ EXPLOTACIÓ BAR - CASAL D'AVIS","2003-12-31",0,0,0,"CONCESSIONS","MUNICIPI"]
["TERRENY AJUNTAMENT - C/ BALMES, 2 - CAN MASACHS","1995-10-10",308535.75,0,308535.75,"121 - INMOBLES (DOMINI PÚBLIC)","MUNICIPI"]
["TERRENY POLICIA LOCAL - CRTA. SANTIGA - 1 - CAN MASACHS","1988-11-04",120808.5,0,120808.5,"121 - INMOBLES (DOMINI PÚBLIC)","MUNICIPI"]
["TERRENY CEIP ENRIC TATCHÉ - C/ PAU CASALS S/N - NUCLI URBÀ","1975-05-07",305504.25,0,305504.25,"121 - INMOBLES (DOMINI PÚBLIC)","MUNICIPI"]
["TERRENY CEIP FRANCESC ESCURSELL -CRTA. ESTACIÓ S/N - N. U.","1975-05-07",99297.75,0,99297.75,"121 - INMOBLES (DOMINI PÚBLIC)","MUNICIPI"]
["TERRENY CEIP CAN TIANA - C/ VERGE MONTSERRAT 25 - C. TIANA","1988-03-29",161449.94999999998,0,161449.94999999998,"121 - INMOBLES (DOMINI PÚBLIC)","MUNICIPI"]
["TERRENY CENTRE OBERT \"LA PLACETA\"- C/ CALVARI 5,7- N. URBÀ","1996-06-12",8861.6549999999988,0,8861.6549999999988,"121 - INMOBLES (DOMINI PÚBLIC)","MUNICIPI"]
["TERRENY JUTJAT DE PAU - C/ NOU, 21 - NUCLI URBÀ","1976-09-10",4966.5,0,4966.5,"121 - INMOBLES (DOMINI PÚBLIC)","MUNICIPI"]
["TERRENY CEMENTIRI MUNICIPAL - C/ DR. BERGÓS S/N - N. URBÀ","1900-01-02",59759.25,0,59759.25,"121 - INMOBLES (DOMINI PÚBLIC)","MUNICIPI"]
["TERRENY CEIP GASSÓ I VIDAL - C/ ROCABRUNA, 1 - NUCLI URBÀ","1969-02-21",102426,0,102426,"121 - INMOBLES (DOMINI PÚBLIC)","MUNICIPI"]
["TERRENY CEIP JMª GINESTA - C/ PUIGMAL 59 - ELS PINETONS","1973-02-22",382872,0,382872,"121 - INMOBLES (DOMINI PÚBLIC)","MUNICIPI"]
["TERRENY CEIP ANSELM CLAVÉ - C/ ESCOLES 1, 5 - NUCLI URBÀ","1914-05-12",139094.25,0,139094.25,"121 - INMOBLES (DOMINI PÚBLIC)","MUNICIPI"]
["TERRENY DIPÒSIT POLICIA LOCAL - PLÇ. SINIA - NUCLI URBÀ","1989-10-24",13512.75,0,13512.75,"121 - INMOBLES (DOMINI PÚBLIC)","MUNICIPI"]
["TERRENY ANNEX BRIGADA - AV RIU RIPOLL 95 97 - P. CADESBANK","2001-05-30",5160,0,5160,"121 - INMOBLES (DOMINI PÚBLIC)","MUNICIPI"]
["TERRENY LOCAL C.C. MARAGALL - C/ MARAGALL 7 - NUCLI URBÀ","1994-06-20",19478.032500000001,0,19478.032500000001,"121 - INMOBLES (DOMINI PÚBLIC)","MUNICIPI"]
["TERRENY DEIXALLERIA MUNICIPAL - CRTA SANTIGA - P. PINETONS","2001-01-23",64500,0,64500,"121 - INMOBLES (DOMINI PÚBLIC)","MUNICIPI"]
["TERRENY POLICIA NACIONAL - C/ TAMARIT, 78 - NUCLI URBÀ","1974-12-20",16689.375,0,16689.375,"121 - INMOBLES (DOMINI PÚBLIC)","MUNICIPI"]
["TERRENY TORRE L'ARGENTERA - RBA ST JORDI - OTG - N. URBÀ","1989-09-20",37087.5,0,37087.5,"121 - INMOBLES (DOMINI PÚBLIC)","MUNICIPI"]
["TERRENY ENSENYAMENT I S. SOCIALS  (ANTIC AJUNTAMENT) - C/ ISABEL C.2 - N. URBÀ","1900-01-02",26767.5,0,26767.5,"121 - INMOBLES (DOMINI PÚBLIC)","MUNICIPI"]
["TERRENY C. RECURSOS PEDAGÒGICS - C/ CALVARI, 112 - N. URBÀ","1990-05-16",11239.125,0,11239.125,"121 - INMOBLES (DOMINI PÚBLIC)","MUNICIPI"]
["TERRENY MAGATZEM MUNICIPAL - C/ COT, 1- NUCLI URBÀ","1981-03-25",15460.972500000002,0,15460.972500000002,"121 - INMOBLES (DOMINI PÚBLIC)","MUNICIPI"]
["TERRENY MAGATZEM MUNICIPAL 2  - C/ CALVARI, 86- NUCLI URBÀ","1981-03-25",17459.182499999999,0,17459.182499999999,"121 - INMOBLES (DOMINI PÚBLIC)","MUNICIPI"]
["TERRENY ANTIC CASAL D'AVIS - C/ MOLI, 2 - NUCLI URBÀ","1981-03-25",18484.41,0,18484.41,"121 - INMOBLES (DOMINI PÚBLIC)","MUNICIPI"]
["TERRENY MERCAT MUNICIPAL - RBA SANT ESTEVE - NUCLI URBÀ","1982-11-02",121851.78749999999,0,121851.78749999999,"121 - INMOBLES (DOMINI PÚBLIC)","MUNICIPI"]
["TERRENY CASAL D'AVIS - C/ CALVARI, 88 - NUCLI URBÀ","1995-12-13",134708.25,0,134708.25,"121 - INMOBLES (DOMINI PÚBLIC)","MUNICIPI"]
["TERRENY CENTRE CÍVIC CAN CALVET - CRTA. SANTIGA - N. URBÀ","1995-12-13",5500.8824999999997,0,5500.8824999999997,"121 - INMOBLES (DOMINI PÚBLIC)","MUNICIPI"]
["TERRENY DIPÒSIT AIGUA I - ELS PINETONS","1995-03-02",1,0,1,"121 - INMOBLES (DOMINI PÚBLIC)","MUNICIPI"]
["TERRENY DIPÒSIT AIGUA II - ELS PINETONS","1992-01-01",1,0,1,"121 - INMOBLES (DOMINI PÚBLIC)","MUNICIPI"]
["TERRENY DIPÒSIT AIGUA III - ELS PINETONS","1995-07-06",59888.25,0,59888.25,"121 - INMOBLES (DOMINI PÚBLIC)","MUNICIPI"]
["TERRENY TORRE DIPÒSIT AIGUA - C/ GRAL. PRIM 6 - EN DESÚS","1995-07-06",1,0,1,"121 - INMOBLES (DOMINI PÚBLIC)","MUNICIPI"]
["TERRENY DIPÒSIT D'AIGÜES - CEMENTIRI - EN DESÚS","1980-01-01",1,0,1,"121 - INMOBLES (DOMINI PÚBLIC)","MUNICIPI"]
["TERRENY LLAR D'INFANTS - SECTOR NORD-EST EL PINETONS","2008-01-31",1,1273.0999999999999,1274.0999999999999,"121 - INMOBLES (DOMINI PÚBLIC)","MUNICIPI"]
["TERRENY CASA NATURA - CRTA. SANTIGA KM 1,2 - ELS PINETONS","2008-01-31",1,0,1,"121 - INMOBLES (DOMINI PÚBLIC)","MUNICIPI"]
["TERRENY CEIP EL MARTINET (EQ1) - PLA PARCIAL EL MARTINET","2005-09-13",377186.32500000001,0,377186.32500000001,"121 - INMOBLES (DOMINI PÚBLIC)","MUNICIPI"]
["TERRENY ESCOLA BRESSOL \"LA RODETA DEL MOLÍ\"  - P. MOLÍ D'EN RATA","1999-12-23",1,0,1,"121 - INMOBLES (DOMINI PÚBLIC)","MUNICIPI"]
["TERRENY MOLÍ D'EN RATA - P. MOLÍ D'EN RATA","1999-12-23",1,0,1,"121 - INMOBLES (DOMINI PÚBLIC)","MUNICIPI"]
["CAP PINETONS -  AVINGUDA DE CATALUNYA, 18 - NUCLI URBÀ",{"$error":"#N/A"},1,0,1,"121 - INMOBLES (DOMINI PÚBLIC)","MUNICIPI"]
["TERRENY CENTRE CIVIC CAN MAS - PRIMER DE MAIG","2008-10-15",1,0,1,"121 - INMOBLES (DOMINI PÚBLIC)","MUNICIPI"]
["TERRENY CEIP PINETONS",{"$error":"#N/A"},1,0,1,"121 - INMOBLES (DOMINI PÚBLIC)","MUNICIPI"]
["PASSEIG RIU RIPOLL","2008-12-31",1,324628.21000000002,324629.21000000002,"111 - PARCS I JARDINS","MUNICIPI"]
["ELECTRONICA DE XARXA - INST. GRAL","1992-01-01",1,204251.67,204252.67,"150 -INSTAL·LACIONS XARXES","MUNICIPI"]
["CADIRAM","2007-12-31",4940,0,4940,"147 - MOBILIARI","MERCAT MUNICIPAL"]
["TAULES","2007-12-31",1000,0,1000,"147 - MOBILIARI","MERCAT MUNICIPAL"]
["ARMARIS","2007-12-31",1200,0,1200,"147 - MOBILIARI","MERCAT MUNICIPAL"]
["ARXIVADORS","2007-12-31",240,0,{"$f":"SUM(C387,D387)","v":240},"147 - MOBILIARI","MERCAT MUNICIPAL"]
["BUCS DE CALAIXOS","2007-12-31",160,0,160,"147 - MOBILIARI","MERCAT MUNICIPAL"]
["SPLIT","2007-12-31",400,0,400,"147 - MOBILIARI","MERCAT MUNICIPAL"]
["SPLIT","2007-12-31",400,0,400,"147 - MOBILIARI","MERCAT MUNICIPAL"]
["ORDINADOR PORTATIL","2007-12-31",600,0,600,"131 - EQUIPAMENTS DE PROCESSO D'INFORMACIÓ","MERCAT MUNICIPAL"]
["IMPRESSORA","2007-12-31",380,0,380,"131 - EQUIPAMENTS DE PROCESSO D'INFORMACIÓ","MERCAT MUNICIPAL"]
["IMPRESSORA","2007-12-31",380,0,380,"131 - EQUIPAMENTS DE PROCESSO D'INFORMACIÓ","MERCAT MUNICIPAL"]
["IMPRESSORA","2007-12-31",380,0,380,"131 - EQUIPAMENTS DE PROCESSO D'INFORMACIÓ","MERCAT MUNICIPAL"]
["BASCULA","2007-12-31",150,0,150,"147 - MOBILIARI","MERCAT MUNICIPAL"]
["ARXIVADORS","2007-12-31",120,0,120,"147 - MOBILIARI","MERCAT MUNICIPAL"]
["PC","2007-12-31",700,0,700,"131 - EQUIPAMENTS DE PROCESSO D'INFORMACIÓ","MERCAT MUNICIPAL"]
["MONITOR ","2007-12-31",90,0,90,"131 - EQUIPAMENTS DE PROCESSO D'INFORMACIÓ","MERCAT MUNICIPAL"]
["EQUIP DE SO","2007-12-31",150,0,150,"147 - MOBILIARI","MERCAT MUNICIPAL"]
["MICROFON","2007-12-31",80,0,80,"147 - MOBILIARI","MERCAT MUNICIPAL"]
["GRAVADORA DE VIDEO","2007-12-31",300,0,300,"147 - MOBILIARI","MERCAT MUNICIPAL"]
["MONITOR ","2007-12-31",90,0,90,"131 - EQUIPAMENTS DE PROCESSO D'INFORMACIÓ","MERCAT MUNICIPAL"]
["DESFIBRIL·LADOR","2007-12-31",1100,0,1100,"147 - MOBILIARI","MERCAT MUNICIPAL"]
["MEDIDOR DISTANCIA","2007-12-31",20,0,20,"135 - MAQUINÀRIA I INSTAL·LACIONS TÈCNIQUES","MERCAT MUNICIPAL"]
["ARMARIETS","2007-12-31",600,0,600,"147 - MOBILIARI","MERCAT MUNICIPAL"]
["SPLIT","2007-12-31",400,0,400,"147 - MOBILIARI","MERCAT MUNICIPAL"]
["SPLIT","2007-12-31",400,0,400,"147 - MOBILIARI","MERCAT MUNICIPAL"]
["FREGADORA","2007-12-31",850,0,850,"135 - MAQUINÀRIA I INSTAL·LACIONS TÈCNIQUES","MERCAT MUNICIPAL"]
["PULIDORA","2007-12-31",100,0,100,"135 - MAQUINÀRIA I INSTAL·LACIONS TÈCNIQUES","MERCAT MUNICIPAL"]
["CADIRAM","2007-12-31",5320,0,5320,"147 - MOBILIARI","RADIO"]
["TAULES","2007-12-31",2800,0,2800,"147 - MOBILIARI","RADIO"]
["ARMARIS","2007-12-31",1800,0,1800,"147 - MOBILIARI","RADIO"]
["ARMARIS RACK","2007-12-31",200,0,200,"147 - MOBILIARI","RADIO"]
["BUCS DE CALAIXOS","2007-12-31",240,0,240,"147 - MOBILIARI","RADIO"]
["PISSARRA","2007-12-31",490,0,490,"147 - MOBILIARI","RADIO"]
["TELEVISOR","2007-12-31",800,0,800,"147 - MOBILIARI","RADIO"]
["BAFLE ","2007-12-31",460,0,460,"147 - MOBILIARI","RADIO"]
["BAFLE ","2007-12-31",460,0,460,"147 - MOBILIARI","RADIO"]
["SPLIT","2007-12-31",400,0,400,"147 - MOBILIARI","RADIO"]
["REPRODUCTOR DVD","2007-12-31",60,0,60,"147 - MOBILIARI","RADIO"]
["REPRODUCTOR MINIDISC","2007-12-31",60,0,60,"147 - MOBILIARI","RADIO"]
["TAULA DE MESCLES","2007-12-31",2500,0,2500,"147 - MOBILIARI","RADIO"]
["TDT","2007-12-31",80,0,80,"147 - MOBILIARI","RADIO"]
["PC","2007-12-31",700,0,700,"131 - EQUIPAMENTS DE PROCESSO D'INFORMACIÓ","RADIO"]
["MONITOR","2007-12-31",90,0,90,"131 - EQUIPAMENTS DE PROCESSO D'INFORMACIÓ","RADIO"]
["TOCA DISCS","2007-12-31",130,0,130,"147 - MOBILIARI","RADIO"]
["TAULA DE MESCLES","2007-12-31",2500,0,2500,"147 - MOBILIARI","RADIO"]
["AURICULARS","2007-12-31",220,0,220,"147 - MOBILIARI","RADIO"]
["MICROFON","2007-12-31",80,0,80,"147 - MOBILIARI","RADIO"]
["MICROFON","2007-12-31",80,0,80,"147 - MOBILIARI","RADIO"]
["HIBRID TELEFONIC","2007-12-31",110,0,110,"147 - MOBILIARI","RADIO"]
["REPRODUCTOR CD","2007-12-31",50,0,50,"147 - MOBILIARI","RADIO"]
["SINTONITZADOR","2007-12-31",40,0,40,"147 - MOBILIARI","RADIO"]
["AMPLIFICADOR","2007-12-31",300,0,300,"147 - MOBILIARI","RADIO"]
["MICROFON","2007-12-31",80,0,80,"147 - MOBILIARI","RADIO"]
["SPLIT","2007-12-31",400,0,400,"147 - MOBILIARI","RADIO"]
["TELEVISOR","2007-12-31",800,0,800,"147 - MOBILIARI","RADIO"]
["BAFLE ","2007-12-31",460,0,460,"147 - MOBILIARI","RADIO"]
["BAFLE ","2007-12-31",460,0,460,"147 - MOBILIARI","RADIO"]
["MICROFON","2007-12-31",80,0,80,"147 - MOBILIARI","RADIO"]
["MICROFON","2007-12-31",80,0,80,"147 - MOBILIARI","RADIO"]
["MICROFON","2007-12-31",80,0,80,"147 - MOBILIARI","RADIO"]
["MICROFON","2007-12-31",80,0,80,"147 - MOBILIARI","RADIO"]
["MICROFON","2007-12-31",80,0,80,"147 - MOBILIARI","RADIO"]
["MICROFON","2007-12-31",80,0,80,"147 - MOBILIARI","RADIO"]
["MICROFON","2007-12-31",80,0,80,"147 - MOBILIARI","RADIO"]
["MICROFON","2007-12-31",80,0,80,"147 - MOBILIARI","RADIO"]
["AURICULARS","2007-12-31",220,0,220,"147 - MOBILIARI","RADIO"]
["AURICULARS","2007-12-31",220,0,220,"147 - MOBILIARI","RADIO"]
["AURICULARS","2007-12-31",220,0,220,"147 - MOBILIARI","RADIO"]
["AURICULARS","2007-12-31",220,0,{"$f":"SUM(C451,D451)","v":220},"147 - MOBILIARI","RADIO"]
["AURICULARS","2007-12-31",220,0,220,"147 - MOBILIARI","RADIO"]
["AURICULARS","2007-12-31",220,0,220,"147 - MOBILIARI","RADIO"]
["AURICULARS","2007-12-31",220,0,220,"147 - MOBILIARI","RADIO"]
["BAFLE ","2007-12-31",460,0,460,"147 - MOBILIARI","RADIO"]
["BAFLE ","2007-12-31",460,0,460,"147 - MOBILIARI","RADIO"]
["SPLIT","2007-12-31",400,0,400,"147 - MOBILIARI","RADIO"]
["TOCA DISCS","2007-12-31",130,0,130,"147 - MOBILIARI","RADIO"]
["TOCA DISCS","2007-12-31",130,0,130,"147 - MOBILIARI","RADIO"]
["AURICULARS","2007-12-31",220,0,220,"147 - MOBILIARI","RADIO"]
["PC","2007-12-31",700,0,700,"131 - EQUIPAMENTS DE PROCESSO D'INFORMACIÓ","RADIO"]
["PC","2007-12-31",700,0,700,"131 - EQUIPAMENTS DE PROCESSO D'INFORMACIÓ","RADIO"]
["PC","2007-12-31",700,0,700,"131 - EQUIPAMENTS DE PROCESSO D'INFORMACIÓ","RADIO"]
["MONITOR","2007-12-31",90,0,90,"131 - EQUIPAMENTS DE PROCESSO D'INFORMACIÓ","RADIO"]
["MONITOR","2007-12-31",90,0,90,"131 - EQUIPAMENTS DE PROCESSO D'INFORMACIÓ","RADIO"]
["MONITOR","2007-12-31",90,0,90,"131 - EQUIPAMENTS DE PROCESSO D'INFORMACIÓ","RADIO"]
["MICROFON","2007-12-31",80,0,80,"147 - MOBILIARI","RADIO"]
["TAULA DE MESCLES","2007-12-31",2500,0,2500,"147 - MOBILIARI","RADIO"]
["TAULA DE MESCLES","2007-12-31",2500,0,2500,"147 - MOBILIARI","RADIO"]
["REPRODUCTOR CD","2007-12-31",50,0,50,"147 - MOBILIARI","RADIO"]
["HIBRID TELEFONIC","2007-12-31",110,0,110,"147 - MOBILIARI","RADIO"]
["SINTONITZADOR ","2007-12-31",40,0,40,"147 - MOBILIARI","RADIO"]
["PROCESSADOR  DE SO","2007-12-31",130,0,130,"147 - MOBILIARI","RADIO"]
["GENERADOR RDS ","2007-12-31",300,0,300,"147 - MOBILIARI","RADIO"]
["SINTONITZADOR ","2007-12-31",40,0,40,"147 - MOBILIARI","RADIO"]
["AMPLIFICADOR","2007-12-31",300,0,300,"147 - MOBILIARI","RADIO"]
["AMPLIFICADOR","2007-12-31",300,0,300,"147 - MOBILIARI","RADIO"]
["SPLIT","2007-12-31",400,0,400,"147 - MOBILIARI","RADIO"]
["MICROONES","2007-12-31",70,0,70,"147 - MOBILIARI","RADIO"]
["NEVERA","2007-12-31",400,0,400,"147 - MOBILIARI","RADIO"]
["MICROONES","2007-12-31",70,0,70,"147 - MOBILIARI","RADIO"]
["PC","2007-12-31",700,0,700,"131 - EQUIPAMENTS DE PROCESSO D'INFORMACIÓ","RADIO"]
["PC","2007-12-31",700,0,700,"131 - EQUIPAMENTS DE PROCESSO D'INFORMACIÓ","RADIO"]
["PC","2007-12-31",700,0,700,"131 - EQUIPAMENTS DE PROCESSO D'INFORMACIÓ","RADIO"]
["IMPRESSORA","2007-12-31",380,0,380,"131 - EQUIPAMENTS DE PROCESSO D'INFORMACIÓ","RADIO"]
["PC","2007-12-31",700,0,700,"131 - EQUIPAMENTS DE PROCESSO D'INFORMACIÓ","RADIO"]
["PC","2007-12-31",700,0,700,"131 - EQUIPAMENTS DE PROCESSO D'INFORMACIÓ","RADIO"]
["PC","2007-12-31",700,0,700,"131 - EQUIPAMENTS DE PROCESSO D'INFORMACIÓ","RADIO"]
["SPLIT","2007-12-31",400,0,400,"147 - MOBILIARI","RADIO"]
["PC","2007-12-31",700,0,700,"131 - EQUIPAMENTS DE PROCESSO D'INFORMACIÓ","RADIO"]
["CAMARA DE VIDEO","2007-12-31",100,0,100,"147 - MOBILIARI","RADIO"]
["GRAVADORA DE VEU","2007-12-31",300,0,300,"147 - MOBILIARI","RADIO"]
["GRAVADORA DE VEU","2007-12-31",300,0,300,"147 - MOBILIARI","RADIO"]
["GRAVADORA DE VEU","2007-12-31",300,0,300,"147 - MOBILIARI","RADIO"]
["GRAVADORA DE VEU","2007-12-31",300,0,300,"147 - MOBILIARI","RADIO"]
["CAMARA DE FOTOS","2007-12-31",100,0,100,"147 - MOBILIARI","RADIO"]
["CAMARA DE FOTOS","2007-12-31",100,0,100,"147 - MOBILIARI","RADIO"]
["ORDINADOR PORTATIL","2007-12-31",600,0,600,"131 - EQUIPAMENTS DE PROCESSO D'INFORMACIÓ","RADIO"]
["SERVIDOR","2007-12-31",300,0,300,"131 - EQUIPAMENTS DE PROCESSO D'INFORMACIÓ","RADIO"]
["SAI","2007-12-31",190,0,190,"147 - MOBILIARI","RADIO"]
["SAI","2007-12-31",190,0,190,"147 - MOBILIARI","RADIO"]
["PC","2007-12-31",700,0,700,"131 - EQUIPAMENTS DE PROCESSO D'INFORMACIÓ","RADIO"]
["PC","2007-12-31",700,0,700,"131 - EQUIPAMENTS DE PROCESSO D'INFORMACIÓ","RADIO"]
["SPLIT","2007-12-31",400,0,400,"147 - MOBILIARI","RADIO"]
["SPLIT","2007-12-31",400,0,400,"147 - MOBILIARI","RADIO"]
["PC","2007-12-31",700,0,700,"131 - EQUIPAMENTS DE PROCESSO D'INFORMACIÓ","RADIO"]
["CADIRAM","2007-12-31",69920,0,69920,"147 - MOBILIARI","CASAL D'AVIS"]
["TAULES","2007-12-31",12400,0,12400,"147 - MOBILIARI","CASAL D'AVIS"]
["SPLIT","2007-12-31",400,0,400,"147 - MOBILIARI","CASAL D'AVIS"]
["PC","2007-12-31",700,0,700,"131 - EQUIPAMENTS DE PROCESSO D'INFORMACIÓ","CASAL D'AVIS"]
["PC","2007-12-31",700,0,700,"131 - EQUIPAMENTS DE PROCESSO D'INFORMACIÓ","CASAL D'AVIS"]
["PC","2007-12-31",700,0,700,"131 - EQUIPAMENTS DE PROCESSO D'INFORMACIÓ","CASAL D'AVIS"]
["PC","2007-12-31",700,0,700,"131 - EQUIPAMENTS DE PROCESSO D'INFORMACIÓ","CASAL D'AVIS"]
["PC","2007-12-31",700,0,700,"131 - EQUIPAMENTS DE PROCESSO D'INFORMACIÓ","CASAL D'AVIS"]
["MONITOR","2007-12-31",90,0,{"$f":"SUM(C515,D515)","v":90},"131 - EQUIPAMENTS DE PROCESSO D'INFORMACIÓ","CASAL D'AVIS"]
["MONITOR","2007-12-31",90,0,90,"131 - EQUIPAMENTS DE PROCESSO D'INFORMACIÓ","CASAL D'AVIS"]
["MONITOR","2007-12-31",90,0,90,"131 - EQUIPAMENTS DE PROCESSO D'INFORMACIÓ","CASAL D'AVIS"]
["PC","2007-12-31",700,0,700,"131 - EQUIPAMENTS DE PROCESSO D'INFORMACIÓ","CASAL D'AVIS"]
["MONITOR","2007-12-31",90,0,90,"131 - EQUIPAMENTS DE PROCESSO D'INFORMACIÓ","CASAL D'AVIS"]
["PC","2007-12-31",700,0,700,"131 - EQUIPAMENTS DE PROCESSO D'INFORMACIÓ","CASAL D'AVIS"]
["MONITOR","2007-12-31",90,0,90,"131 - EQUIPAMENTS DE PROCESSO D'INFORMACIÓ","CASAL D'AVIS"]
["MONITOR","2007-12-31",90,0,90,"131 - EQUIPAMENTS DE PROCESSO D'INFORMACIÓ","CASAL D'AVIS"]
["MONITOR","2007-12-31",90,0,90,"131 - EQUIPAMENTS DE PROCESSO D'INFORMACIÓ","CASAL D'AVIS"]
["PC","2007-12-31",700,0,700,"131 - EQUIPAMENTS DE PROCESSO D'INFORMACIÓ","CASAL D'AVIS"]
["MONITOR","2007-12-31",90,0,90,"131 - EQUIPAMENTS DE PROCESSO D'INFORMACIÓ","CASAL D'AVIS"]
["PC","2007-12-31",700,0,700,"131 - EQUIPAMENTS DE PROCESSO D'INFORMACIÓ","CASAL D'AVIS"]
["MONITOR","2007-12-31",90,0,90,"131 - EQUIPAMENTS DE PROCESSO D'INFORMACIÓ","CASAL D'AVIS"]
["PC","2007-12-31",700,0,700,"131 - EQUIPAMENTS DE PROCESSO D'INFORMACIÓ","CASAL D'AVIS"]
["MONITOR","2007-12-31",90,0,90,"131 - EQUIPAMENTS DE PROCESSO D'INFORMACIÓ","CASAL D'AVIS"]
["PC","2007-12-31",700,0,700,"131 - EQUIPAMENTS DE PROCESSO D'INFORMACIÓ","CASAL D'AVIS"]
["MONITOR","2007-12-31",90,0,90,"131 - EQUIPAMENTS DE PROCESSO D'INFORMACIÓ","CASAL D'AVIS"]
["PC","2007-12-31",700,0,700,"131 - EQUIPAMENTS DE PROCESSO D'INFORMACIÓ","CASAL D'AVIS"]
["MONITOR","2007-12-31",90,0,90,"131 - EQUIPAMENTS DE PROCESSO D'INFORMACIÓ","CASAL D'AVIS"]
["PC","2007-12-31",700,0,700,"131 - EQUIPAMENTS DE PROCESSO D'INFORMACIÓ","CASAL D'AVIS"]
["MONITOR","2007-12-31",90,0,90,"131 - EQUIPAMENTS DE PROCESSO D'INFORMACIÓ","CASAL D'AVIS"]
["PC","2007-12-31",700,0,700,"131 - EQUIPAMENTS DE PROCESSO D'INFORMACIÓ","CASAL D'AVIS"]
["PC","2007-12-31",700,0,700,"131 - EQUIPAMENTS DE PROCESSO D'INFORMACIÓ","CASAL D'AVIS"]
["CALEFACTOR","2007-12-31",230,0,230,"147 - MOBILIARI","CASAL D'AVIS"]
["ARMARIS","2007-12-31",4000,0,4000,"147 - MOBILIARI","CASAL D'AVIS"]
["BILLAR","2007-12-31",800,0,800,"147 - MOBILIARI","CASAL D'AVIS"]
["BILLAR","2007-12-31",800,0,800,"147 - MOBILIARI","CASAL D'AVIS"]
["MIRALLS","2007-12-31",400,0,400,"147 - MOBILIARI","CASAL D'AVIS"]
["MAQUINA DE COSIR","2007-12-31",120,0,120,"147 - MOBILIARI","CASAL D'AVIS"]
["CALEFACTOR","2007-12-31",230,0,230,"147 - MOBILIARI","CASAL D'AVIS"]
["CALEFACTOR","2007-12-31",230,0,230,"147 - MOBILIARI","CASAL D'AVIS"]
["CALEFACTOR","2007-12-31",230,0,230,"147 - MOBILIARI","CASAL D'AVIS"]
["FONT D'AIGUA","2007-12-31",500,0,500,"147 - MOBILIARI","CASAL D'AVIS"]
["PISSARRA","2007-12-31",140,0,140,"147 - MOBILIARI","CASAL D'AVIS"]
["FORN","2007-12-31",250,0,250,"147 - MOBILIARI","CASAL D'AVIS"]
["SPLIT","2007-12-31",400,0,400,"147 - MOBILIARI","CASAL D'AVIS"]
["SPLIT","2007-12-31",400,0,400,"147 - MOBILIARI","CASAL D'AVIS"]
["SPLIT","2007-12-31",400,0,400,"147 - MOBILIARI","CASAL D'AVIS"]
["SPLIT","2007-12-31",400,0,400,"147 - MOBILIARI","CASAL D'AVIS"]
["NEVERA","2007-12-31",400,0,400,"147 - MOBILIARI","CASAL D'AVIS"]
["PC","2007-12-31",700,0,700,"131 - EQUIPAMENTS DE PROCESSO D'INFORMACIÓ","CASAL D'AVIS"]
["MONITOR","2007-12-31",90,0,90,"131 - EQUIPAMENTS DE PROCESSO D'INFORMACIÓ","CASAL D'AVIS"]
["IMPRESSORA","2007-12-31",380,0,380,"131 - EQUIPAMENTS DE PROCESSO D'INFORMACIÓ","CASAL D'AVIS"]
["PC","2007-12-31",700,0,700,"131 - EQUIPAMENTS DE PROCESSO D'INFORMACIÓ","CASAL D'AVIS"]
["MONITOR","2007-12-31",90,0,90,"131 - EQUIPAMENTS DE PROCESSO D'INFORMACIÓ","CASAL D'AVIS"]
["CADIRAM","2007-12-31",190,0,190,"147 - MOBILIARI","CASAL D'AVIS"]
["EQUIP DE PODOLOGIA","2007-12-31",1,0,1,"147 - MOBILIARI","CASAL D'AVIS"]
["EQUIP DE PODOLOGIA","2007-12-31",1,0,1,"147 - MOBILIARI","CASAL D'AVIS"]
["BALANÇA","2007-12-31",100,0,100,"147 - MOBILIARI","CASAL D'AVIS"]
["SECADOR DE PEU","2007-12-31",300,0,300,"147 - MOBILIARI","CASAL D'AVIS"]
["SECADOR DE PEU","2007-12-31",300,0,300,"147 - MOBILIARI","CASAL D'AVIS"]
["RENTACAPS DE PERRUQUERIA","2007-12-31",300,0,300,"147 - MOBILIARI","CASAL D'AVIS"]
["BAFLE","2007-12-31",460,0,460,"147 - MOBILIARI","CASAL D'AVIS"]
["SPLIT","2007-12-31",400,0,400,"147 - MOBILIARI","CASAL D'AVIS"]
["BAFLE","2007-12-31",460,0,460,"147 - MOBILIARI","CASAL D'AVIS"]
["BAFLE","2007-12-31",460,0,460,"147 - MOBILIARI","CASAL D'AVIS"]
["SPLIT","2007-12-31",400,0,400,"147 - MOBILIARI","CASAL D'AVIS"]
["BAFLE","2007-12-31",460,0,460,"147 - MOBILIARI","CASAL D'AVIS"]
["SPLIT","2007-12-31",400,0,400,"147 - MOBILIARI","CASAL D'AVIS"]
["BAFLE","2007-12-31",460,0,460,"147 - MOBILIARI","CASAL D'AVIS"]
["CONJUNT BANDERES","2007-12-31",100,0,100,"147 - MOBILIARI","CASAL D'AVIS"]
["BAFLE","2007-12-31",460,0,460,"147 - MOBILIARI","CASAL D'AVIS"]
["BAFLE","2007-12-31",460,0,460,"147 - MOBILIARI","CASAL D'AVIS"]
["BAFLE","2007-12-31",460,0,460,"147 - MOBILIARI","CASAL D'AVIS"]
["BAFLE","2007-12-31",460,0,{"$f":"SUM(C579,D579)","v":460},"147 - MOBILIARI","CASAL D'AVIS"]
["BAFLE","2007-12-31",460,0,460,"147 - MOBILIARI","CASAL D'AVIS"]
["ESCALES","2007-12-31",260,0,260,"147 - MOBILIARI","CASAL D'AVIS"]
["CADIRAM","2007-12-31",18430,0,18430,"147 - MOBILIARI","AJUNTAMENT"]
["TAULES","2007-12-31",8000,0,8000,"147 - MOBILIARI","AJUNTAMENT"]
["BUCS DE CALAIXOS","2007-12-31",1920,0,1920,"147 - MOBILIARI","AJUNTAMENT"]
["ARMARIS","2007-12-31",19400,0,19400,"147 - MOBILIARI","AJUNTAMENT"]
["EXPOSITORS","2007-12-31",60,0,60,"147 - MOBILIARI","AJUNTAMENT"]
["PANELL","2007-12-31",80,0,80,"147 - MOBILIARI","AJUNTAMENT"]
["SPLIT","2007-12-31",400,0,400,"147 - MOBILIARI","AJUNTAMENT"]
["SPLIT","2007-12-31",400,0,400,"147 - MOBILIARI","AJUNTAMENT"]
["PISSARRA","2007-12-31",560,0,560,"147 - MOBILIARI","AJUNTAMENT"]
["SPLIT","2007-12-31",400,0,400,"147 - MOBILIARI","AJUNTAMENT"]
["SPLIT","2007-12-31",400,0,400,"147 - MOBILIARI","AJUNTAMENT"]
["MAQUINA D'ESCRIURE","2007-12-31",300,0,300,"147 - MOBILIARI","AJUNTAMENT"]
["SPLIT","2007-12-31",400,0,400,"147 - MOBILIARI","AJUNTAMENT"]
["CAIXA FORTA NO ENCASTADA","2007-12-31",90,0,90,"147 - MOBILIARI","AJUNTAMENT"]
["CAIXA ENREGISTRADORA","2007-12-31",400,0,400,"147 - MOBILIARI","AJUNTAMENT"]
["SPLIT","2007-12-31",400,0,400,"147 - MOBILIARI","AJUNTAMENT"]
["DESTRUCTORA DE DOCUMENTS","2007-12-31",180,0,180,"147 - MOBILIARI","AJUNTAMENT"]
["SPLIT","2007-12-31",400,0,400,"147 - MOBILIARI","AJUNTAMENT"]
["FONT D'AIGUA","2007-12-31",500,0,500,"147 - MOBILIARI","AJUNTAMENT"]
["SPLIT","2007-12-31",400,0,400,"147 - MOBILIARI","AJUNTAMENT"]
["SPLIT","2007-12-31",400,0,400,"147 - MOBILIARI","AJUNTAMENT"]
["SPLIT","2007-12-31",400,0,400,"147 - MOBILIARI","AJUNTAMENT"]
["SPLIT","2007-12-31",400,0,400,"147 - MOBILIARI","AJUNTAMENT"]
["SPLIT","2007-12-31",400,0,400,"147 - MOBILIARI","AJUNTAMENT"]
["NEVERA","2007-12-31",400,0,400,"147 - MOBILIARI","AJUNTAMENT"]
["SPLIT","2007-12-31",400,0,400,"147 - MOBILIARI","AJUNTAMENT"]
["DESTRUCTORA DE DOCUMENTS","2007-12-31",180,0,180,"147 - MOBILIARI","AJUNTAMENT"]
["SPLIT","2007-12-31",400,0,400,"147 - MOBILIARI","AJUNTAMENT"]
["MAQUINA D'ESCRIURE","2007-12-31",300,0,300,"147 - MOBILIARI","AJUNTAMENT"]
["SPLIT","2007-12-31",400,0,400,"147 - MOBILIARI","AJUNTAMENT"]
["SPLIT","2007-12-31",400,0,400,"147 - MOBILIARI","AJUNTAMENT"]
["SPLIT","2007-12-31",400,0,400,"147 - MOBILIARI","AJUNTAMENT"]
["ARXIVADORS","2007-12-31",480,0,480,"147 - MOBILIARI","AJUNTAMENT"]
["SPLIT","2007-12-31",400,0,400,"147 - MOBILIARI","AJUNTAMENT"]
["DESTRUCTORA DE DOCUMENTS","2007-12-31",180,0,180,"147 - MOBILIARI","AJUNTAMENT"]
["SPLIT","2007-12-31",400,0,400,"147 - MOBILIARI","AJUNTAMENT"]
["DESTRUCTORA DE DOCUMENTS","2007-12-31",180,0,180,"147 - MOBILIARI","AJUNTAMENT"]
["SPLIT","2007-12-31",400,0,400,"147 - MOBILIARI","AJUNTAMENT"]
["SPLIT","2007-12-31",400,0,400,"147 - MOBILIARI","AJUNTAMENT"]
["NEVERA","2007-12-31",400,0,400,"147 - MOBILIARI","AJUNTAMENT"]
["MICROONES","2007-12-31",70,0,70,"147 - MOBILIARI","AJUNTAMENT"]
["SANDWICHERA","2007-12-31",40,0,40,"147 - MOBILIARI","AJUNTAMENT"]
["GRAELLA","2007-12-31",80,0,80,"147 - MOBILIARI","AJUNTAMENT"]
["SPLIT","2007-12-31",400,0,400,"147 - MOBILIARI","AJUNTAMENT"]
["CONJUNT BANDERES","2007-12-31",100,0,100,"147 - MOBILIARI","AJUNTAMENT"]
["SPLIT","2007-12-31",400,0,400,"147 - MOBILIARI","AJUNTAMENT"]
["IMPRESSORA","2007-12-31",380,0,380,"131 - EQUIPAMENTS DE PROCESSO D'INFORMACIÓ","AJUNTAMENT"]
["PC","2007-12-31",700,0,700,"131 - EQUIPAMENTS DE PROCESSO D'INFORMACIÓ","AJUNTAMENT"]
["MONITOR","2007-12-31",90,0,90,"131 - EQUIPAMENTS DE PROCESSO D'INFORMACIÓ","AJUNTAMENT"]
["PC","2007-12-31",700,0,700,"131 - EQUIPAMENTS DE PROCESSO D'INFORMACIÓ","AJUNTAMENT"]
["MONITOR","2007-12-31",90,0,90,"131 - EQUIPAMENTS DE PROCESSO D'INFORMACIÓ","AJUNTAMENT"]
["PC","2007-12-31",700,0,700,"131 - EQUIPAMENTS DE PROCESSO D'INFORMACIÓ","AJUNTAMENT"]
["MONITOR","2007-12-31",90,0,90,"131 - EQUIPAMENTS DE PROCESSO D'INFORMACIÓ","AJUNTAMENT"]
["PC","2007-12-31",700,0,700,"131 - EQUIPAMENTS DE PROCESSO D'INFORMACIÓ","AJUNTAMENT"]
["MONITOR","2007-12-31",90,0,90,"131 - EQUIPAMENTS DE PROCESSO D'INFORMACIÓ","AJUNTAMENT"]
["PC","2007-12-31",700,0,700,"131 - EQUIPAMENTS DE PROCESSO D'INFORMACIÓ","AJUNTAMENT"]
["MONITOR","2007-12-31",90,0,90,"131 - EQUIPAMENTS DE PROCESSO D'INFORMACIÓ","AJUNTAMENT"]
["PC","2007-12-31",700,0,700,"131 - EQUIPAMENTS DE PROCESSO D'INFORMACIÓ","AJUNTAMENT"]
["MONITOR","2007-12-31",90,0,90,"131 - EQUIPAMENTS DE PROCESSO D'INFORMACIÓ","AJUNTAMENT"]
["IMPRESSORA","2007-12-31",380,0,380,"131 - EQUIPAMENTS DE PROCESSO D'INFORMACIÓ","AJUNTAMENT"]
["PC","2007-12-31",700,0,700,"131 - EQUIPAMENTS DE PROCESSO D'INFORMACIÓ","AJUNTAMENT"]
["MONITOR","2007-12-31",90,0,{"$f":"SUM(C643,D643)","v":90},"131 - EQUIPAMENTS DE PROCESSO D'INFORMACIÓ","AJUNTAMENT"]
["PC","2007-12-31",700,0,700,"131 - EQUIPAMENTS DE PROCESSO D'INFORMACIÓ","AJUNTAMENT"]
["MONITOR","2007-12-31",90,0,90,"131 - EQUIPAMENTS DE PROCESSO D'INFORMACIÓ","AJUNTAMENT"]
["PC","2007-12-31",700,0,700,"131 - EQUIPAMENTS DE PROCESSO D'INFORMACIÓ","AJUNTAMENT"]
["MONITOR","2007-12-31",90,0,90,"131 - EQUIPAMENTS DE PROCESSO D'INFORMACIÓ","AJUNTAMENT"]
["PC","2007-12-31",700,0,700,"131 - EQUIPAMENTS DE PROCESSO D'INFORMACIÓ","AJUNTAMENT"]
["MONITOR","2007-12-31",90,0,90,"131 - EQUIPAMENTS DE PROCESSO D'INFORMACIÓ","AJUNTAMENT"]
["PC","2007-12-31",700,0,700,"131 - EQUIPAMENTS DE PROCESSO D'INFORMACIÓ","AJUNTAMENT"]
["MONITOR","2007-12-31",90,0,90,"131 - EQUIPAMENTS DE PROCESSO D'INFORMACIÓ","AJUNTAMENT"]
["IMPRESSORA","2007-12-31",380,0,380,"131 - EQUIPAMENTS DE PROCESSO D'INFORMACIÓ","AJUNTAMENT"]
["IMPRESSORA MULTIFUNCIO","2007-12-31",500,0,500,"131 - EQUIPAMENTS DE PROCESSO D'INFORMACIÓ","AJUNTAMENT"]
["DESTRUCTORA DE DOCUMENTS","2007-12-31",180,0,180,"147 - MOBILIARI","AJUNTAMENT"]
["IMPRESSORA","2007-12-31",380,0,380,"131 - EQUIPAMENTS DE PROCESSO D'INFORMACIÓ","AJUNTAMENT"]
["PC","2007-12-31",700,0,700,"131 - EQUIPAMENTS DE PROCESSO D'INFORMACIÓ","AJUNTAMENT"]
["MONITOR","2007-12-31",90,0,90,"131 - EQUIPAMENTS DE PROCESSO D'INFORMACIÓ","AJUNTAMENT"]
["PC","2007-12-31",700,0,700,"131 - EQUIPAMENTS DE PROCESSO D'INFORMACIÓ","AJUNTAMENT"]
["MONITOR","2007-12-31",90,0,90,"131 - EQUIPAMENTS DE PROCESSO D'INFORMACIÓ","AJUNTAMENT"]
["PC","2007-12-31",700,0,700,"131 - EQUIPAMENTS DE PROCESSO D'INFORMACIÓ","AJUNTAMENT"]
["MONITOR","2007-12-31",90,0,90,"131 - EQUIPAMENTS DE PROCESSO D'INFORMACIÓ","AJUNTAMENT"]
["IMPRESSORA","2007-12-31",380,0,380,"131 - EQUIPAMENTS DE PROCESSO D'INFORMACIÓ","AJUNTAMENT"]
["PC","2007-12-31",700,0,700,"131 - EQUIPAMENTS DE PROCESSO D'INFORMACIÓ","AJUNTAMENT"]
["MONITOR","2007-12-31",90,0,90,"131 - EQUIPAMENTS DE PROCESSO D'INFORMACIÓ","AJUNTAMENT"]
["PC","2007-12-31",700,0,700,"131 - EQUIPAMENTS DE PROCESSO D'INFORMACIÓ","AJUNTAMENT"]
["MONITOR","2007-12-31",90,0,90,"131 - EQUIPAMENTS DE PROCESSO D'INFORMACIÓ","AJUNTAMENT"]
["IMPRESSORA","2007-12-31",380,0,380,"131 - EQUIPAMENTS DE PROCESSO D'INFORMACIÓ","AJUNTAMENT"]
["PC","2007-12-31",700,0,700,"131 - EQUIPAMENTS DE PROCESSO D'INFORMACIÓ","AJUNTAMENT"]
["MONITOR","2007-12-31",90,0,90,"131 - EQUIPAMENTS DE PROCESSO D'INFORMACIÓ","AJUNTAMENT"]
["IMPRESSORA","2007-12-31",380,0,380,"131 - EQUIPAMENTS DE PROCESSO D'INFORMACIÓ","AJUNTAMENT"]
["IMPRESSORA MULTIFUNCIO","2007-12-31",500,0,500,"131 - EQUIPAMENTS DE PROCESSO D'INFORMACIÓ","AJUNTAMENT"]
["PC","2007-12-31",700,0,700,"131 - EQUIPAMENTS DE PROCESSO D'INFORMACIÓ","AJUNTAMENT"]
["MONITOR","2007-12-31",90,0,90,"131 - EQUIPAMENTS DE PROCESSO D'INFORMACIÓ","AJUNTAMENT"]
["IMPRESSORA","2007-12-31",380,0,380,"131 - EQUIPAMENTS DE PROCESSO D'INFORMACIÓ","AJUNTAMENT"]
["PC","2007-12-31",700,0,700,"131 - EQUIPAMENTS DE PROCESSO D'INFORMACIÓ","AJUNTAMENT"]
["MONITOR","2007-12-31",90,0,90,"131 - EQUIPAMENTS DE PROCESSO D'INFORMACIÓ","AJUNTAMENT"]
["IMPRESSORA","2007-12-31",380,0,380,"131 - EQUIPAMENTS DE PROCESSO D'INFORMACIÓ","AJUNTAMENT"]
["PC","2007-12-31",700,0,700,"131 - EQUIPAMENTS DE PROCESSO D'INFORMACIÓ","AJUNTAMENT"]
["MONITOR","2007-12-31",90,0,90,"131 - EQUIPAMENTS DE PROCESSO D'INFORMACIÓ","AJUNTAMENT"]
["PC","2007-12-31",700,0,700,"131 - EQUIPAMENTS DE PROCESSO D'INFORMACIÓ","AJUNTAMENT"]
["MONITOR","2007-12-31",90,0,90,"131 - EQUIPAMENTS DE PROCESSO D'INFORMACIÓ","AJUNTAMENT"]
["PC","2007-12-31",700,0,700,"131 - EQUIPAMENTS DE PROCESSO D'INFORMACIÓ","AJUNTAMENT"]
["MONITOR","2007-12-31",90,0,90,"131 - EQUIPAMENTS DE PROCESSO D'INFORMACIÓ","AJUNTAMENT"]
["PC","2007-12-31",700,0,700,"131 - EQUIPAMENTS DE PROCESSO D'INFORMACIÓ","AJUNTAMENT"]
["MONITOR","2007-12-31",90,0,90,"131 - EQUIPAMENTS DE PROCESSO D'INFORMACIÓ","AJUNTAMENT"]
["IMPRESSORA MULTIFUNCIO","2007-12-31",500,0,500,"131 - EQUIPAMENTS DE PROCESSO D'INFORMACIÓ","AJUNTAMENT"]
["IMPRESSORA","2007-12-31",380,0,380,"131 - EQUIPAMENTS DE PROCESSO D'INFORMACIÓ","AJUNTAMENT"]
["PC","2007-12-31",700,0,700,"131 - EQUIPAMENTS DE PROCESSO D'INFORMACIÓ","AJUNTAMENT"]
["MONITOR","2007-12-31",90,0,90,"131 - EQUIPAMENTS DE PROCESSO D'INFORMACIÓ","AJUNTAMENT"]
["PC","2007-12-31",700,0,700,"131 - EQUIPAMENTS DE PROCESSO D'INFORMACIÓ","AJUNTAMENT"]
["MONITOR","2007-12-31",90,0,90,"131 - EQUIPAMENTS DE PROCESSO D'INFORMACIÓ","AJUNTAMENT"]
["PC","2007-12-31",700,0,700,"131 - EQUIPAMENTS DE PROCESSO D'INFORMACIÓ","AJUNTAMENT"]
["MONITOR","2007-12-31",90,0,90,"131 - EQUIPAMENTS DE PROCESSO D'INFORMACIÓ","AJUNTAMENT"]
["PC","2007-12-31",700,0,700,"131 - EQUIPAMENTS DE PROCESSO D'INFORMACIÓ","AJUNTAMENT"]
["MONITOR","2007-12-31",90,0,90,"131 - EQUIPAMENTS DE PROCESSO D'INFORMACIÓ","AJUNTAMENT"]
["PC","2007-12-31",700,0,700,"131 - EQUIPAMENTS DE PROCESSO D'INFORMACIÓ","AJUNTAMENT"]
["MONITOR","2007-12-31",90,0,90,"131 - EQUIPAMENTS DE PROCESSO D'INFORMACIÓ","AJUNTAMENT"]
["CADIRAM","2007-12-31",31350,0,31350,"147 - MOBILIARI","EDIFICI OAC"]
["TAULES","2007-12-31",3200,0,3200,"147 - MOBILIARI","EDIFICI OAC"]
["ARMARIS","2007-12-31",5200,0,5200,"147 - MOBILIARI","EDIFICI OAC"]
["BUCS DE CALAIXOS","2007-12-31",880,0,880,"147 - MOBILIARI","EDIFICI OAC"]
["SPLIT","2007-12-31",400,0,400,"147 - MOBILIARI","EDIFICI OAC"]
["PC","2007-12-31",700,0,700,"131 - EQUIPAMENTS DE PROCESSO D'INFORMACIÓ","EDIFICI OAC"]
["MONITOR","2007-12-31",90,0,90,"131 - EQUIPAMENTS DE PROCESSO D'INFORMACIÓ","EDIFICI OAC"]
["IMPRESSORA","2007-12-31",380,0,380,"131 - EQUIPAMENTS DE PROCESSO D'INFORMACIÓ","EDIFICI OAC"]
["PC","2007-12-31",700,0,700,"131 - EQUIPAMENTS DE PROCESSO D'INFORMACIÓ","EDIFICI OAC"]
["MONITOR","2007-12-31",90,0,{"$f":"SUM(C707,D707)","v":90},"131 - EQUIPAMENTS DE PROCESSO D'INFORMACIÓ","EDIFICI OAC"]
["IMPRESSORA","2007-12-31",380,0,380,"131 - EQUIPAMENTS DE PROCESSO D'INFORMACIÓ","EDIFICI OAC"]
["PC","2007-12-31",700,0,700,"131 - EQUIPAMENTS DE PROCESSO D'INFORMACIÓ","EDIFICI OAC"]
["MONITOR","2007-12-31",90,0,90,"131 - EQUIPAMENTS DE PROCESSO D'INFORMACIÓ","EDIFICI OAC"]
["IMPRESSORA","2007-12-31",380,0,380,"131 - EQUIPAMENTS DE PROCESSO D'INFORMACIÓ","EDIFICI OAC"]
["IMPRESSORA MULTIFUNCIO","2007-12-31",500,0,500,"131 - EQUIPAMENTS DE PROCESSO D'INFORMACIÓ","EDIFICI OAC"]
["IMPRESSORA MULTIFUNCIO","2007-12-31",500,0,500,"131 - EQUIPAMENTS DE PROCESSO D'INFORMACIÓ","EDIFICI OAC"]
["DESFIBRIL·LADOR","2007-12-31",1100,0,1100,"147 - MOBILIARI","EDIFICI OAC"]
["PC","2007-12-31",700,0,700,"131 - EQUIPAMENTS DE PROCESSO D'INFORMACIÓ","EDIFICI OAC"]
["MONITOR","2007-12-31",90,0,90,"131 - EQUIPAMENTS DE PROCESSO D'INFORMACIÓ","EDIFICI OAC"]
["IMPRESSORA","2007-12-31",380,0,380,"131 - EQUIPAMENTS DE PROCESSO D'INFORMACIÓ","EDIFICI OAC"]
["PC","2007-12-31",700,0,700,"131 - EQUIPAMENTS DE PROCESSO D'INFORMACIÓ","EDIFICI OAC"]
["MONITOR","2007-12-31",90,0,90,"131 - EQUIPAMENTS DE PROCESSO D'INFORMACIÓ","EDIFICI OAC"]
["IMPRESSORA","2007-12-31",380,0,380,"131 - EQUIPAMENTS DE PROCESSO D'INFORMACIÓ","EDIFICI OAC"]
["PC","2007-12-31",700,0,700,"131 - EQUIPAMENTS DE PROCESSO D'INFORMACIÓ","EDIFICI OAC"]
["MONITOR","2007-12-31",90,0,90,"131 - EQUIPAMENTS DE PROCESSO D'INFORMACIÓ","EDIFICI OAC"]
["SPLIT","2007-12-31",400,0,400,"147 - MOBILIARI","EDIFICI OAC"]
["SPLIT","2007-12-31",400,0,400,"147 - MOBILIARI","EDIFICI OAC"]
["PC","2007-12-31",700,0,700,"131 - EQUIPAMENTS DE PROCESSO D'INFORMACIÓ","EDIFICI OAC"]
["MONITOR","2007-12-31",90,0,90,"131 - EQUIPAMENTS DE PROCESSO D'INFORMACIÓ","EDIFICI OAC"]
["IMPRESSORA","2007-12-31",380,0,380,"131 - EQUIPAMENTS DE PROCESSO D'INFORMACIÓ","EDIFICI OAC"]
["PISSARRA","2007-12-31",490,0,490,"147 - MOBILIARI","EDIFICI OAC"]
["EXPOSITORS","2007-12-31",60,0,60,"147 - MOBILIARI","EDIFICI OAC"]
["TELEVISOR","2007-12-31",800,0,800,"147 - MOBILIARI","EDIFICI OAC"]
["SPLIT","2007-12-31",400,0,400,"147 - MOBILIARI","EDIFICI OAC"]
["MOSTRADOR","2007-12-31",400,0,400,"147 - MOBILIARI","EDIFICI OAC"]
["SPLIT","2007-12-31",400,0,400,"147 - MOBILIARI","EDIFICI OAC"]
["PC","2007-12-31",700,0,700,"131 - EQUIPAMENTS DE PROCESSO D'INFORMACIÓ","EDIFICI OAC"]
["MONITOR","2007-12-31",90,0,90,"131 - EQUIPAMENTS DE PROCESSO D'INFORMACIÓ","EDIFICI OAC"]
["IMPRESSORA","2007-12-31",380,0,380,"131 - EQUIPAMENTS DE PROCESSO D'INFORMACIÓ","EDIFICI OAC"]
["SPLIT","2007-12-31",400,0,400,"147 - MOBILIARI","EDIFICI OAC"]
["ARXIVADORS","2007-12-31",720,0,720,"147 - MOBILIARI","EDIFICI OAC"]
["PC","2007-12-31",700,0,700,"131 - EQUIPAMENTS DE PROCESSO D'INFORMACIÓ","EDIFICI OAC"]
["MONITOR","2007-12-31",90,0,90,"131 - EQUIPAMENTS DE PROCESSO D'INFORMACIÓ","EDIFICI OAC"]
["IMPRESSORA","2007-12-31",380,0,380,"131 - EQUIPAMENTS DE PROCESSO D'INFORMACIÓ","EDIFICI OAC"]
["PC","2007-12-31",700,0,700,"131 - EQUIPAMENTS DE PROCESSO D'INFORMACIÓ","EDIFICI OAC"]
["MONITOR","2007-12-31",90,0,90,"131 - EQUIPAMENTS DE PROCESSO D'INFORMACIÓ","EDIFICI OAC"]
["PC","2007-12-31",700,0,700,"131 - EQUIPAMENTS DE PROCESSO D'INFORMACIÓ","EDIFICI OAC"]
["MONITOR","2007-12-31",90,0,90,"131 - EQUIPAMENTS DE PROCESSO D'INFORMACIÓ","EDIFICI OAC"]
["EXPENDEDOR TICKETS","2007-12-31",180,0,180,"147 - MOBILIARI","EDIFICI OAC"]
["CONJUNT BANDERES","2007-12-31",100,0,100,"147 - MOBILIARI","EDIFICI OAC"]
["BAFLE","2007-12-31",460,0,460,"147 - MOBILIARI","EDIFICI OAC"]
["BAFLE","2007-12-31",460,0,460,"147 - MOBILIARI","EDIFICI OAC"]
["MICROFON","2007-12-31",80,0,80,"147 - MOBILIARI","EDIFICI OAC"]
["MICROFON","2007-12-31",80,0,80,"147 - MOBILIARI","EDIFICI OAC"]
["MICROFON","2007-12-31",80,0,80,"147 - MOBILIARI","EDIFICI OAC"]
["MICROFON","2007-12-31",80,0,80,"147 - MOBILIARI","EDIFICI OAC"]
["MICROFON","2007-12-31",80,0,80,"147 - MOBILIARI","EDIFICI OAC"]
["MICROFON","2007-12-31",80,0,80,"147 - MOBILIARI","EDIFICI OAC"]
["MICROFON","2007-12-31",80,0,80,"147 - MOBILIARI","EDIFICI OAC"]
["MICROFON","2007-12-31",80,0,80,"147 - MOBILIARI","EDIFICI OAC"]
["MICROFON","2007-12-31",80,0,80,"147 - MOBILIARI","EDIFICI OAC"]
["MICROFON","2007-12-31",80,0,80,"147 - MOBILIARI","EDIFICI OAC"]
["MICROFON","2007-12-31",80,0,80,"147 - MOBILIARI","EDIFICI OAC"]
["MICROFON","2007-12-31",80,0,80,"147 - MOBILIARI","EDIFICI OAC"]
["PANTALLA DE PROJECCIÓ","2007-12-31",90,0,90,"147 - MOBILIARI","EDIFICI OAC"]
["REPRODUCTOR DVD","2007-12-31",60,0,60,"147 - MOBILIARI","EDIFICI OAC"]
["REPRODUCTOR CASETE","2007-12-31",30,0,30,"147 - MOBILIARI","EDIFICI OAC"]
["AMPLIFICADOR","2007-12-31",300,0,300,"147 - MOBILIARI","EDIFICI OAC"]
["RECEPTOR MICROFON","2007-12-31",120,0,120,"147 - MOBILIARI","EDIFICI OAC"]
["AMPLIFICADOR","2007-12-31",300,0,300,"147 - MOBILIARI","EDIFICI OAC"]
["MICROFON","2007-12-31",80,0,80,"147 - MOBILIARI","EDIFICI OAC"]
["AMPLIFICADOR","2007-12-31",300,0,300,"147 - MOBILIARI","EDIFICI OAC"]
["BAFLE","2007-12-31",460,0,460,"147 - MOBILIARI","EDIFICI OAC"]
["BAFLE","2007-12-31",460,0,{"$f":"SUM(C771,D771)","v":460},"147 - MOBILIARI","EDIFICI OAC"]
["ESCALES","2007-12-31",130,0,130,"147 - MOBILIARI","EDIFICI OAC"]
["IMPRESSORA","2007-12-31",380,0,380,"131 - EQUIPAMENTS DE PROCESSO D'INFORMACIÓ","EDIFICI OAC"]
["IMPRESSORA","2007-12-31",380,0,380,"131 - EQUIPAMENTS DE PROCESSO D'INFORMACIÓ","EDIFICI OAC"]
["PC","2007-12-31",700,0,700,"131 - EQUIPAMENTS DE PROCESSO D'INFORMACIÓ","EDIFICI OAC"]
["MONITOR","2007-12-31",90,0,90,"131 - EQUIPAMENTS DE PROCESSO D'INFORMACIÓ","EDIFICI OAC"]
["ORDINADOR PORTATIL","2007-12-31",600,0,600,"131 - EQUIPAMENTS DE PROCESSO D'INFORMACIÓ","EDIFICI OAC"]
["PC","2007-12-31",700,0,700,"131 - EQUIPAMENTS DE PROCESSO D'INFORMACIÓ","EDIFICI OAC"]
["PC","2007-12-31",700,0,700,"131 - EQUIPAMENTS DE PROCESSO D'INFORMACIÓ","EDIFICI OAC"]
["PC","2007-12-31",700,0,700,"131 - EQUIPAMENTS DE PROCESSO D'INFORMACIÓ","EDIFICI OAC"]
["MONITOR","2007-12-31",90,0,90,"131 - EQUIPAMENTS DE PROCESSO D'INFORMACIÓ","EDIFICI OAC"]
["EMISSOR WIFI","2007-12-31",130,0,130,"131 - EQUIPAMENTS DE PROCESSO D'INFORMACIÓ","EDIFICI OAC"]
["EMISSOR WIFI","2007-12-31",130,0,130,"131 - EQUIPAMENTS DE PROCESSO D'INFORMACIÓ","EDIFICI OAC"]
["MONITOR","2007-12-31",90,0,90,"131 - EQUIPAMENTS DE PROCESSO D'INFORMACIÓ","EDIFICI OAC"]
["MONITOR","2007-12-31",90,0,90,"131 - EQUIPAMENTS DE PROCESSO D'INFORMACIÓ","EDIFICI OAC"]
["MONITOR","2007-12-31",90,0,90,"131 - EQUIPAMENTS DE PROCESSO D'INFORMACIÓ","EDIFICI OAC"]
["PC","2007-12-31",700,0,700,"131 - EQUIPAMENTS DE PROCESSO D'INFORMACIÓ","EDIFICI OAC"]
["PC","2007-12-31",700,0,700,"131 - EQUIPAMENTS DE PROCESSO D'INFORMACIÓ","EDIFICI OAC"]
["PC","2007-12-31",700,0,700,"131 - EQUIPAMENTS DE PROCESSO D'INFORMACIÓ","EDIFICI OAC"]
["PC","2007-12-31",700,0,700,"131 - EQUIPAMENTS DE PROCESSO D'INFORMACIÓ","EDIFICI OAC"]
["PC","2007-12-31",700,0,700,"131 - EQUIPAMENTS DE PROCESSO D'INFORMACIÓ","EDIFICI OAC"]
["MONITOR","2007-12-31",90,0,90,"131 - EQUIPAMENTS DE PROCESSO D'INFORMACIÓ","EDIFICI OAC"]
["MONITOR","2007-12-31",90,0,90,"131 - EQUIPAMENTS DE PROCESSO D'INFORMACIÓ","EDIFICI OAC"]
["MONITOR","2007-12-31",90,0,90,"131 - EQUIPAMENTS DE PROCESSO D'INFORMACIÓ","EDIFICI OAC"]
["ORDINADOR PORTATIL","2007-12-31",600,0,600,"131 - EQUIPAMENTS DE PROCESSO D'INFORMACIÓ","EDIFICI OAC"]
["ORDINADOR PORTATIL","2007-12-31",600,0,600,"131 - EQUIPAMENTS DE PROCESSO D'INFORMACIÓ","EDIFICI OAC"]
["ORDINADOR PORTATIL","2007-12-31",600,0,600,"131 - EQUIPAMENTS DE PROCESSO D'INFORMACIÓ","EDIFICI OAC"]
["ORDINADOR PORTATIL","2007-12-31",600,0,600,"131 - EQUIPAMENTS DE PROCESSO D'INFORMACIÓ","EDIFICI OAC"]
["ORDINADOR PORTATIL","2007-12-31",600,0,600,"131 - EQUIPAMENTS DE PROCESSO D'INFORMACIÓ","EDIFICI OAC"]
["ORDINADOR PORTATIL","2007-12-31",600,0,600,"131 - EQUIPAMENTS DE PROCESSO D'INFORMACIÓ","EDIFICI OAC"]
["CANO PROJECTOR","2007-12-31",800,0,800,"147 - MOBILIARI","EDIFICI OAC"]
["SPLIT","2007-12-31",400,0,400,"147 - MOBILIARI","EDIFICI OAC"]
["SPLIT","2007-12-31",400,0,400,"147 - MOBILIARI","EDIFICI OAC"]
["SPLIT","2007-12-31",400,0,400,"147 - MOBILIARI","EDIFICI OAC"]
["NEVERA","2007-12-31",400,0,400,"147 - MOBILIARI","EDIFICI OAC"]
["PC","2007-12-31",700,0,700,"131 - EQUIPAMENTS DE PROCESSO D'INFORMACIÓ","EDIFICI OAC"]
["PC","2007-12-31",700,0,700,"131 - EQUIPAMENTS DE PROCESSO D'INFORMACIÓ","EDIFICI OAC"]
["PC","2007-12-31",700,0,700,"131 - EQUIPAMENTS DE PROCESSO D'INFORMACIÓ","EDIFICI OAC"]
["PC","2007-12-31",700,0,700,"131 - EQUIPAMENTS DE PROCESSO D'INFORMACIÓ","EDIFICI OAC"]
["PC","2007-12-31",700,0,700,"131 - EQUIPAMENTS DE PROCESSO D'INFORMACIÓ","EDIFICI OAC"]
["PC","2007-12-31",700,0,700,"131 - EQUIPAMENTS DE PROCESSO D'INFORMACIÓ","EDIFICI OAC"]
["PC","2007-12-31",700,0,700,"131 - EQUIPAMENTS DE PROCESSO D'INFORMACIÓ","EDIFICI OAC"]
["PC","2007-12-31",700,0,700,"131 - EQUIPAMENTS DE PROCESSO D'INFORMACIÓ","EDIFICI OAC"]
["PC","2007-12-31",700,0,700,"131 - EQUIPAMENTS DE PROCESSO D'INFORMACIÓ","EDIFICI OAC"]
["PC","2007-12-31",700,0,700,"131 - EQUIPAMENTS DE PROCESSO D'INFORMACIÓ","EDIFICI OAC"]
["ARMARIS RACK","2007-12-31",600,0,600,"147 - MOBILIARI","EDIFICI OAC"]
["SAI","2007-12-31",190,0,190,"147 - MOBILIARI","EDIFICI OAC"]
["SERVIDOR","2007-12-31",300,0,300,"131 - EQUIPAMENTS DE PROCESSO D'INFORMACIÓ","EDIFICI OAC"]
["SERVIDOR","2007-12-31",300,0,300,"131 - EQUIPAMENTS DE PROCESSO D'INFORMACIÓ","EDIFICI OAC"]
["SERVIDOR","2007-12-31",300,0,300,"131 - EQUIPAMENTS DE PROCESSO D'INFORMACIÓ","EDIFICI OAC"]
["SERVIDOR","2007-12-31",300,0,300,"131 - EQUIPAMENTS DE PROCESSO D'INFORMACIÓ","EDIFICI OAC"]
["SERVIDOR","2007-12-31",300,0,300,"131 - EQUIPAMENTS DE PROCESSO D'INFORMACIÓ","EDIFICI OAC"]
["SERVIDOR","2007-12-31",300,0,300,"131 - EQUIPAMENTS DE PROCESSO D'INFORMACIÓ","EDIFICI OAC"]
["SERVIDOR","2007-12-31",300,0,300,"131 - EQUIPAMENTS DE PROCESSO D'INFORMACIÓ","EDIFICI OAC"]
["SERVIDOR","2007-12-31",300,0,300,"131 - EQUIPAMENTS DE PROCESSO D'INFORMACIÓ","EDIFICI OAC"]
["SERVIDOR","2007-12-31",300,0,300,"131 - EQUIPAMENTS DE PROCESSO D'INFORMACIÓ","EDIFICI OAC"]
["SERVIDOR","2007-12-31",300,0,300,"131 - EQUIPAMENTS DE PROCESSO D'INFORMACIÓ","EDIFICI OAC"]
["SERVIDOR","2007-12-31",300,0,300,"131 - EQUIPAMENTS DE PROCESSO D'INFORMACIÓ","EDIFICI OAC"]
["EQUIP DE XARXA","2007-12-31",50,0,50,"131 - EQUIPAMENTS DE PROCESSO D'INFORMACIÓ","EDIFICI OAC"]
["SERVIDOR","2007-12-31",300,0,300,"131 - EQUIPAMENTS DE PROCESSO D'INFORMACIÓ","EDIFICI OAC"]
["EQUIP DE XARXA","2007-12-31",50,0,50,"131 - EQUIPAMENTS DE PROCESSO D'INFORMACIÓ","EDIFICI OAC"]
["SPLIT","2007-12-31",400,0,400,"147 - MOBILIARI","EDIFICI OAC"]
["TRANSPORTADOR ","2007-12-31",70,0,70,"147 - MOBILIARI","EDIFICI OAC"]
["PC","2007-12-31",700,0,700,"131 - EQUIPAMENTS DE PROCESSO D'INFORMACIÓ","EDIFICI OAC"]
["PC","2007-12-31",700,0,{"$f":"SUM(C835,D835)","v":700},"131 - EQUIPAMENTS DE PROCESSO D'INFORMACIÓ","EDIFICI OAC"]
["MONITOR","2007-12-31",90,0,90,"131 - EQUIPAMENTS DE PROCESSO D'INFORMACIÓ","EDIFICI OAC"]
["CANO PROJECTOR","2007-12-31",800,0,800,"147 - MOBILIARI","EDIFICI OAC"]
["CANO PROJECTOR","2007-12-31",800,0,800,"147 - MOBILIARI","EDIFICI OAC"]
["CADIRAM","2007-12-31",7220,0,7220,"147 - MOBILIARI","BRIGADA"]
["TAULES","2007-12-31",2400,0,2400,"147 - MOBILIARI","BRIGADA"]
["ARMARIS","2007-12-31",3400,0,3400,"147 - MOBILIARI","BRIGADA"]
["BUCS DE CALAIXOS","2007-12-31",560,0,560,"147 - MOBILIARI","BRIGADA"]
["MOSTRADOR","2007-12-31",400,0,400,"147 - MOBILIARI","BRIGADA"]
["ESCALES","2007-12-31",2210,0,2210,"147 - MOBILIARI","BRIGADA"]
["ARMARIETS","2007-12-31",6400,0,6400,"147 - MOBILIARI","BRIGADA"]
["PISSARRA","2007-12-31",420,0,420,"147 - MOBILIARI","BRIGADA"]
["PLATAFORMA","2007-12-31",350,0,350,"135 - MAQUINÀRIA I INSTAL·LACIONS TÈCNIQUES","BRIGADA"]
["TALLADORA DE TERRA","2007-12-31",150,0,150,"135 - MAQUINÀRIA I INSTAL·LACIONS TÈCNIQUES","BRIGADA"]
["APISONADORA","2007-12-31",6000,0,6000,"135 - MAQUINÀRIA I INSTAL·LACIONS TÈCNIQUES","BRIGADA"]
["TALLADORA ","2007-12-31",350,0,350,"135 - MAQUINÀRIA I INSTAL·LACIONS TÈCNIQUES","BRIGADA"]
["TALLADORA ","2007-12-31",350,0,350,"135 - MAQUINÀRIA I INSTAL·LACIONS TÈCNIQUES","BRIGADA"]
["TALLADORA","2007-12-31",350,0,350,"135 - MAQUINÀRIA I INSTAL·LACIONS TÈCNIQUES","BRIGADA"]
["FORMIGONERA","2007-12-31",900,0,900,"135 - MAQUINÀRIA I INSTAL·LACIONS TÈCNIQUES","BRIGADA"]
["CARRO TRANSPORTADOR","2007-12-31",100,0,100,"135 - MAQUINÀRIA I INSTAL·LACIONS TÈCNIQUES","BRIGADA"]
["FORMIGONERA","2007-12-31",900,0,900,"135 - MAQUINÀRIA I INSTAL·LACIONS TÈCNIQUES","BRIGADA"]
["FORMIGONERA","2007-12-31",900,0,900,"135 - MAQUINÀRIA I INSTAL·LACIONS TÈCNIQUES","BRIGADA"]
["FORMIGONERA","2007-12-31",900,0,900,"135 - MAQUINÀRIA I INSTAL·LACIONS TÈCNIQUES","BRIGADA"]
["FOCUS","2007-12-31",560,0,560,"147 - MOBILIARI","BRIGADA"]
["COMPRESSOR","2007-12-31",150,0,150,"135 - MAQUINÀRIA I INSTAL·LACIONS TÈCNIQUES","BRIGADA"]
["NETEJADORA","2007-12-31",120,0,120,"135 - MAQUINÀRIA I INSTAL·LACIONS TÈCNIQUES","BRIGADA"]
["COMPRESSOR","2007-12-31",150,0,150,"135 - MAQUINÀRIA I INSTAL·LACIONS TÈCNIQUES","BRIGADA"]
["ASPIRADORA","2007-12-31",80,0,80,"135 - MAQUINÀRIA I INSTAL·LACIONS TÈCNIQUES","BRIGADA"]
["MOLADORA ","2007-12-31",130,0,130,"135 - MAQUINÀRIA I INSTAL·LACIONS TÈCNIQUES","BRIGADA"]
["MARTELL PERCUTOR","2007-12-31",110,0,110,"135 - MAQUINÀRIA I INSTAL·LACIONS TÈCNIQUES","BRIGADA"]
["TALADRE","2007-12-31",130,0,130,"135 - MAQUINÀRIA I INSTAL·LACIONS TÈCNIQUES","BRIGADA"]
["GENERADOR ","2007-12-31",300,0,300,"135 - MAQUINÀRIA I INSTAL·LACIONS TÈCNIQUES","BRIGADA"]
["MOTOSERRA","2007-12-31",110,0,110,"135 - MAQUINÀRIA I INSTAL·LACIONS TÈCNIQUES","BRIGADA"]
["TRANSPALET","2007-12-31",1500,0,1500,"135 - MAQUINÀRIA I INSTAL·LACIONS TÈCNIQUES","BRIGADA"]
["TALADRE","2007-12-31",130,0,130,"135 - MAQUINÀRIA I INSTAL·LACIONS TÈCNIQUES","BRIGADA"]
["TALADRE","2007-12-31",130,0,130,"135 - MAQUINÀRIA I INSTAL·LACIONS TÈCNIQUES","BRIGADA"]
["TALADRE","2007-12-31",130,0,130,"135 - MAQUINÀRIA I INSTAL·LACIONS TÈCNIQUES","BRIGADA"]
["ATORNILLADOR","2007-12-31",700,0,700,"135 - MAQUINÀRIA I INSTAL·LACIONS TÈCNIQUES","BRIGADA"]
["MOLADORA ","2007-12-31",130,0,130,"135 - MAQUINÀRIA I INSTAL·LACIONS TÈCNIQUES","BRIGADA"]
["SERRA DE CALAR","2007-12-31",100,0,100,"135 - MAQUINÀRIA I INSTAL·LACIONS TÈCNIQUES","BRIGADA"]
["SERRA CIRCULAR","2007-12-31",100,0,100,"135 - MAQUINÀRIA I INSTAL·LACIONS TÈCNIQUES","BRIGADA"]
["DECAPADORA","2007-12-31",35,0,35,"135 - MAQUINÀRIA I INSTAL·LACIONS TÈCNIQUES","BRIGADA"]
["ATORNILLADOR","2007-12-31",700,0,700,"135 - MAQUINÀRIA I INSTAL·LACIONS TÈCNIQUES","BRIGADA"]
["ATORNILLADOR","2007-12-31",700,0,700,"135 - MAQUINÀRIA I INSTAL·LACIONS TÈCNIQUES","BRIGADA"]
["ATORNILLADOR","2007-12-31",700,0,700,"135 - MAQUINÀRIA I INSTAL·LACIONS TÈCNIQUES","BRIGADA"]
["TALADRE","2007-12-31",130,0,130,"135 - MAQUINÀRIA I INSTAL·LACIONS TÈCNIQUES","BRIGADA"]
["SERRA DE CALAR","2007-12-31",100,0,100,"135 - MAQUINÀRIA I INSTAL·LACIONS TÈCNIQUES","BRIGADA"]
["MARTELL PERCUTOR","2007-12-31",110,0,110,"135 - MAQUINÀRIA I INSTAL·LACIONS TÈCNIQUES","BRIGADA"]
["MARTELL PERCUTOR","2007-12-31",110,0,110,"135 - MAQUINÀRIA I INSTAL·LACIONS TÈCNIQUES","BRIGADA"]
["GENERADOR ","2007-12-31",300,0,300,"135 - MAQUINÀRIA I INSTAL·LACIONS TÈCNIQUES","BRIGADA"]
["GENERADOR ","2007-12-31",300,0,300,"135 - MAQUINÀRIA I INSTAL·LACIONS TÈCNIQUES","BRIGADA"]
["PISTOLA","2007-12-31",600,0,600,"135 - MAQUINÀRIA I INSTAL·LACIONS TÈCNIQUES","BRIGADA"]
["TALADRE","2007-12-31",130,0,130,"135 - MAQUINÀRIA I INSTAL·LACIONS TÈCNIQUES","BRIGADA"]
["TALADRE PERCUTOR","2007-12-31",220,0,220,"135 - MAQUINÀRIA I INSTAL·LACIONS TÈCNIQUES","BRIGADA"]
["TALLADORA CERÀMICA","2007-12-31",130,0,130,"135 - MAQUINÀRIA I INSTAL·LACIONS TÈCNIQUES","BRIGADA"]
["TALLADORA CERÀMICA","2007-12-31",130,0,130,"135 - MAQUINÀRIA I INSTAL·LACIONS TÈCNIQUES","BRIGADA"]
["TALLADORA CERÀMICA","2007-12-31",130,0,130,"135 - MAQUINÀRIA I INSTAL·LACIONS TÈCNIQUES","BRIGADA"]
["MOLADORA ","2007-12-31",130,0,130,"135 - MAQUINÀRIA I INSTAL·LACIONS TÈCNIQUES","BRIGADA"]
["MARTELL PERCUTOR","2007-12-31",110,0,110,"135 - MAQUINÀRIA I INSTAL·LACIONS TÈCNIQUES","BRIGADA"]
["MARTELL PERCUTOR","2007-12-31",110,0,110,"135 - MAQUINÀRIA I INSTAL·LACIONS TÈCNIQUES","BRIGADA"]
["MARTELL PERCUTOR","2007-12-31",110,0,110,"135 - MAQUINÀRIA I INSTAL·LACIONS TÈCNIQUES","BRIGADA"]
["MARTELL PERCUTOR","2007-12-31",110,0,110,"135 - MAQUINÀRIA I INSTAL·LACIONS TÈCNIQUES","BRIGADA"]
["MARTELL PERCUTOR","2007-12-31",110,0,110,"135 - MAQUINÀRIA I INSTAL·LACIONS TÈCNIQUES","BRIGADA"]
["GENERADOR","2007-12-31",300,0,300,"135 - MAQUINÀRIA I INSTAL·LACIONS TÈCNIQUES","BRIGADA"]
["GENERADOR","2007-12-31",300,0,{"$f":"SUM(C899,D899)","v":300},"135 - MAQUINÀRIA I INSTAL·LACIONS TÈCNIQUES","BRIGADA"]
["GENERADOR","2007-12-31",300,0,300,"135 - MAQUINÀRIA I INSTAL·LACIONS TÈCNIQUES","BRIGADA"]
["GENERADOR","2007-12-31",300,0,300,"135 - MAQUINÀRIA I INSTAL·LACIONS TÈCNIQUES","BRIGADA"]
["GENERADOR","2007-12-31",300,0,300,"135 - MAQUINÀRIA I INSTAL·LACIONS TÈCNIQUES","BRIGADA"]
["GENERADOR","2007-12-31",300,0,300,"135 - MAQUINÀRIA I INSTAL·LACIONS TÈCNIQUES","BRIGADA"]
["GENERADOR","2007-12-31",300,0,300,"135 - MAQUINÀRIA I INSTAL·LACIONS TÈCNIQUES","BRIGADA"]
["CARRO TRANSPORTADOR","2007-12-31",150,0,150,"135 - MAQUINÀRIA I INSTAL·LACIONS TÈCNIQUES","BRIGADA"]
["TALLA GESPA","2007-12-31",500,0,500,"135 - MAQUINÀRIA I INSTAL·LACIONS TÈCNIQUES","BRIGADA"]
["MOTOCULTOR","2007-12-31",450,0,450,"135 - MAQUINÀRIA I INSTAL·LACIONS TÈCNIQUES","BRIGADA"]
["MOTOCULTOR","2007-12-31",450,0,450,"135 - MAQUINÀRIA I INSTAL·LACIONS TÈCNIQUES","BRIGADA"]
["COMPRESSOR","2007-12-31",150,0,150,"135 - MAQUINÀRIA I INSTAL·LACIONS TÈCNIQUES","BRIGADA"]
["TALLA GESPA","2007-12-31",500,0,500,"135 - MAQUINÀRIA I INSTAL·LACIONS TÈCNIQUES","BRIGADA"]
["FUMIGADORA","2007-12-31",160,0,160,"135 - MAQUINÀRIA I INSTAL·LACIONS TÈCNIQUES","BRIGADA"]
["TRITURADORA FUSTA","2007-12-31",230,0,230,"135 - MAQUINÀRIA I INSTAL·LACIONS TÈCNIQUES","BRIGADA"]
["TALLA GESPA","2007-12-31",500,0,500,"135 - MAQUINÀRIA I INSTAL·LACIONS TÈCNIQUES","BRIGADA"]
["MOTOSERRA","2007-12-31",110,0,110,"135 - MAQUINÀRIA I INSTAL·LACIONS TÈCNIQUES","BRIGADA"]
["MOLADORA ","2007-12-31",130,0,130,"135 - MAQUINÀRIA I INSTAL·LACIONS TÈCNIQUES","BRIGADA"]
["TORNAVÍS ","2007-12-31",80,0,80,"135 - MAQUINÀRIA I INSTAL·LACIONS TÈCNIQUES","BRIGADA"]
["DESBROÇADORA","2007-12-31",120,0,120,"135 - MAQUINÀRIA I INSTAL·LACIONS TÈCNIQUES","BRIGADA"]
["DESBROÇADORA","2007-12-31",120,0,120,"135 - MAQUINÀRIA I INSTAL·LACIONS TÈCNIQUES","BRIGADA"]
["DESBROÇADORA","2007-12-31",120,0,120,"135 - MAQUINÀRIA I INSTAL·LACIONS TÈCNIQUES","BRIGADA"]
["TALLA SETOS","2007-12-31",500,0,500,"135 - MAQUINÀRIA I INSTAL·LACIONS TÈCNIQUES","BRIGADA"]
["MOTOSERRA","2007-12-31",110,0,110,"135 - MAQUINÀRIA I INSTAL·LACIONS TÈCNIQUES","BRIGADA"]
["MOTOSERRA","2007-12-31",110,0,110,"135 - MAQUINÀRIA I INSTAL·LACIONS TÈCNIQUES","BRIGADA"]
["BUFADORA","2007-12-31",330,0,330,"135 - MAQUINÀRIA I INSTAL·LACIONS TÈCNIQUES","BRIGADA"]
["MOTOSERRA","2007-12-31",110,0,110,"135 - MAQUINÀRIA I INSTAL·LACIONS TÈCNIQUES","BRIGADA"]
["DESBROÇADORA","2007-12-31",120,0,120,"135 - MAQUINÀRIA I INSTAL·LACIONS TÈCNIQUES","BRIGADA"]
["SPLIT","2007-12-31",400,0,400,"147 - MOBILIARI","BRIGADA"]
["TELEVISOR","2007-12-31",800,0,800,"147 - MOBILIARI","BRIGADA"]
["PC","2007-12-31",700,0,700,"131 - EQUIPAMENTS DE PROCESSO D'INFORMACIÓ","BRIGADA"]
["MONITOR","2007-12-31",90,0,90,"131 - EQUIPAMENTS DE PROCESSO D'INFORMACIÓ","BRIGADA"]
["IMPRESSORA","2007-12-31",380,0,380,"131 - EQUIPAMENTS DE PROCESSO D'INFORMACIÓ","BRIGADA"]
["IMPRESSORA","2007-12-31",380,0,380,"131 - EQUIPAMENTS DE PROCESSO D'INFORMACIÓ","BRIGADA"]
["FAX","2007-12-31",60,0,60,"131 - EQUIPAMENTS DE PROCESSO D'INFORMACIÓ","BRIGADA"]
["CISSALLA ","2007-12-31",360,0,360,"147 - MOBILIARI","BRIGADA"]
["ARMARIS RACK","2007-12-31",200,0,200,"147 - MOBILIARI","BRIGADA"]
["HIBRID TELEFONIC","2007-12-31",110,0,110,"147 - MOBILIARI","BRIGADA"]
["SPLIT","2007-12-31",400,0,400,"147 - MOBILIARI","BRIGADA"]
["SPLIT","2007-12-31",400,0,400,"147 - MOBILIARI","BRIGADA"]
["NEVERA","2007-12-31",400,0,400,"147 - MOBILIARI","BRIGADA"]
["MICROONES","2007-12-31",70,0,70,"147 - MOBILIARI","BRIGADA"]
["CAFETERA","2007-12-31",100,0,100,"147 - MOBILIARI","BRIGADA"]
["FONT D'AIGUA","2007-12-31",500,0,500,"147 - MOBILIARI","BRIGADA"]
["SPLIT","2007-12-31",400,0,400,"147 - MOBILIARI","BRIGADA"]
["PC","2007-12-31",700,0,700,"131 - EQUIPAMENTS DE PROCESSO D'INFORMACIÓ","BRIGADA"]
["MONITOR","2007-12-31",90,0,90,"131 - EQUIPAMENTS DE PROCESSO D'INFORMACIÓ","BRIGADA"]
["ESCANER","2007-12-31",150,0,150,"131 - EQUIPAMENTS DE PROCESSO D'INFORMACIÓ","BRIGADA"]
["IMPRESSORA","2007-12-31",380,0,380,"131 - EQUIPAMENTS DE PROCESSO D'INFORMACIÓ","BRIGADA"]
["ENQUADERNADORA","2007-12-31",80,0,80,"147 - MOBILIARI","BRIGADA"]
["PC","2007-12-31",700,0,700,"131 - EQUIPAMENTS DE PROCESSO D'INFORMACIÓ","BRIGADA"]
["MONITOR","2007-12-31",90,0,90,"131 - EQUIPAMENTS DE PROCESSO D'INFORMACIÓ","BRIGADA"]
["IMPRESSORA","2007-12-31",380,0,380,"131 - EQUIPAMENTS DE PROCESSO D'INFORMACIÓ","BRIGADA"]
["SPLIT","2007-12-31",400,0,400,"147 - MOBILIARI","BRIGADA"]
["PC","2007-12-31",700,0,700,"131 - EQUIPAMENTS DE PROCESSO D'INFORMACIÓ","BRIGADA"]
["MONITOR","2007-12-31",90,0,90,"131 - EQUIPAMENTS DE PROCESSO D'INFORMACIÓ","BRIGADA"]
["MOLADORA ","2007-12-31",130,0,130,"135 - MAQUINÀRIA I INSTAL·LACIONS TÈCNIQUES","BRIGADA"]
["TALADRE","2007-12-31",130,0,130,"135 - MAQUINÀRIA I INSTAL·LACIONS TÈCNIQUES","BRIGADA"]
["TALADRE","2007-12-31",130,0,130,"135 - MAQUINÀRIA I INSTAL·LACIONS TÈCNIQUES","BRIGADA"]
["ATORNILLADOR","2007-12-31",700,0,700,"135 - MAQUINÀRIA I INSTAL·LACIONS TÈCNIQUES","BRIGADA"]
["ATORNILLADOR","2007-12-31",700,0,700,"135 - MAQUINÀRIA I INSTAL·LACIONS TÈCNIQUES","BRIGADA"]
["TESTER","2007-12-31",20,0,20,"135 - MAQUINÀRIA I INSTAL·LACIONS TÈCNIQUES","BRIGADA"]
["EXPANDIDORA","2007-12-31",220,0,220,"135 - MAQUINÀRIA I INSTAL·LACIONS TÈCNIQUES","BRIGADA"]
["TESTER","2007-12-31",20,0,20,"135 - MAQUINÀRIA I INSTAL·LACIONS TÈCNIQUES","BRIGADA"]
["VEHICLE","2007-12-31",21000,0,21000,"134 - VEHICLES","BRIGADA"]
["VEHICLE","2007-12-31",15000,0,{"$f":"SUM(C963,D963)","v":15000},"134 - VEHICLES","BRIGADA"]
["VEHICLE","2007-12-31",25000,0,25000,"134 - VEHICLES","BRIGADA"]
["VEHICLE","2007-12-31",19833.37,0,19833.37,"134 - VEHICLES","BRIGADA"]
["VEHICLE CAMIO","2007-12-31","RENTING",0,0,"134 - VEHICLES","BRIGADA"]
["VEHICLE CAMIO CUBA","2007-12-31",6000,0,6000,"134 - VEHICLES","BRIGADA"]
["VEHICLE","2007-12-31","RENTING",0,0,"134 - VEHICLES","BRIGADA"]
["VEHICLE","2007-12-31","RENTING",0,0,"134 - VEHICLES","BRIGADA"]
["VEHICLE","2007-12-31","RENTING",0,0,"134 - VEHICLES","BRIGADA"]
["VEHICLE","2007-12-31","RENTING",0,0,"134 - VEHICLES","BRIGADA"]
["VEHICLE","2007-12-31","RENTING",0,0,"134 - VEHICLES","BRIGADA"]
["VEHICLE","2007-12-31","RENTING",0,0,"134 - VEHICLES","BRIGADA"]
["VEHICLE","2007-12-31","RENTING",0,0,"134 - VEHICLES","BRIGADA"]
["VEHICLE","2007-12-31",5000,0,5000,"134 - VEHICLES","BRIGADA"]
["VEHICLE","2007-12-31",13900,0,13900,"134 - VEHICLES","BRIGADA"]
["VEHICLE","2007-12-31",12901.216200000001,0,12901.216200000001,"134 - VEHICLES","BRIGADA"]
["VEHICLE","2007-12-31",6000,0,6000,"134 - VEHICLES","BRIGADA"]
["VEHICLE","2007-12-31","RENTING",0,0,"134 - VEHICLES","BRIGADA"]
["VEHICLE","2007-12-31",3975,0,3975,"134 - VEHICLES","BRIGADA"]
["VEHICLE","2007-12-31",10000,0,10000,"134 - VEHICLES","BRIGADA"]
["VEHICLE","2007-12-31","RENTING",0,0,"134 - VEHICLES","BRIGADA"]
["VEHICLE MOTO CARRO","2007-12-31","RENTING",0,0,"134 - VEHICLES","BRIGADA"]
["VEHICLE","2007-12-31",19000,0,19000,"134 - VEHICLES","BRIGADA"]
["TRONZADORA","2007-12-31",130,0,130,"135 - MAQUINÀRIA I INSTAL·LACIONS TÈCNIQUES","TALLER SOLDADURA"]
["SOLDADOR","2007-12-31",60,0,60,"135 - MAQUINÀRIA I INSTAL·LACIONS TÈCNIQUES","TALLER SOLDADURA"]
["TALADRE COLUMNA","2007-12-31",220,0,220,"135 - MAQUINÀRIA I INSTAL·LACIONS TÈCNIQUES","TALLER SOLDADURA"]
["MOLADORA ","2007-12-31",130,0,130,"135 - MAQUINÀRIA I INSTAL·LACIONS TÈCNIQUES","TALLER SOLDADURA"]
["MOLADORA ","2007-12-31",130,0,130,"135 - MAQUINÀRIA I INSTAL·LACIONS TÈCNIQUES","TALLER SOLDADURA"]
["MOLADORA ","2007-12-31",130,0,130,"135 - MAQUINÀRIA I INSTAL·LACIONS TÈCNIQUES","TALLER SOLDADURA"]
["MOTO SOLDADORA","2007-12-31",1100,0,1100,"135 - MAQUINÀRIA I INSTAL·LACIONS TÈCNIQUES","TALLER SOLDADURA"]
["TALADRE","2007-12-31",130,0,130,"135 - MAQUINÀRIA I INSTAL·LACIONS TÈCNIQUES","TALLER SOLDADURA"]
["PISTO HIDRAULIC","2007-12-31",60,0,60,"135 - MAQUINÀRIA I INSTAL·LACIONS TÈCNIQUES","TALLER SOLDADURA"]
["TALADRE","2007-12-31",130,0,130,"135 - MAQUINÀRIA I INSTAL·LACIONS TÈCNIQUES","TALLER SOLDADURA"]
["EQUIP AUTOGEN","2007-12-31",160,0,160,"135 - MAQUINÀRIA I INSTAL·LACIONS TÈCNIQUES","TALLER SOLDADURA"]
["SOLDADOR","2007-12-31",60,0,60,"135 - MAQUINÀRIA I INSTAL·LACIONS TÈCNIQUES","TALLER SOLDADURA"]
["ATORNILLADOR","2007-12-31",700,0,700,"135 - MAQUINÀRIA I INSTAL·LACIONS TÈCNIQUES","TALLER SOLDADURA"]
["MOLADORA ","2007-12-31",130,0,130,"135 - MAQUINÀRIA I INSTAL·LACIONS TÈCNIQUES","TALLER SOLDADURA"]
["MOLADORA ","2007-12-31",130,0,130,"135 - MAQUINÀRIA I INSTAL·LACIONS TÈCNIQUES","TALLER SOLDADURA"]
["TALADRE NEUMATIC","2007-12-31",220,0,220,"135 - MAQUINÀRIA I INSTAL·LACIONS TÈCNIQUES","TALLER SOLDADURA"]
["EQUIP AUTOGEN","2007-12-31",160,0,160,"135 - MAQUINÀRIA I INSTAL·LACIONS TÈCNIQUES","TALLER SOLDADURA"]
["SOLDADOR","2007-12-31",60,0,60,"135 - MAQUINÀRIA I INSTAL·LACIONS TÈCNIQUES","TALLER SOLDADURA"]
["MOLADORA ","2007-12-31",130,0,130,"135 - MAQUINÀRIA I INSTAL·LACIONS TÈCNIQUES","TALLER SOLDADURA"]
["MOLADORA ","2007-12-31",130,0,130,"135 - MAQUINÀRIA I INSTAL·LACIONS TÈCNIQUES","TALLER SOLDADURA"]
["TALLADOR PLASMA","2007-12-31",300,0,300,"135 - MAQUINÀRIA I INSTAL·LACIONS TÈCNIQUES","TALLER SOLDADURA"]
["TALADRE COLUMNA","2007-12-31",220,0,220,"135 - MAQUINÀRIA I INSTAL·LACIONS TÈCNIQUES","TALLER SOLDADURA"]
["SOLDADOR","2007-12-31",60,0,60,"135 - MAQUINÀRIA I INSTAL·LACIONS TÈCNIQUES","TALLER SOLDADURA"]
["MOLADORA ","2007-12-31",130,0,130,"135 - MAQUINÀRIA I INSTAL·LACIONS TÈCNIQUES","TALLER SOLDADURA"]
["TRONZADORA","2007-12-31",130,0,130,"135 - MAQUINÀRIA I INSTAL·LACIONS TÈCNIQUES","TALLER SOLDADURA"]
["COMPRESSOR","2007-12-31",150,0,150,"135 - MAQUINÀRIA I INSTAL·LACIONS TÈCNIQUES","TALLER SOLDADURA"]
["SOLDADOR","2007-12-31",60,0,60,"135 - MAQUINÀRIA I INSTAL·LACIONS TÈCNIQUES","TALLER SOLDADURA"]
["SPLIT","2007-12-31",400,0,400,"147 - MOBILIARI","TALLER SOLDADURA"]
["CADIRAM","2007-12-31",1140,0,1140,"147 - MOBILIARI","TALLER SOLDADURA"]
["TAULES","2007-12-31",2600,0,2600,"147 - MOBILIARI","TALLER SOLDADURA"]
["ARMARIS","2007-12-31",3400,0,3400,"147 - MOBILIARI","TALLER SOLDADURA"]
["ESCALES","2007-12-31",390,0,390,"147 - MOBILIARI","TALLER SOLDADURA"]
["EXTRACTOR DE FUMS","2007-12-31",100,0,100,"135 - MAQUINÀRIA I INSTAL·LACIONS TÈCNIQUES","TALLER SOLDADURA"]
["EXTRACTOR DE FUMS","2007-12-31",100,0,100,"135 - MAQUINÀRIA I INSTAL·LACIONS TÈCNIQUES","TALLER SOLDADURA"]
["EXTRACTOR DE FUMS","2007-12-31",100,0,100,"135 - MAQUINÀRIA I INSTAL·LACIONS TÈCNIQUES","TALLER SOLDADURA"]
["EXTRACTOR DE FUMS","2007-12-31",100,0,100,"135 - MAQUINÀRIA I INSTAL·LACIONS TÈCNIQUES","TALLER SOLDADURA"]
["EXTRACTOR DE FUMS","2007-12-31",100,0,100,"135 - MAQUINÀRIA I INSTAL·LACIONS TÈCNIQUES","TALLER SOLDADURA"]
["TALADRE COLUMNA","2007-12-31",220,0,220,"135 - MAQUINÀRIA I INSTAL·LACIONS TÈCNIQUES","TALLER FUSTERIA"]
["MOLADORA ","2007-12-31",130,0,130,"135 - MAQUINÀRIA I INSTAL·LACIONS TÈCNIQUES","TALLER FUSTERIA"]
["TUPI AMB ALIMENTADOR","2007-12-31",1500,0,1500,"135 - MAQUINÀRIA I INSTAL·LACIONS TÈCNIQUES","TALLER FUSTERIA"]
["SERRA","2007-12-31",100,0,100,"135 - MAQUINÀRIA I INSTAL·LACIONS TÈCNIQUES","TALLER FUSTERIA"]
["PLANEJADORA","2007-12-31",250,0,250,"135 - MAQUINÀRIA I INSTAL·LACIONS TÈCNIQUES","TALLER FUSTERIA"]
["ESQUADRADORA VERTICAL","2007-12-31",1300,0,{"$f":"SUM(C1027,D1027)","v":1300},"135 - MAQUINÀRIA I INSTAL·LACIONS TÈCNIQUES","TALLER FUSTERIA"]
["ESQUADRADORA PLANA","2007-12-31",900,0,900,"135 - MAQUINÀRIA I INSTAL·LACIONS TÈCNIQUES","TALLER FUSTERIA"]
["ENCOLADORA DE CANTS","2007-12-31",340,0,340,"135 - MAQUINÀRIA I INSTAL·LACIONS TÈCNIQUES","TALLER FUSTERIA"]
["INGLETADORA","2007-12-31",90,0,90,"135 - MAQUINÀRIA I INSTAL·LACIONS TÈCNIQUES","TALLER FUSTERIA"]
["REGRUESADORA","2007-12-31",1650,0,1650,"135 - MAQUINÀRIA I INSTAL·LACIONS TÈCNIQUES","TALLER FUSTERIA"]
["INGLETADORA","2007-12-31",90,0,90,"135 - MAQUINÀRIA I INSTAL·LACIONS TÈCNIQUES","TALLER FUSTERIA"]
["RASPALL ELECTRIC","2007-12-31",230,0,230,"135 - MAQUINÀRIA I INSTAL·LACIONS TÈCNIQUES","TALLER FUSTERIA"]
["FRESADORA","2007-12-31",150,0,150,"135 - MAQUINÀRIA I INSTAL·LACIONS TÈCNIQUES","TALLER FUSTERIA"]
["TALADRE","2007-12-31",130,0,130,"135 - MAQUINÀRIA I INSTAL·LACIONS TÈCNIQUES","TALLER FUSTERIA"]
["POLIDORA","2007-12-31",80,0,80,"135 - MAQUINÀRIA I INSTAL·LACIONS TÈCNIQUES","TALLER FUSTERIA"]
["POLIDORA","2007-12-31",80,0,80,"135 - MAQUINÀRIA I INSTAL·LACIONS TÈCNIQUES","TALLER FUSTERIA"]
["TALADRE ","2007-12-31",130,0,130,"135 - MAQUINÀRIA I INSTAL·LACIONS TÈCNIQUES","TALLER FUSTERIA"]
["CIRCULAR DE MA","2007-12-31",60,0,60,"135 - MAQUINÀRIA I INSTAL·LACIONS TÈCNIQUES","TALLER FUSTERIA"]
["RASPALL ELECTRIC","2007-12-31",230,0,230,"135 - MAQUINÀRIA I INSTAL·LACIONS TÈCNIQUES","TALLER FUSTERIA"]
["GALLETERA","2007-12-31",800,0,800,"135 - MAQUINÀRIA I INSTAL·LACIONS TÈCNIQUES","TALLER FUSTERIA"]
["ENCOLADORA DE CANTS","2007-12-31",340,0,340,"135 - MAQUINÀRIA I INSTAL·LACIONS TÈCNIQUES","TALLER FUSTERIA"]
["TALADRE","2007-12-31",130,0,130,"135 - MAQUINÀRIA I INSTAL·LACIONS TÈCNIQUES","TALLER FUSTERIA"]
["ENCOLADORA DE CANTS","2007-12-31",340,0,340,"135 - MAQUINÀRIA I INSTAL·LACIONS TÈCNIQUES","TALLER FUSTERIA"]
["CIRCULAR DE MA","2007-12-31",60,0,60,"135 - MAQUINÀRIA I INSTAL·LACIONS TÈCNIQUES","TALLER FUSTERIA"]
["POLIDORA","2007-12-31",80,0,80,"135 - MAQUINÀRIA I INSTAL·LACIONS TÈCNIQUES","TALLER FUSTERIA"]
["ATORNILLADOR","2007-12-31",700,0,700,"135 - MAQUINÀRIA I INSTAL·LACIONS TÈCNIQUES","TALLER FUSTERIA"]
["COMPRESSOR","2007-12-31",150,0,150,"135 - MAQUINÀRIA I INSTAL·LACIONS TÈCNIQUES","TALLER FUSTERIA"]
["COMPRESSOR","2007-12-31",150,0,150,"135 - MAQUINÀRIA I INSTAL·LACIONS TÈCNIQUES","TALLER FUSTERIA"]
["ARMARIS","2007-12-31",200,0,200,"147 - MOBILIARI","TALLER FUSTERIA"]
["BANC DE TREBALL","2007-12-31",2160,0,2160,"147 - MOBILIARI","TALLER FUSTERIA"]
["CADIRAM","2007-12-31",12540,0,12540,"147 - MOBILIARI","CASA NATURA"]
["TAULES","2007-12-31",2400,0,2400,"147 - MOBILIARI","CASA NATURA"]
["ARMARIS","2007-12-31",2000,0,2000,"147 - MOBILIARI","CASA NATURA"]
["EXPOSITORS","2007-12-31",900,0,900,"147 - MOBILIARI","CASA NATURA"]
["PISSARRA","2007-12-31",210,0,210,"147 - MOBILIARI","CASA NATURA"]
["PANTALLA PISSARRA","2007-12-31",60,0,60,"147 - MOBILIARI","CASA NATURA"]
["CANO PROJECTOR","2007-12-31",800,0,800,"147 - MOBILIARI","CASA NATURA"]
["BAFLE","2007-12-31",460,0,460,"147 - MOBILIARI","CASA NATURA"]
["BAFLE","2007-12-31",460,0,460,"147 - MOBILIARI","CASA NATURA"]
["BAFLE","2007-12-31",460,0,460,"147 - MOBILIARI","CASA NATURA"]
["ORDINADOR PORTATIL","2007-12-31",600,0,600,"131 - EQUIPAMENTS DE PROCESSO D'INFORMACIÓ","CASA NATURA"]
["MOSTRADOR","2007-12-31",400,0,400,"147 - MOBILIARI","CASA NATURA"]
["MAQUETES","2007-12-31",250,0,250,"147 - MOBILIARI","CASA NATURA"]
["MAQUETES","2007-12-31",250,0,250,"147 - MOBILIARI","CASA NATURA"]
["MAQUETES","2007-12-31",250,0,250,"147 - MOBILIARI","CASA NATURA"]
["MAQUETES","2007-12-31",250,0,250,"147 - MOBILIARI","CASA NATURA"]
["MAQUETES","2007-12-31",250,0,250,"147 - MOBILIARI","CASA NATURA"]
["MAQUETES","2007-12-31",250,0,250,"147 - MOBILIARI","CASA NATURA"]
["FORN SOLAR","2007-12-31",250,0,250,"147 - MOBILIARI","CASA NATURA"]
["FORN SOLAR","2007-12-31",250,0,250,"147 - MOBILIARI","CASA NATURA"]
["ESCALES","2007-12-31",130,0,130,"147 - MOBILIARI","CASA NATURA"]
["TRANSPORTADOR ","2007-12-31",70,0,70,"147 - MOBILIARI","CASA NATURA"]
["NEVERA","2007-12-31",400,0,400,"147 - MOBILIARI","CASA NATURA"]
["SPLIT","2007-12-31",400,0,400,"147 - MOBILIARI","CASA NATURA"]
["MONITOR","2007-12-31",90,0,90,"131 - EQUIPAMENTS DE PROCESSO D'INFORMACIÓ","CASA NATURA"]
["PC","2007-12-31",700,0,700,"131 - EQUIPAMENTS DE PROCESSO D'INFORMACIÓ","CASA NATURA"]
["BUCS DE CALAIXOS","2007-12-31",80,0,80,"147 - MOBILIARI","CASA NATURA"]
["MONITOR","2007-12-31",90,0,90,"131 - EQUIPAMENTS DE PROCESSO D'INFORMACIÓ","CASA NATURA"]
["PC","2007-12-31",700,0,700,"131 - EQUIPAMENTS DE PROCESSO D'INFORMACIÓ","CASA NATURA"]
["PLASTIFICADORA","2007-12-31",70,0,70,"147 - MOBILIARI","CASA NATURA"]
["CAMARA DE FOTOS","2007-12-31",100,0,100,"147 - MOBILIARI","CASA NATURA"]
["CISSALLA ","2007-12-31",360,0,360,"147 - MOBILIARI","CASA NATURA"]
["LUPA","2007-12-31",30,0,30,"147 - MOBILIARI","CASA NATURA"]
["CANO PROJECTOR","2007-12-31",800,0,800,"147 - MOBILIARI","CASA NATURA"]
["ORDINADOR PORTATIL","2007-12-31",600,0,600,"131 - EQUIPAMENTS DE PROCESSO D'INFORMACIÓ","CASA NATURA"]
["SPLIT","2007-12-31",400,0,400,"147 - MOBILIARI","CASA NATURA"]
["TRITURADORA FUSTA","2007-12-31",230,0,230,"135 - MAQUINÀRIA I INSTAL·LACIONS TÈCNIQUES","CASA NATURA"]
["TRITURADORA FUSTA","2007-12-31",230,0,230,"135 - MAQUINÀRIA I INSTAL·LACIONS TÈCNIQUES","CASA NATURA"]
["BICICLETA ESTATICA","2007-12-31",1800,0,1800,"147 - MOBILIARI","CASA NATURA"]
["LUPA","2007-12-31",30,0,{"$f":"SUM(C1091,D1091)","v":30},"147 - MOBILIARI","CASA NATURA"]
["LUPA","2007-12-31",30,0,30,"147 - MOBILIARI","CASA NATURA"]
["LUPA","2007-12-31",30,0,30,"147 - MOBILIARI","CASA NATURA"]
["LUPA","2007-12-31",30,0,30,"147 - MOBILIARI","CASA NATURA"]
["MICROSCOPI","2007-12-31",250,0,250,"147 - MOBILIARI","CASA NATURA"]
["MICROSCOPI","2007-12-31",250,0,250,"147 - MOBILIARI","CASA NATURA"]
["FORN SOLAR","2007-12-31",250,0,250,"147 - MOBILIARI","CASA NATURA"]
["VITRINA ","2007-12-31",500,0,500,"147 - MOBILIARI","CASA NATURA"]
["CALEFACTOR","2007-12-31",230,0,230,"147 - MOBILIARI","CASA NATURA"]
["CADIRAM","2007-12-31",6080,0,6080,"147 - MOBILIARI","JUTJATS DE PAU"]
["TAULES","2007-12-31",2200,0,2200,"147 - MOBILIARI","JUTJATS DE PAU"]
["ARMARIS","2007-12-31",2200,0,2200,"147 - MOBILIARI","JUTJATS DE PAU"]
["MICROONES","2007-12-31",70,0,70,"147 - MOBILIARI","JUTJATS DE PAU"]
["SPLIT","2007-12-31",400,0,400,"147 - MOBILIARI","JUTJATS DE PAU"]
["IMPRESSORA MULTIFUNCIO","2007-12-31",500,0,500,"131 - EQUIPAMENTS DE PROCESSO D'INFORMACIÓ","JUTJATS DE PAU"]
["PISSARRA","2007-12-31",140,0,140,"147 - MOBILIARI","JUTJATS DE PAU"]
["ARXIVADORS","2007-12-31",120,0,120,"147 - MOBILIARI","JUTJATS DE PAU"]
["SPLIT","2007-12-31",400,0,400,"147 - MOBILIARI","JUTJATS DE PAU"]
["MOSTRADOR","2007-12-31",400,0,400,"147 - MOBILIARI","JUTJATS DE PAU"]
["FOTOCOPIADORA","2007-12-31",250,0,250,"147 - MOBILIARI","JUTJATS DE PAU"]
["FAX","2007-12-31",60,0,60,"131 - EQUIPAMENTS DE PROCESSO D'INFORMACIÓ","JUTJATS DE PAU"]
["ESTUFA","2007-12-31",200,0,200,"147 - MOBILIARI","JUTJATS DE PAU"]
["IMPRESSORA MULTIFUNCIO","2007-12-31",500,0,500,"131 - EQUIPAMENTS DE PROCESSO D'INFORMACIÓ","JUTJATS DE PAU"]
["ESTUFA RADIADOR OLI","2007-12-31",500,0,500,"147 - MOBILIARI","JUTJATS DE PAU"]
["CONJUNT BANDERES","2007-12-31",100,0,100,"147 - MOBILIARI","JUTJATS DE PAU"]
["SPLIT","2007-12-31",400,0,400,"147 - MOBILIARI","JUTJATS DE PAU"]
["ENQUADERNADORA","2007-12-31",80,0,80,"147 - MOBILIARI","JUTJATS DE PAU"]
["DESTRUCTORA DE DOCUMENTS","2007-12-31",180,0,180,"147 - MOBILIARI","JUTJATS DE PAU"]
["CADIRAM","2007-12-31",1710,0,1710,"147 - MOBILIARI","OFICINA DONA/IMMIGRACIÓ"]
["TAULES","2007-12-31",1000,0,1000,"147 - MOBILIARI","OFICINA DONA/IMMIGRACIÓ"]
["BUCS DE CALAIXOS","2007-12-31",240,0,240,"147 - MOBILIARI","OFICINA DONA/IMMIGRACIÓ"]
["ARMARIS","2007-12-31",1600,0,1600,"147 - MOBILIARI","OFICINA DONA/IMMIGRACIÓ"]
["PISSARRA","2007-12-31",140,0,140,"147 - MOBILIARI","OFICINA DONA/IMMIGRACIÓ"]
["SPLIT","2007-12-31",400,0,400,"147 - MOBILIARI","OFICINA DONA/IMMIGRACIÓ"]
["SPLIT","2007-12-31",400,0,400,"147 - MOBILIARI","OFICINA DONA/IMMIGRACIÓ"]
["DESTRUCTORA DE DOCUMENTS","2007-12-31",180,0,180,"147 - MOBILIARI","OFICINA DONA/IMMIGRACIÓ"]
["EXPOSITORS","2007-12-31",60,0,60,"147 - MOBILIARI","OFICINA DONA/IMMIGRACIÓ"]
["MONITOR","2007-12-31",90,0,90,"131 - EQUIPAMENTS DE PROCESSO D'INFORMACIÓ","OFICINA DONA/IMMIGRACIÓ"]
["PC","2007-12-31",700,0,700,"131 - EQUIPAMENTS DE PROCESSO D'INFORMACIÓ","OFICINA DONA/IMMIGRACIÓ"]
["MONITOR","2007-12-31",90,0,90,"131 - EQUIPAMENTS DE PROCESSO D'INFORMACIÓ","OFICINA DONA/IMMIGRACIÓ"]
["PC","2007-12-31",700,0,700,"131 - EQUIPAMENTS DE PROCESSO D'INFORMACIÓ","OFICINA DONA/IMMIGRACIÓ"]
["MONITOR","2007-12-31",90,0,90,"131 - EQUIPAMENTS DE PROCESSO D'INFORMACIÓ","OFICINA DONA/IMMIGRACIÓ"]
["PC","2007-12-31",700,0,700,"131 - EQUIPAMENTS DE PROCESSO D'INFORMACIÓ","OFICINA DONA/IMMIGRACIÓ"]
["MONITOR","2007-12-31",90,0,90,"131 - EQUIPAMENTS DE PROCESSO D'INFORMACIÓ","OFICINA DONA/IMMIGRACIÓ"]
["PC","2007-12-31",700,0,700,"131 - EQUIPAMENTS DE PROCESSO D'INFORMACIÓ","OFICINA DONA/IMMIGRACIÓ"]
["TAULES","2007-12-31",200,0,200,"147 - MOBILIARI","DEIXALLERIA"]
["CADIRAM","2007-12-31",570,0,570,"147 - MOBILIARI","DEIXALLERIA"]
["BUCS DE CALAIXOS","2007-12-31",240,0,240,"147 - MOBILIARI","DEIXALLERIA"]
["ARMARIS","2007-12-31",200,0,200,"147 - MOBILIARI","DEIXALLERIA"]
["ARXIVADORS","2007-12-31",120,0,120,"147 - MOBILIARI","DEIXALLERIA"]
["SPLIT","2007-12-31",400,0,400,"147 - MOBILIARI","DEIXALLERIA"]
["PC","2007-12-31",700,0,700,"131 - EQUIPAMENTS DE PROCESSO D'INFORMACIÓ","DEIXALLERIA"]
["MONITOR","2007-12-31",90,0,90,"131 - EQUIPAMENTS DE PROCESSO D'INFORMACIÓ","DEIXALLERIA"]
["IMPRESSORA","2007-12-31",380,0,380,"131 - EQUIPAMENTS DE PROCESSO D'INFORMACIÓ","DEIXALLERIA"]
["EQUIP GRAVACIO ","2007-12-31",1,0,1,"147 - MOBILIARI","DEIXALLERIA"]
["MONITOR","2007-12-31",90,0,90,"131 - EQUIPAMENTS DE PROCESSO D'INFORMACIÓ","DEIXALLERIA"]
["CONSOLA DE BASCULA","2007-12-31",250,0,250,"147 - MOBILIARI","DEIXALLERIA"]
["BASCULA","2007-12-31",150,0,150,"147 - MOBILIARI","DEIXALLERIA"]
["CARRO TRANSPORTADOR","2007-12-31",50,0,50,"135 - MAQUINÀRIA I INSTAL·LACIONS TÈCNIQUES","DEIXALLERIA"]
["GABIES","2007-12-31",320,0,320,"135 - MAQUINÀRIA I INSTAL·LACIONS TÈCNIQUES","DEIXALLERIA"]
["CONTENIDOR  6M3","2007-12-31",1,0,1,"135 - MAQUINÀRIA I INSTAL·LACIONS TÈCNIQUES","DEIXALLERIA"]
["CONTENIDOR  6M3","2007-12-31",1,0,1,"135 - MAQUINÀRIA I INSTAL·LACIONS TÈCNIQUES","DEIXALLERIA"]
["CONTENIDOR  6M3","2007-12-31",1,0,1,"135 - MAQUINÀRIA I INSTAL·LACIONS TÈCNIQUES","DEIXALLERIA"]
["CONTENIDOR  6M3","2007-12-31",1,0,1,"135 - MAQUINÀRIA I INSTAL·LACIONS TÈCNIQUES","DEIXALLERIA"]
["CONTENIDOR  15M3","2007-12-31",1,0,{"$f":"SUM(C1155,D1155)","v":1},"135 - MAQUINÀRIA I INSTAL·LACIONS TÈCNIQUES","DEIXALLERIA"]
["CONTENIDOR  15M3","2007-12-31",1,0,1,"135 - MAQUINÀRIA I INSTAL·LACIONS TÈCNIQUES","DEIXALLERIA"]
["CONTENIDOR  15M3","2007-12-31",1,0,1,"135 - MAQUINÀRIA I INSTAL·LACIONS TÈCNIQUES","DEIXALLERIA"]
["CONTENIDOR  20M3","2007-12-31",1,0,1,"135 - MAQUINÀRIA I INSTAL·LACIONS TÈCNIQUES","DEIXALLERIA"]
["CONTENIDOR  20M3","2007-12-31",1,0,1,"135 - MAQUINÀRIA I INSTAL·LACIONS TÈCNIQUES","DEIXALLERIA"]
["CONTENIDOR  25M3","2007-12-31",1,0,1,"135 - MAQUINÀRIA I INSTAL·LACIONS TÈCNIQUES","DEIXALLERIA"]
["CONTENIDOR  25M3","2007-12-31",1,0,1,"135 - MAQUINÀRIA I INSTAL·LACIONS TÈCNIQUES","DEIXALLERIA"]
["CONTENIDOR  25M3","2007-12-31",1,0,1,"135 - MAQUINÀRIA I INSTAL·LACIONS TÈCNIQUES","DEIXALLERIA"]
["COMPACTADORA","2007-12-31",850,0,850,"135 - MAQUINÀRIA I INSTAL·LACIONS TÈCNIQUES","DEIXALLERIA"]
["CADIRAM","2007-12-31",15010,0,15010,"147 - MOBILIARI","SERVEIS MUNICIPALS"]
["TAULES","2007-12-31",5600,0,5600,"147 - MOBILIARI","SERVEIS MUNICIPALS"]
["ARMARIS","2007-12-31",16000,0,16000,"147 - MOBILIARI","SERVEIS MUNICIPALS"]
["BUCS DE CALAIXOS","2007-12-31",2160,0,2160,"147 - MOBILIARI","SERVEIS MUNICIPALS"]
["PISSARRA","2007-12-31",140,0,140,"147 - MOBILIARI","SERVEIS MUNICIPALS"]
["ESCALES","2007-12-31",390,0,390,"147 - MOBILIARI","SERVEIS MUNICIPALS"]
["MONITOR","2007-12-31",90,0,90,"131 - EQUIPAMENTS DE PROCESSO D'INFORMACIÓ","SERVEIS MUNICIPALS"]
["PC","2007-12-31",700,0,700,"131 - EQUIPAMENTS DE PROCESSO D'INFORMACIÓ","SERVEIS MUNICIPALS"]
["MONITOR","2007-12-31",90,0,90,"131 - EQUIPAMENTS DE PROCESSO D'INFORMACIÓ","SERVEIS MUNICIPALS"]
["PC","2007-12-31",700,0,700,"131 - EQUIPAMENTS DE PROCESSO D'INFORMACIÓ","SERVEIS MUNICIPALS"]
["PC","2007-12-31",700,0,700,"131 - EQUIPAMENTS DE PROCESSO D'INFORMACIÓ","SERVEIS MUNICIPALS"]
["MONITOR","2007-12-31",90,0,90,"131 - EQUIPAMENTS DE PROCESSO D'INFORMACIÓ","SERVEIS MUNICIPALS"]
["MONITOR","2007-12-31",90,0,90,"131 - EQUIPAMENTS DE PROCESSO D'INFORMACIÓ","SERVEIS MUNICIPALS"]
["PC","2007-12-31",700,0,700,"131 - EQUIPAMENTS DE PROCESSO D'INFORMACIÓ","SERVEIS MUNICIPALS"]
["MONITOR","2007-12-31",90,0,90,"131 - EQUIPAMENTS DE PROCESSO D'INFORMACIÓ","SERVEIS MUNICIPALS"]
["PC","2007-12-31",700,0,700,"131 - EQUIPAMENTS DE PROCESSO D'INFORMACIÓ","SERVEIS MUNICIPALS"]
["MONITOR","2007-12-31",90,0,90,"131 - EQUIPAMENTS DE PROCESSO D'INFORMACIÓ","SERVEIS MUNICIPALS"]
["PC","2007-12-31",700,0,700,"131 - EQUIPAMENTS DE PROCESSO D'INFORMACIÓ","SERVEIS MUNICIPALS"]
["MONITOR","2007-12-31",90,0,90,"131 - EQUIPAMENTS DE PROCESSO D'INFORMACIÓ","SERVEIS MUNICIPALS"]
["PC","2007-12-31",700,0,700,"131 - EQUIPAMENTS DE PROCESSO D'INFORMACIÓ","SERVEIS MUNICIPALS"]
["MONITOR","2007-12-31",90,0,90,"131 - EQUIPAMENTS DE PROCESSO D'INFORMACIÓ","SERVEIS MUNICIPALS"]
["PC","2007-12-31",700,0,700,"131 - EQUIPAMENTS DE PROCESSO D'INFORMACIÓ","SERVEIS MUNICIPALS"]
["MONITOR","2007-12-31",90,0,90,"131 - EQUIPAMENTS DE PROCESSO D'INFORMACIÓ","SERVEIS MUNICIPALS"]
["PC","2007-12-31",700,0,700,"131 - EQUIPAMENTS DE PROCESSO D'INFORMACIÓ","SERVEIS MUNICIPALS"]
["MONITOR","2007-12-31",90,0,90,"131 - EQUIPAMENTS DE PROCESSO D'INFORMACIÓ","SERVEIS MUNICIPALS"]
["FONT D'AIGUA","2007-12-31",500,0,500,"147 - MOBILIARI","SERVEIS MUNICIPALS"]
["SPLIT","2007-12-31",400,0,400,"147 - MOBILIARI","SERVEIS MUNICIPALS"]
["PC","2007-12-31",700,0,700,"131 - EQUIPAMENTS DE PROCESSO D'INFORMACIÓ","SERVEIS MUNICIPALS"]
["MONITOR","2007-12-31",90,0,90,"131 - EQUIPAMENTS DE PROCESSO D'INFORMACIÓ","SERVEIS MUNICIPALS"]
["PC","2007-12-31",700,0,700,"131 - EQUIPAMENTS DE PROCESSO D'INFORMACIÓ","SERVEIS MUNICIPALS"]
["MONITOR","2007-12-31",90,0,90,"131 - EQUIPAMENTS DE PROCESSO D'INFORMACIÓ","SERVEIS MUNICIPALS"]
["PC","2007-12-31",700,0,700,"131 - EQUIPAMENTS DE PROCESSO D'INFORMACIÓ","SERVEIS MUNICIPALS"]
["MONITOR","2007-12-31",90,0,90,"131 - EQUIPAMENTS DE PROCESSO D'INFORMACIÓ","SERVEIS MUNICIPALS"]
["PC","2007-12-31",700,0,700,"131 - EQUIPAMENTS DE PROCESSO D'INFORMACIÓ","SERVEIS MUNICIPALS"]
["MONITOR","2007-12-31",90,0,90,"131 - EQUIPAMENTS DE PROCESSO D'INFORMACIÓ","SERVEIS MUNICIPALS"]
["PC","2007-12-31",700,0,700,"131 - EQUIPAMENTS DE PROCESSO D'INFORMACIÓ","SERVEIS MUNICIPALS"]
["MONITOR","2007-12-31",90,0,90,"131 - EQUIPAMENTS DE PROCESSO D'INFORMACIÓ","SERVEIS MUNICIPALS"]
["PC","2007-12-31",700,0,700,"131 - EQUIPAMENTS DE PROCESSO D'INFORMACIÓ","SERVEIS MUNICIPALS"]
["MONITOR","2007-12-31",90,0,90,"131 - EQUIPAMENTS DE PROCESSO D'INFORMACIÓ","SERVEIS MUNICIPALS"]
["PC","2007-12-31",700,0,700,"131 - EQUIPAMENTS DE PROCESSO D'INFORMACIÓ","SERVEIS MUNICIPALS"]
["MONITOR","2007-12-31",90,0,90,"131 - EQUIPAMENTS DE PROCESSO D'INFORMACIÓ","SERVEIS MUNICIPALS"]
["PC","2007-12-31",700,0,700,"131 - EQUIPAMENTS DE PROCESSO D'INFORMACIÓ","SERVEIS MUNICIPALS"]
["MONITOR","2007-12-31",90,0,90,"131 - EQUIPAMENTS DE PROCESSO D'INFORMACIÓ","SERVEIS MUNICIPALS"]
["PC","2007-12-31",700,0,700,"131 - EQUIPAMENTS DE PROCESSO D'INFORMACIÓ","SERVEIS MUNICIPALS"]
["MONITOR","2007-12-31",90,0,90,"131 - EQUIPAMENTS DE PROCESSO D'INFORMACIÓ","SERVEIS MUNICIPALS"]
["PC","2007-12-31",700,0,700,"131 - EQUIPAMENTS DE PROCESSO D'INFORMACIÓ","SERVEIS MUNICIPALS"]
["MONITOR","2007-12-31",90,0,90,"131 - EQUIPAMENTS DE PROCESSO D'INFORMACIÓ","SERVEIS MUNICIPALS"]
["IMPRESSORA MULTIFUNCIO","2007-12-31",500,0,500,"131 - EQUIPAMENTS DE PROCESSO D'INFORMACIÓ","SERVEIS MUNICIPALS"]
["ENQUADERNADORA","2007-12-31",80,0,80,"147 - MOBILIARI","SERVEIS MUNICIPALS"]
["ENQUADERNADORA","2007-12-31",80,0,80,"147 - MOBILIARI","SERVEIS MUNICIPALS"]
["ARXIVADORS","2007-12-31",240,0,240,"147 - MOBILIARI","SERVEIS MUNICIPALS"]
["IMPRESSORA MULTIFUNCIO","2007-12-31",500,0,500,"131 - EQUIPAMENTS DE PROCESSO D'INFORMACIÓ","SERVEIS MUNICIPALS"]
["IMPRESSORA","2007-12-31",380,0,380,"131 - EQUIPAMENTS DE PROCESSO D'INFORMACIÓ","SERVEIS MUNICIPALS"]
["DESTRUCTORA DE DOCUMENTS","2007-12-31",180,0,180,"147 - MOBILIARI","SERVEIS MUNICIPALS"]
["DESTRUCTORA DE DOCUMENTS","2007-12-31",180,0,180,"147 - MOBILIARI","SERVEIS MUNICIPALS"]
["PLASTIFICADORA","2007-12-31",70,0,{"$f":"SUM(C1219,D1219)","v":70},"147 - MOBILIARI","SERVEIS MUNICIPALS"]
["CISSALLA ","2007-12-31",360,0,360,"147 - MOBILIARI","SERVEIS MUNICIPALS"]
["MAQUINA D'ESCRIURE","2007-12-31",2100,0,2100,"147 - MOBILIARI","SERVEIS MUNICIPALS"]
["PC","2007-12-31",700,0,700,"131 - EQUIPAMENTS DE PROCESSO D'INFORMACIÓ","SERVEIS MUNICIPALS"]
["MONITOR","2007-12-31",90,0,90,"131 - EQUIPAMENTS DE PROCESSO D'INFORMACIÓ","SERVEIS MUNICIPALS"]
["IMPRESSORA","2007-12-31",380,0,380,"131 - EQUIPAMENTS DE PROCESSO D'INFORMACIÓ","SERVEIS MUNICIPALS"]
["PC","2007-12-31",700,0,700,"131 - EQUIPAMENTS DE PROCESSO D'INFORMACIÓ","SERVEIS MUNICIPALS"]
["MONITOR","2007-12-31",90,0,90,"131 - EQUIPAMENTS DE PROCESSO D'INFORMACIÓ","SERVEIS MUNICIPALS"]
["ORDINADOR PORTATIL","2007-12-31",600,0,600,"131 - EQUIPAMENTS DE PROCESSO D'INFORMACIÓ","SERVEIS MUNICIPALS"]
["ORDINADOR PORTATIL","2007-12-31",600,0,600,"131 - EQUIPAMENTS DE PROCESSO D'INFORMACIÓ","SERVEIS MUNICIPALS"]
["SONOMETRE","2007-12-31",25,0,25,"147 - MOBILIARI","SERVEIS MUNICIPALS"]
["LASER MESURAR","2007-12-31",130,0,130,"147 - MOBILIARI","SERVEIS MUNICIPALS"]
["CAMARA DE FOTOS","2007-12-31",100,0,100,"147 - MOBILIARI","SERVEIS MUNICIPALS"]
["ETIQUETADORA","2007-12-31",60,0,60,"147 - MOBILIARI","SERVEIS MUNICIPALS"]
["ARMARIS RACK","2007-12-31",200,0,200,"147 - MOBILIARI","SERVEIS MUNICIPALS"]
["SERVIDOR","2007-12-31",300,0,300,"131 - EQUIPAMENTS DE PROCESSO D'INFORMACIÓ","SERVEIS MUNICIPALS"]
["SERVIDOR","2007-12-31",300,0,300,"131 - EQUIPAMENTS DE PROCESSO D'INFORMACIÓ","SERVEIS MUNICIPALS"]
["SERVIDOR","2007-12-31",300,0,300,"131 - EQUIPAMENTS DE PROCESSO D'INFORMACIÓ","SERVEIS MUNICIPALS"]
["SERVIDOR","2007-12-31",300,0,300,"131 - EQUIPAMENTS DE PROCESSO D'INFORMACIÓ","SERVEIS MUNICIPALS"]
["SERVIDOR","2007-12-31",300,0,300,"131 - EQUIPAMENTS DE PROCESSO D'INFORMACIÓ","SERVEIS MUNICIPALS"]
["SERVIDOR","2007-12-31",300,0,300,"131 - EQUIPAMENTS DE PROCESSO D'INFORMACIÓ","SERVEIS MUNICIPALS"]
["CADIRAM","2007-12-31",14630,0,14630,"147 - MOBILIARI","LLAR D'INFANTS"]
["TAULES","2007-12-31",2800,0,2800,"147 - MOBILIARI","LLAR D'INFANTS"]
["BUCS DE CALAIXOS","2007-12-31",160,0,160,"147 - MOBILIARI","LLAR D'INFANTS"]
["ARMARIS","2007-12-31",5200,0,5200,"147 - MOBILIARI","LLAR D'INFANTS"]
["NEVERA","2007-12-31",400,0,400,"147 - MOBILIARI","LLAR D'INFANTS"]
["MICROONES","2007-12-31",70,0,70,"147 - MOBILIARI","LLAR D'INFANTS"]
["PISSARRA","2007-12-31",280,0,280,"147 - MOBILIARI","LLAR D'INFANTS"]
["IMPRESSORA","2007-12-31",380,0,380,"131 - EQUIPAMENTS DE PROCESSO D'INFORMACIÓ","LLAR D'INFANTS"]
["IMPRESSORA","2007-12-31",380,0,380,"131 - EQUIPAMENTS DE PROCESSO D'INFORMACIÓ","LLAR D'INFANTS"]
["MONITOR","2007-12-31",90,0,90,"131 - EQUIPAMENTS DE PROCESSO D'INFORMACIÓ","LLAR D'INFANTS"]
["PC","2007-12-31",700,0,700,"131 - EQUIPAMENTS DE PROCESSO D'INFORMACIÓ","LLAR D'INFANTS"]
["PANTALLA DE PROJECCIÓ","2007-12-31",90,0,90,"147 - MOBILIARI","LLAR D'INFANTS"]
["BAFLE","2007-12-31",460,0,460,"147 - MOBILIARI","LLAR D'INFANTS"]
["RADIO CASET","2007-12-31",60,0,60,"147 - MOBILIARI","LLAR D'INFANTS"]
["NEVERA","2007-12-31",400,0,400,"147 - MOBILIARI","LLAR D'INFANTS"]
["RENTAPLATS","2007-12-31",300,0,300,"147 - MOBILIARI","LLAR D'INFANTS"]
["FORN","2007-12-31",250,0,250,"147 - MOBILIARI","LLAR D'INFANTS"]
["NEVERA","2007-12-31",400,0,400,"147 - MOBILIARI","LLAR D'INFANTS"]
["ARMARIETS","2007-12-31",2000,0,2000,"147 - MOBILIARI","LLAR D'INFANTS"]
["MIRALLS","2007-12-31",240,0,240,"147 - MOBILIARI","LLAR D'INFANTS"]
["ESCALES","2007-12-31",130,0,130,"147 - MOBILIARI","LLAR D'INFANTS"]
["JOGUINA BRESOL","2007-12-31",60,0,60,"147 - MOBILIARI","LLAR D'INFANTS"]
["TRICICLE","2007-12-31",420,0,420,"147 - MOBILIARI","LLAR D'INFANTS"]
["CASA JOGUINA","2007-12-31",70,0,70,"147 - MOBILIARI","LLAR D'INFANTS"]
["CADIRAM","2007-12-31",2090,0,2090,"147 - MOBILIARI","LOCAL D'ASSAIG"]
["ARMARIS","2007-12-31",400,0,400,"147 - MOBILIARI","LOCAL D'ASSAIG"]
["PISSARRA","2007-12-31",140,0,140,"147 - MOBILIARI","LOCAL D'ASSAIG"]
["AMPLIFICADOR","2007-12-31",300,0,300,"147 - MOBILIARI","LOCAL D'ASSAIG"]
["AMPLIFICADOR","2007-12-31",300,0,300,"147 - MOBILIARI","LOCAL D'ASSAIG"]
["AMPLIFICADOR","2007-12-31",300,0,300,"147 - MOBILIARI","LOCAL D'ASSAIG"]
["PEU DE MICRÒFON","2007-12-31",100,0,100,"147 - MOBILIARI","LOCAL D'ASSAIG"]
["BAFLE","2007-12-31",460,0,460,"147 - MOBILIARI","LOCAL D'ASSAIG"]
["BAFLE","2007-12-31",460,0,460,"147 - MOBILIARI","LOCAL D'ASSAIG"]
["MICROFON","2007-12-31",80,0,80,"147 - MOBILIARI","LOCAL D'ASSAIG"]
["MICROFON","2007-12-31",80,0,80,"147 - MOBILIARI","LOCAL D'ASSAIG"]
["TAULA DE MESCLES","2007-12-31",2500,0,2500,"147 - MOBILIARI","LOCAL D'ASSAIG"]
["BATERIA ","2007-12-31",950,0,950,"147 - MOBILIARI","LOCAL D'ASSAIG"]
["TAMBOR","2007-12-31",100,0,100,"147 - MOBILIARI","LOCAL D'ASSAIG"]
["TAMBOR","2007-12-31",100,0,100,"147 - MOBILIARI","LOCAL D'ASSAIG"]
["CADIRAM","2007-12-31",21090.99,0,{"$f":"SUM(C1279,D1279)","v":21090.99},"147 - MOBILIARI","SERVEIS SOCIALS"]
["TAULES","2007-12-31",7800,0,7800,"147 - MOBILIARI","SERVEIS SOCIALS"]
["ARMARIS","2007-12-31",7000,0,7000,"147 - MOBILIARI","SERVEIS SOCIALS"]
["PISSARRA","2007-12-31",1820,0,1820,"147 - MOBILIARI","SERVEIS SOCIALS"]
["SPLIT","2007-12-31",400,0,{"$f":"SUM(C1283,D1283)","v":400},"147 - MOBILIARI","SERVEIS SOCIALS"]
["PC","2007-12-31",700,0,700,"131 - EQUIPAMENTS DE PROCESSO D'INFORMACIÓ","SERVEIS SOCIALS"]
["MONITOR","2007-12-31",90,0,90,"131 - EQUIPAMENTS DE PROCESSO D'INFORMACIÓ","SERVEIS SOCIALS"]
["PC","2007-12-31",700,0,700,"131 - EQUIPAMENTS DE PROCESSO D'INFORMACIÓ","SERVEIS SOCIALS"]
["MONITOR","2007-12-31",90,0,90,"131 - EQUIPAMENTS DE PROCESSO D'INFORMACIÓ","SERVEIS SOCIALS"]
["IMPRESSORA","2007-12-31",380,0,380,"131 - EQUIPAMENTS DE PROCESSO D'INFORMACIÓ","SERVEIS SOCIALS"]
["SPLIT","2007-12-31",400,0,400,"147 - MOBILIARI","SERVEIS SOCIALS"]
["ESCALES","2007-12-31",260,0,260,"147 - MOBILIARI","SERVEIS SOCIALS"]
["BUCS DE CALAIXOS","2007-12-31",1440,0,1440,"147 - MOBILIARI","SERVEIS SOCIALS"]
["ARXIVADORS","2007-12-31",2760,0,2760,"147 - MOBILIARI","SERVEIS SOCIALS"]
["SPLIT","2007-12-31",400,0,400,"147 - MOBILIARI","SERVEIS SOCIALS"]
["PC","2007-12-31",700,0,700,"131 - EQUIPAMENTS DE PROCESSO D'INFORMACIÓ","SERVEIS SOCIALS"]
["MONITOR","2007-12-31",90,0,90,"131 - EQUIPAMENTS DE PROCESSO D'INFORMACIÓ","SERVEIS SOCIALS"]
["PC","2007-12-31",700,0,700,"131 - EQUIPAMENTS DE PROCESSO D'INFORMACIÓ","SERVEIS SOCIALS"]
["MONITOR","2007-12-31",90,0,90,"131 - EQUIPAMENTS DE PROCESSO D'INFORMACIÓ","SERVEIS SOCIALS"]
["IMPRESSORA","2007-12-31",380,0,380,"131 - EQUIPAMENTS DE PROCESSO D'INFORMACIÓ","SERVEIS SOCIALS"]
["PC","2007-12-31",700,0,700,"131 - EQUIPAMENTS DE PROCESSO D'INFORMACIÓ","SERVEIS SOCIALS"]
["MONITOR","2007-12-31",90,0,90,"131 - EQUIPAMENTS DE PROCESSO D'INFORMACIÓ","SERVEIS SOCIALS"]
["PC","2007-12-31",700,0,700,"131 - EQUIPAMENTS DE PROCESSO D'INFORMACIÓ","SERVEIS SOCIALS"]
["MONITOR","2007-12-31",90,0,90,"131 - EQUIPAMENTS DE PROCESSO D'INFORMACIÓ","SERVEIS SOCIALS"]
["ESCANER","2007-12-31",150,0,150,"131 - EQUIPAMENTS DE PROCESSO D'INFORMACIÓ","SERVEIS SOCIALS"]
["SPLIT","2007-12-31",400,0,400,"147 - MOBILIARI","SERVEIS SOCIALS"]
["DESTRUCTORA DE DOCUMENTS","2007-12-31",180,0,180,"147 - MOBILIARI","SERVEIS SOCIALS"]
["CISSALLA ","2007-12-31",360,0,360,"147 - MOBILIARI","SERVEIS SOCIALS"]
["PLASTIFICADORA","2007-12-31",70,0,70,"147 - MOBILIARI","SERVEIS SOCIALS"]
["ENQUADERNADORA","2007-12-31",80,0,80,"147 - MOBILIARI","SERVEIS SOCIALS"]
["ENQUADERNADORA","2007-12-31",80,0,80,"147 - MOBILIARI","SERVEIS SOCIALS"]
["NEVERA","2007-12-31",400,0,400,"147 - MOBILIARI","SERVEIS SOCIALS"]
["PC","2007-12-31",700,0,700,"131 - EQUIPAMENTS DE PROCESSO D'INFORMACIÓ","SERVEIS SOCIALS"]
["IMPRESSORA","2007-12-31",380,0,380,"131 - EQUIPAMENTS DE PROCESSO D'INFORMACIÓ","SERVEIS SOCIALS"]
["TELEVISOR","2007-12-31",800,0,800,"147 - MOBILIARI","SERVEIS SOCIALS"]
["REPRODUCTOR DVD","2007-12-31",60,0,60,"147 - MOBILIARI","SERVEIS SOCIALS"]
["REPRODUCTOR VHS","2007-12-31",30,0,30,"147 - MOBILIARI","SERVEIS SOCIALS"]
["NEVERA","2007-12-31",400,0,400,"147 - MOBILIARI","SERVEIS SOCIALS"]
["SPLIT","2007-12-31",400,0,400,"147 - MOBILIARI","SERVEIS SOCIALS"]
["SPLIT","2007-12-31",400,0,400,"147 - MOBILIARI","SERVEIS SOCIALS"]
["SPLIT","2007-12-31",400,0,400,"147 - MOBILIARI","SERVEIS SOCIALS"]
["PC","2007-12-31",700,0,700,"131 - EQUIPAMENTS DE PROCESSO D'INFORMACIÓ","SERVEIS SOCIALS"]
["MONITOR","2007-12-31",90,0,90,"131 - EQUIPAMENTS DE PROCESSO D'INFORMACIÓ","SERVEIS SOCIALS"]
["PC","2007-12-31",700,0,700,"131 - EQUIPAMENTS DE PROCESSO D'INFORMACIÓ","SERVEIS SOCIALS"]
["MONITOR","2007-12-31",90,0,90,"131 - EQUIPAMENTS DE PROCESSO D'INFORMACIÓ","SERVEIS SOCIALS"]
["PC","2007-12-31",700,0,700,"131 - EQUIPAMENTS DE PROCESSO D'INFORMACIÓ","SERVEIS SOCIALS"]
["MONITOR","2007-12-31",90,0,90,"131 - EQUIPAMENTS DE PROCESSO D'INFORMACIÓ","SERVEIS SOCIALS"]
["PC","2007-12-31",700,0,700,"131 - EQUIPAMENTS DE PROCESSO D'INFORMACIÓ","SERVEIS SOCIALS"]
["MONITOR","2007-12-31",90,0,90,"131 - EQUIPAMENTS DE PROCESSO D'INFORMACIÓ","SERVEIS SOCIALS"]
["PC","2007-12-31",700,0,700,"131 - EQUIPAMENTS DE PROCESSO D'INFORMACIÓ","SERVEIS SOCIALS"]
["MONITOR","2007-12-31",90,0,90,"131 - EQUIPAMENTS DE PROCESSO D'INFORMACIÓ","SERVEIS SOCIALS"]
["IMPRESSORA","2007-12-31",380,0,380,"131 - EQUIPAMENTS DE PROCESSO D'INFORMACIÓ","SERVEIS SOCIALS"]
["PC","2007-12-31",700,0,700,"131 - EQUIPAMENTS DE PROCESSO D'INFORMACIÓ","SERVEIS SOCIALS"]
["MONITOR","2007-12-31",90,0,90,"131 - EQUIPAMENTS DE PROCESSO D'INFORMACIÓ","SERVEIS SOCIALS"]
["PC","2007-12-31",700,0,700,"131 - EQUIPAMENTS DE PROCESSO D'INFORMACIÓ","SERVEIS SOCIALS"]
["MONITOR","2007-12-31",90,0,90,"131 - EQUIPAMENTS DE PROCESSO D'INFORMACIÓ","SERVEIS SOCIALS"]
["PC","2007-12-31",700,0,700,"131 - EQUIPAMENTS DE PROCESSO D'INFORMACIÓ","SERVEIS SOCIALS"]
["MONITOR","2007-12-31",90,0,90,"131 - EQUIPAMENTS DE PROCESSO D'INFORMACIÓ","SERVEIS SOCIALS"]
["PC","2007-12-31",700,0,700,"131 - EQUIPAMENTS DE PROCESSO D'INFORMACIÓ","SERVEIS SOCIALS"]
["MONITOR","2007-12-31",90,0,90,"131 - EQUIPAMENTS DE PROCESSO D'INFORMACIÓ","SERVEIS SOCIALS"]
["PC","2007-12-31",700,0,700,"131 - EQUIPAMENTS DE PROCESSO D'INFORMACIÓ","SERVEIS SOCIALS"]
["MONITOR","2007-12-31",90,0,90,"131 - EQUIPAMENTS DE PROCESSO D'INFORMACIÓ","SERVEIS SOCIALS"]
["ORDINADOR PORTATIL","2007-12-31",600,0,600,"131 - EQUIPAMENTS DE PROCESSO D'INFORMACIÓ","SERVEIS SOCIALS"]
["CANO PROJECTOR","2007-12-31",800,0,800,"147 - MOBILIARI","SERVEIS SOCIALS"]
["PANTALLA DE PROJECCIÓ","2007-12-31",90,0,90,"147 - MOBILIARI","SERVEIS SOCIALS"]
["SPLIT","2007-12-31",400,0,400,"147 - MOBILIARI","SERVEIS SOCIALS"]
["PC","2007-12-31",700,0,700,"131 - EQUIPAMENTS DE PROCESSO D'INFORMACIÓ","SERVEIS SOCIALS"]
["MONITOR","2007-12-31",90,0,90,"131 - EQUIPAMENTS DE PROCESSO D'INFORMACIÓ","SERVEIS SOCIALS"]
["PC","2007-12-31",700,0,{"$f":"SUM(C1347,D1347)","v":700},"131 - EQUIPAMENTS DE PROCESSO D'INFORMACIÓ","SERVEIS SOCIALS"]
["MONITOR","2007-12-31",90,0,90,"131 - EQUIPAMENTS DE PROCESSO D'INFORMACIÓ","SERVEIS SOCIALS"]
["PC","2007-12-31",700,0,700,"131 - EQUIPAMENTS DE PROCESSO D'INFORMACIÓ","SERVEIS SOCIALS"]
["MONITOR","2007-12-31",90,0,90,"131 - EQUIPAMENTS DE PROCESSO D'INFORMACIÓ","SERVEIS SOCIALS"]
["IMPRESSORA","2007-12-31",380,0,380,"131 - EQUIPAMENTS DE PROCESSO D'INFORMACIÓ","SERVEIS SOCIALS"]
["MOSTRADOR","2007-12-31",400,0,400,"147 - MOBILIARI","SERVEIS SOCIALS"]
["PC","2007-12-31",700,0,700,"131 - EQUIPAMENTS DE PROCESSO D'INFORMACIÓ","SERVEIS SOCIALS"]
["MONITOR","2007-12-31",90,0,90,"131 - EQUIPAMENTS DE PROCESSO D'INFORMACIÓ","SERVEIS SOCIALS"]
["SPLIT","2007-12-31",400,0,400,"147 - MOBILIARI","SERVEIS SOCIALS"]
["FONT D'AIGUA","2007-12-31",500,0,500,"147 - MOBILIARI","SERVEIS SOCIALS"]
["ORDINADOR PORTATIL","2007-12-31",600,0,600,"131 - EQUIPAMENTS DE PROCESSO D'INFORMACIÓ","SERVEIS SOCIALS"]
["SPLIT","2007-12-31",400,0,400,"147 - MOBILIARI","SERVEIS SOCIALS"]
["PC","2007-12-31",700,0,700,"131 - EQUIPAMENTS DE PROCESSO D'INFORMACIÓ","SERVEIS SOCIALS"]
["MONITOR","2007-12-31",90,0,90,"131 - EQUIPAMENTS DE PROCESSO D'INFORMACIÓ","SERVEIS SOCIALS"]
["SPLIT","2007-12-31",400,0,400,"147 - MOBILIARI","SERVEIS SOCIALS"]
["PC","2007-12-31",700,0,700,"131 - EQUIPAMENTS DE PROCESSO D'INFORMACIÓ","SERVEIS SOCIALS"]
["MONITOR","2007-12-31",90,0,90,"131 - EQUIPAMENTS DE PROCESSO D'INFORMACIÓ","SERVEIS SOCIALS"]
["SPLIT","2007-12-31",400,0,400,"147 - MOBILIARI","SERVEIS SOCIALS"]
["CADIRAM","2007-12-31",760,0,760,"147 - MOBILIARI","SALUT PUBLICA"]
["TAULES","2007-12-31",800,0,800,"147 - MOBILIARI","SALUT PUBLICA"]
["ARMARIS","2007-12-31",1000,0,1000,"147 - MOBILIARI","SALUT PUBLICA"]
["BUCS DE CALAIXOS","2007-12-31",320,0,320,"147 - MOBILIARI","SALUT PUBLICA"]
["ARXIVADORS","2007-12-31",120,0,120,"147 - MOBILIARI","SALUT PUBLICA"]
["PISSARRA","2007-12-31",70,0,70,"147 - MOBILIARI","SALUT PUBLICA"]
["PC","2007-12-31",700,0,700,"131 - EQUIPAMENTS DE PROCESSO D'INFORMACIÓ","SALUT PUBLICA"]
["MONITOR","2007-12-31",90,0,90,"131 - EQUIPAMENTS DE PROCESSO D'INFORMACIÓ","SALUT PUBLICA"]
["PC","2007-12-31",700,0,700,"131 - EQUIPAMENTS DE PROCESSO D'INFORMACIÓ","SALUT PUBLICA"]
["MONITOR","2007-12-31",90,0,90,"131 - EQUIPAMENTS DE PROCESSO D'INFORMACIÓ","SALUT PUBLICA"]
["PC","2007-12-31",700,0,700,"131 - EQUIPAMENTS DE PROCESSO D'INFORMACIÓ","SALUT PUBLICA"]
["MONITOR","2007-12-31",90,0,90,"131 - EQUIPAMENTS DE PROCESSO D'INFORMACIÓ","SALUT PUBLICA"]
["PC","2007-12-31",700,0,700,"131 - EQUIPAMENTS DE PROCESSO D'INFORMACIÓ","SALUT PUBLICA"]
["MONITOR","2007-12-31",90,0,90,"131 - EQUIPAMENTS DE PROCESSO D'INFORMACIÓ","SALUT PUBLICA"]
["IMPRESSORA","2007-12-31",380,0,380,"131 - EQUIPAMENTS DE PROCESSO D'INFORMACIÓ","SALUT PUBLICA"]
["SPLIT","2007-12-31",400,0,400,"147 - MOBILIARI","SALUT PUBLICA"]
["CADIRAM","2007-12-31",17290,0,17290,"147 - MOBILIARI","LLAR D'INFANTS VEREMA"]
["TAULES","2007-12-31",5000,0,5000,"147 - MOBILIARI","LLAR D'INFANTS VEREMA"]
["ARMARIS","2007-12-31",6400,0,6400,"147 - MOBILIARI","LLAR D'INFANTS VEREMA"]
["MIRALLS","2007-12-31",880,0,880,"147 - MOBILIARI","LLAR D'INFANTS VEREMA"]
["PANTALLA DE PROJECCIÓ","2007-12-31",90,0,90,"147 - MOBILIARI","LLAR D'INFANTS VEREMA"]
["BAFLE ","2007-12-31",460,0,460,"147 - MOBILIARI","LLAR D'INFANTS VEREMA"]
["CALENTADOR MENJAR","2007-12-31",40,0,40,"147 - MOBILIARI","LLAR D'INFANTS VEREMA"]
["NEVERA","2007-12-31",400,0,400,"147 - MOBILIARI","LLAR D'INFANTS VEREMA"]
["CUINA","2007-12-31",450,0,450,"147 - MOBILIARI","LLAR D'INFANTS VEREMA"]
["FORN","2007-12-31",250,0,250,"147 - MOBILIARI","LLAR D'INFANTS VEREMA"]
["CONGELADOR","2007-12-31",300,0,300,"147 - MOBILIARI","LLAR D'INFANTS VEREMA"]
["NEVERA","2007-12-31",400,0,400,"147 - MOBILIARI","LLAR D'INFANTS VEREMA"]
["CONGELADOR","2007-12-31",300,0,300,"147 - MOBILIARI","LLAR D'INFANTS VEREMA"]
["NEVERA","2007-12-31",700,0,700,"147 - MOBILIARI","LLAR D'INFANTS VEREMA"]
["RENTAPLATS","2007-12-31",300,0,300,"147 - MOBILIARI","LLAR D'INFANTS VEREMA"]
["ARMARIETS","2007-12-31",3200,0,3200,"147 - MOBILIARI","LLAR D'INFANTS VEREMA"]
["BUCS DE CALAIXOS","2007-12-31",160,0,160,"147 - MOBILIARI","LLAR D'INFANTS VEREMA"]
["PISSARRA","2007-12-31",140,0,140,"147 - MOBILIARI","LLAR D'INFANTS VEREMA"]
["PC","2007-12-31",700,0,700,"131 - EQUIPAMENTS DE PROCESSO D'INFORMACIÓ","LLAR D'INFANTS VEREMA"]
["MONITOR","2007-12-31",90,0,90,"131 - EQUIPAMENTS DE PROCESSO D'INFORMACIÓ","LLAR D'INFANTS VEREMA"]
["IMPRESSORA","2007-12-31",380,0,380,"131 - EQUIPAMENTS DE PROCESSO D'INFORMACIÓ","LLAR D'INFANTS VEREMA"]
["DESTRUCTORA DE DOCUMENTS","2007-12-31",180,0,180,"147 - MOBILIARI","LLAR D'INFANTS VEREMA"]
["IMPRESSORA","2007-12-31",380,0,380,"131 - EQUIPAMENTS DE PROCESSO D'INFORMACIÓ","LLAR D'INFANTS VEREMA"]
["FAX","2007-12-31",60,0,60,"131 - EQUIPAMENTS DE PROCESSO D'INFORMACIÓ","LLAR D'INFANTS VEREMA"]
["IMPRESSORA","2007-12-31",380,0,380,"131 - EQUIPAMENTS DE PROCESSO D'INFORMACIÓ","LLAR D'INFANTS VEREMA"]
["CANO PROJECTOR","2007-12-31",800,0,800,"147 - MOBILIARI","LLAR D'INFANTS VEREMA"]
["BRESSOLS","2007-12-31",4200,0,4200,"147 - MOBILIARI","LLAR D'INFANTS VEREMA"]
["CALAIXERA","2007-12-31",190,0,190,"147 - MOBILIARI","LLAR D'INFANTS VEREMA"]
["TELEVISOR","2007-12-31",800,0,800,"147 - MOBILIARI","LLAR D'INFANTS VEREMA"]
["REPRODUCTOR DVD","2007-12-31",60,0,60,"147 - MOBILIARI","LLAR D'INFANTS VEREMA"]
["ESCALES","2007-12-31",130,0,{"$f":"SUM(C1411,D1411)","v":130},"147 - MOBILIARI","LLAR D'INFANTS VEREMA"]
["CANVIADORS","2007-12-31",100,0,100,"147 - MOBILIARI","LLAR D'INFANTS VEREMA"]
["JOC DE COTXES","2007-12-31",80,0,80,"147 - MOBILIARI","LLAR D'INFANTS VEREMA"]
["MINI CADENA","2007-12-31",100,0,100,"147 - MOBILIARI","LLAR D'INFANTS VEREMA"]
["MOBLE JOGUINA","2007-12-31",140,0,140,"147 - MOBILIARI","LLAR D'INFANTS VEREMA"]
["MINI CADENA","2007-12-31",100,0,100,"147 - MOBILIARI","LLAR D'INFANTS VEREMA"]
["RENTADORA","2007-12-31",300,0,300,"147 - MOBILIARI","LLAR D'INFANTS VEREMA"]
["SECADORA","2007-12-31",350,0,350,"147 - MOBILIARI","LLAR D'INFANTS VEREMA"]
["ORDINADOR PORTATIL","2007-12-31",600,0,600,"131 - EQUIPAMENTS DE PROCESSO D'INFORMACIÓ","LLAR D'INFANTS VEREMA"]
["CONTENIDOR","2007-12-31",1,0,1,"135 - MAQUINÀRIA I INSTAL·LACIONS TÈCNIQUES","CEMENTIRI"]
["ESCALES","2007-12-31",910,0,910,"147 - MOBILIARI","CEMENTIRI"]
["ESCALA GRAN","2007-12-31",250,0,250,"147 - MOBILIARI","CEMENTIRI"]
["MOSTRADOR","2007-12-31",400,0,400,"147 - MOBILIARI","POLICIA MUNICIPAL"]
["CADIRAM","2007-12-31",16340,0,16340,"147 - MOBILIARI","POLICIA MUNICIPAL"]
["ARMARIS","2007-12-31",8200,0,8200,"147 - MOBILIARI","POLICIA MUNICIPAL"]
["TAULES","2007-12-31",5600,0,5600,"147 - MOBILIARI","POLICIA MUNICIPAL"]
["PISSARRA","2007-12-31",560,0,560,"147 - MOBILIARI","POLICIA MUNICIPAL"]
["SPLIT","2007-12-31",400,0,400,"147 - MOBILIARI","POLICIA MUNICIPAL"]
["SPLIT","2007-12-31",400,0,400,"147 - MOBILIARI","POLICIA MUNICIPAL"]
["ETILOMETRE","2007-12-31",90,0,90,"147 - MOBILIARI","POLICIA MUNICIPAL"]
["CASCS","2007-12-31",1500,0,1500,"147 - MOBILIARI","POLICIA MUNICIPAL"]
["ESCUTS","2007-12-31",1,0,1,"147 - MOBILIARI","POLICIA MUNICIPAL"]
["RADAR","2007-12-31",650,0,650,"147 - MOBILIARI","POLICIA MUNICIPAL"]
["FLASH RADAR","2007-12-31",1,0,1,"147 - MOBILIARI","POLICIA MUNICIPAL"]
["TRIPODE","2007-12-31",50,0,50,"147 - MOBILIARI","POLICIA MUNICIPAL"]
["LLUMS CONTROL","2007-12-31",80,0,80,"147 - MOBILIARI","POLICIA MUNICIPAL"]
["BUCS DE CALAIXOS","2007-12-31",1440,0,1440,"147 - MOBILIARI","POLICIA MUNICIPAL"]
["PC","2007-12-31",700,0,700,"131 - EQUIPAMENTS DE PROCESSO D'INFORMACIÓ","POLICIA MUNICIPAL"]
["MONITOR","2007-12-31",90,0,90,"131 - EQUIPAMENTS DE PROCESSO D'INFORMACIÓ","POLICIA MUNICIPAL"]
["IMPRESSORA","2007-12-31",380,0,380,"131 - EQUIPAMENTS DE PROCESSO D'INFORMACIÓ","POLICIA MUNICIPAL"]
["PC","2007-12-31",700,0,700,"131 - EQUIPAMENTS DE PROCESSO D'INFORMACIÓ","POLICIA MUNICIPAL"]
["ARXIVADORS","2007-12-31",600,0,600,"147 - MOBILIARI","POLICIA MUNICIPAL"]
["ORDINADOR PORTATIL","2007-12-31",600,0,600,"131 - EQUIPAMENTS DE PROCESSO D'INFORMACIÓ","POLICIA MUNICIPAL"]
["MONITOR","2007-12-31",90,0,90,"131 - EQUIPAMENTS DE PROCESSO D'INFORMACIÓ","POLICIA MUNICIPAL"]
["DESTRUCTORA DE DOCUMENTS","2007-12-31",180,0,180,"147 - MOBILIARI","POLICIA MUNICIPAL"]
["CONJUNT BANDERES","2007-12-31",100,0,100,"147 - MOBILIARI","POLICIA MUNICIPAL"]
["TELEVISOR","2007-12-31",800,0,800,"147 - MOBILIARI","POLICIA MUNICIPAL"]
["REPRODUCTOR DVD","2007-12-31",60,0,60,"147 - MOBILIARI","POLICIA MUNICIPAL"]
["REPRODUCTOR VHS","2007-12-31",30,0,30,"147 - MOBILIARI","POLICIA MUNICIPAL"]
["PC","2007-12-31",700,0,700,"131 - EQUIPAMENTS DE PROCESSO D'INFORMACIÓ","POLICIA MUNICIPAL"]
["MONITOR","2007-12-31",90,0,90,"131 - EQUIPAMENTS DE PROCESSO D'INFORMACIÓ","POLICIA MUNICIPAL"]
["SPLIT","2007-12-31",400,0,400,"147 - MOBILIARI","POLICIA MUNICIPAL"]
["PC","2007-12-31",700,0,700,"131 - EQUIPAMENTS DE PROCESSO D'INFORMACIÓ","POLICIA MUNICIPAL"]
["MONITOR","2007-12-31",90,0,90,"131 - EQUIPAMENTS DE PROCESSO D'INFORMACIÓ","POLICIA MUNICIPAL"]
["PC","2007-12-31",700,0,700,"131 - EQUIPAMENTS DE PROCESSO D'INFORMACIÓ","POLICIA MUNICIPAL"]
["MONITOR","2007-12-31",90,0,90,"131 - EQUIPAMENTS DE PROCESSO D'INFORMACIÓ","POLICIA MUNICIPAL"]
["ESCANER","2007-12-31",150,0,150,"131 - EQUIPAMENTS DE PROCESSO D'INFORMACIÓ","POLICIA MUNICIPAL"]
["IMPRESSORA","2007-12-31",380,0,380,"131 - EQUIPAMENTS DE PROCESSO D'INFORMACIÓ","POLICIA MUNICIPAL"]
["IMPRESSORA","2007-12-31",380,0,380,"131 - EQUIPAMENTS DE PROCESSO D'INFORMACIÓ","POLICIA MUNICIPAL"]
["PC","2007-12-31",700,0,700,"131 - EQUIPAMENTS DE PROCESSO D'INFORMACIÓ","POLICIA MUNICIPAL"]
["MONITOR","2007-12-31",90,0,90,"131 - EQUIPAMENTS DE PROCESSO D'INFORMACIÓ","POLICIA MUNICIPAL"]
["ESCANER","2007-12-31",150,0,150,"131 - EQUIPAMENTS DE PROCESSO D'INFORMACIÓ","POLICIA MUNICIPAL"]
["DESTRUCTORA DE DOCUMENTS","2007-12-31",180,0,180,"147 - MOBILIARI","POLICIA MUNICIPAL"]
["PC","2007-12-31",700,0,700,"131 - EQUIPAMENTS DE PROCESSO D'INFORMACIÓ","POLICIA MUNICIPAL"]
["MONITOR","2007-12-31",90,0,90,"131 - EQUIPAMENTS DE PROCESSO D'INFORMACIÓ","POLICIA MUNICIPAL"]
["ENQUADERNADORA","2007-12-31",80,0,80,"147 - MOBILIARI","POLICIA MUNICIPAL"]
["CISSALLA ","2007-12-31",360,0,360,"147 - MOBILIARI","POLICIA MUNICIPAL"]
["SPLIT","2007-12-31",400,0,400,"147 - MOBILIARI","POLICIA MUNICIPAL"]
["CISSALLA ","2007-12-31",360,0,360,"147 - MOBILIARI","POLICIA MUNICIPAL"]
["IMPRESSORA","2007-12-31",380,0,380,"131 - EQUIPAMENTS DE PROCESSO D'INFORMACIÓ","POLICIA MUNICIPAL"]
["DESTRUCTORA DE DOCUMENTS","2007-12-31",180,0,180,"147 - MOBILIARI","POLICIA MUNICIPAL"]
["TELEVISOR","2007-12-31",800,0,800,"147 - MOBILIARI","POLICIA MUNICIPAL"]
["PC","2007-12-31",700,0,700,"131 - EQUIPAMENTS DE PROCESSO D'INFORMACIÓ","POLICIA MUNICIPAL"]
["MONITOR","2007-12-31",90,0,90,"131 - EQUIPAMENTS DE PROCESSO D'INFORMACIÓ","POLICIA MUNICIPAL"]
["PC","2007-12-31",700,0,{"$f":"SUM(C1475,D1475)","v":700},"131 - EQUIPAMENTS DE PROCESSO D'INFORMACIÓ","POLICIA MUNICIPAL"]
["MONITOR","2007-12-31",90,0,90,"131 - EQUIPAMENTS DE PROCESSO D'INFORMACIÓ","POLICIA MUNICIPAL"]
["CAIXA ENREGISTRADORA","2007-12-31",400,0,400,"147 - MOBILIARI","POLICIA MUNICIPAL"]
["TELEVISOR","2007-12-31",800,0,800,"147 - MOBILIARI","POLICIA MUNICIPAL"]
["PC","2007-12-31",700,0,700,"131 - EQUIPAMENTS DE PROCESSO D'INFORMACIÓ","POLICIA MUNICIPAL"]
["MONITOR","2007-12-31",90,0,90,"131 - EQUIPAMENTS DE PROCESSO D'INFORMACIÓ","POLICIA MUNICIPAL"]
["CAIXA ENREGISTRADORA","2007-12-31",400,0,400,"147 - MOBILIARI","POLICIA MUNICIPAL"]
["IMPRESSORA","2007-12-31",380,0,380,"131 - EQUIPAMENTS DE PROCESSO D'INFORMACIÓ","POLICIA MUNICIPAL"]
["FAX","2007-12-31",60,0,60,"131 - EQUIPAMENTS DE PROCESSO D'INFORMACIÓ","POLICIA MUNICIPAL"]
["EMISORA","2007-12-31",130,0,130,"147 - MOBILIARI","POLICIA MUNICIPAL"]
["COMPROVANT DE BILLETS","2007-12-31",250,0,250,"147 - MOBILIARI","POLICIA MUNICIPAL"]
["PC","2007-12-31",700,0,700,"131 - EQUIPAMENTS DE PROCESSO D'INFORMACIÓ","POLICIA MUNICIPAL"]
["MONITOR","2007-12-31",90,0,90,"131 - EQUIPAMENTS DE PROCESSO D'INFORMACIÓ","POLICIA MUNICIPAL"]
["IMPRESSORA","2007-12-31",380,0,380,"131 - EQUIPAMENTS DE PROCESSO D'INFORMACIÓ","POLICIA MUNICIPAL"]
["SPLIT","2007-12-31",400,0,400,"147 - MOBILIARI","POLICIA MUNICIPAL"]
["PC","2007-12-31",700,0,700,"131 - EQUIPAMENTS DE PROCESSO D'INFORMACIÓ","POLICIA MUNICIPAL"]
["MONITOR","2007-12-31",90,0,90,"131 - EQUIPAMENTS DE PROCESSO D'INFORMACIÓ","POLICIA MUNICIPAL"]
["PC","2007-12-31",700,0,700,"131 - EQUIPAMENTS DE PROCESSO D'INFORMACIÓ","POLICIA MUNICIPAL"]
["MONITOR","2007-12-31",90,0,90,"131 - EQUIPAMENTS DE PROCESSO D'INFORMACIÓ","POLICIA MUNICIPAL"]
["IMPRESSORA","2007-12-31",380,0,380,"131 - EQUIPAMENTS DE PROCESSO D'INFORMACIÓ","POLICIA MUNICIPAL"]
["SPLIT","2007-12-31",400,0,400,"147 - MOBILIARI","POLICIA MUNICIPAL"]
["FONT D'AIGUA","2007-12-31",500,0,500,"147 - MOBILIARI","POLICIA MUNICIPAL"]
["ARMARIETS","2007-12-31",10000,0,10000,"147 - MOBILIARI","POLICIA MUNICIPAL"]
["ASPIRADORA","2007-12-31",80,0,80,"135 - MAQUINÀRIA I INSTAL·LACIONS TÈCNIQUES","POLICIA MUNICIPAL"]
["COMPRESSOR AIRE","2007-12-31",350,0,350,"135 - MAQUINÀRIA I INSTAL·LACIONS TÈCNIQUES","POLICIA MUNICIPAL"]
["NETEJADORA","2007-12-31",120,0,120,"135 - MAQUINÀRIA I INSTAL·LACIONS TÈCNIQUES","POLICIA MUNICIPAL"]
["GAT HIDRAULIC","2007-12-31",100,0,100,"135 - MAQUINÀRIA I INSTAL·LACIONS TÈCNIQUES","POLICIA MUNICIPAL"]
["ESCALES","2007-12-31",130,0,130,"147 - MOBILIARI","POLICIA MUNICIPAL"]
["PARANY COTXES","2007-12-31",140,0,140,"147 - MOBILIARI","POLICIA MUNICIPAL"]
["SPLIT","2007-12-31",400,0,400,"147 - MOBILIARI","POLICIA MUNICIPAL"]
["NEVERA","2007-12-31",400,0,400,"147 - MOBILIARI","POLICIA MUNICIPAL"]
["PISTOLA","2007-12-31",25200,0,25200,"147 - MOBILIARI","POLICIA MUNICIPAL"]
["PISTOLA","2007-12-31",3000,0,3000,"147 - MOBILIARI","POLICIA MUNICIPAL"]
["VEHICLE","2007-12-31",14934.7,0,14934.7,"134 - VEHICLES","POLICIA MUNICIPAL"]
["VEHICLE","2007-12-31",14934.7,0,14934.7,"134 - VEHICLES","POLICIA MUNICIPAL"]
["VEHICLE","2007-12-31","RENTING",0,0,"134 - VEHICLES","POLICIA MUNICIPAL"]
["VEHICLE","2007-12-31","RENTING",0,0,"134 - VEHICLES","POLICIA MUNICIPAL"]
["VEHICLE","2007-12-31",9000,0,9000,"134 - VEHICLES","POLICIA MUNICIPAL"]
["VEHICLE","2007-12-31",14934.7,0,14934.7,"134 - VEHICLES","POLICIA MUNICIPAL"]
["VEHICLE","2007-12-31",2368,0,2368,"134 - VEHICLES","POLICIA MUNICIPAL"]
["VEHICLE","2007-12-31",3087.64,0,3087.64,"134 - VEHICLES","POLICIA MUNICIPAL"]
["VEHICLE","2007-12-31",4766.82,0,4766.82,"134 - VEHICLES","POLICIA MUNICIPAL"]
["VEHICLE","2007-12-31",4766.82,0,4766.82,"134 - VEHICLES","POLICIA MUNICIPAL"]
["CARREGADOR BATERIA","2007-12-31",340,0,340,"135 - MAQUINÀRIA I INSTAL·LACIONS TÈCNIQUES","POLICIA MUNICIPAL"]
["EQUIP EMERGENCIA","2007-12-31",180,0,180,"147 - MOBILIARI","POLICIA MUNICIPAL"]
["CADIRAM","2007-12-31",7600,0,7600,"147 - MOBILIARI","PROTECCIO CIVIL"]
["TAULES","2007-12-31",800,0,800,"147 - MOBILIARI","PROTECCIO CIVIL"]
["ARMARIS","2007-12-31",1400,0,1400,"147 - MOBILIARI","PROTECCIO CIVIL"]
["BUCS DE CALAIXOS","2007-12-31",160,0,160,"147 - MOBILIARI","PROTECCIO CIVIL"]
["ARXIVADORS","2007-12-31",120,0,120,"147 - MOBILIARI","PROTECCIO CIVIL"]
["ESTUFA","2007-12-31",200,0,200,"147 - MOBILIARI","PROTECCIO CIVIL"]
["ESTUFA","2007-12-31",200,0,200,"147 - MOBILIARI","PROTECCIO CIVIL"]
["ESTUFA","2007-12-31",200,0,200,"147 - MOBILIARI","PROTECCIO CIVIL"]
["MONITOR","2007-12-31",90,0,90,"131 - EQUIPAMENTS DE PROCESSO D'INFORMACIÓ","PROTECCIO CIVIL"]
["PC","2007-12-31",700,0,700,"131 - EQUIPAMENTS DE PROCESSO D'INFORMACIÓ","PROTECCIO CIVIL"]
["MONITOR","2007-12-31",90,0,90,"131 - EQUIPAMENTS DE PROCESSO D'INFORMACIÓ","PROTECCIO CIVIL"]
["PC","2007-12-31",700,0,700,"131 - EQUIPAMENTS DE PROCESSO D'INFORMACIÓ","PROTECCIO CIVIL"]
["CAMARA DE FOTOS","2007-12-31",100,0,100,"147 - MOBILIARI","PROTECCIO CIVIL"]
["OBJECTIU","2007-12-31",240,0,240,"147 - MOBILIARI","PROTECCIO CIVIL"]
["ESCANER","2007-12-31",150,0,150,"131 - EQUIPAMENTS DE PROCESSO D'INFORMACIÓ","PROTECCIO CIVIL"]
["REPETIDOR ANALOGIC","2007-12-31",40,0,40,"147 - MOBILIARI","PROTECCIO CIVIL"]
["MOTXILLES","2007-12-31",160,0,160,"147 - MOBILIARI","PROTECCIO CIVIL"]
["CASCS BICI","2007-12-31",300,0,300,"147 - MOBILIARI","PROTECCIO CIVIL"]
["CASCS BOMBERS","2007-12-31",600,0,600,"147 - MOBILIARI","PROTECCIO CIVIL"]
["CASCS MONTANYA","2007-12-31",180,0,{"$f":"SUM(C1539,D1539)","v":180},"147 - MOBILIARI","PROTECCIO CIVIL"]
["MOSTRADOR","2007-12-31",400,0,400,"147 - MOBILIARI","PROTECCIO CIVIL"]
["CALAIXERA","2007-12-31",190,0,190,"147 - MOBILIARI","PROTECCIO CIVIL"]
["MICROONES","2007-12-31",70,0,70,"147 - MOBILIARI","PROTECCIO CIVIL"]
["CAFETERA","2007-12-31",100,0,100,"147 - MOBILIARI","PROTECCIO CIVIL"]
["TELEVISOR","2007-12-31",800,0,800,"147 - MOBILIARI","PROTECCIO CIVIL"]
["NEVERA","2007-12-31",400,0,400,"147 - MOBILIARI","PROTECCIO CIVIL"]
["LLANTERNES","2007-12-31",270,0,270,"147 - MOBILIARI","PROTECCIO CIVIL"]
["LLANTERNES","2007-12-31",90,0,90,"147 - MOBILIARI","PROTECCIO CIVIL"]
["TRANSFORMADOR","2007-12-31",130,0,130,"147 - MOBILIARI","PROTECCIO CIVIL"]
["RADIO ","2007-12-31",720,0,720,"147 - MOBILIARI","PROTECCIO CIVIL"]
["RADIO ","2007-12-31",360,0,360,"147 - MOBILIARI","PROTECCIO CIVIL"]
["RADIO ","2007-12-31",180,0,180,"147 - MOBILIARI","PROTECCIO CIVIL"]
["NEVERA","2007-12-31",400,0,400,"147 - MOBILIARI","PROTECCIO CIVIL"]
["PISSARRA","2007-12-31",70,0,70,"147 - MOBILIARI","PROTECCIO CIVIL"]
["VEHICLE","2007-12-31",18000,0,18000,"134 - VEHICLES","PROTECCIO CIVIL"]
["REMOLC","2007-12-31",2500,0,2500,"134 - VEHICLES","PROTECCIO CIVIL"]
["ARMARIETS","2007-12-31",3000,0,3000,"147 - MOBILIARI","PROTECCIO CIVIL"]
["SPLIT","2007-12-31",400,0,400,"147 - MOBILIARI","PROTECCIO CIVIL"]
["CARREGADOR BATERIA","2007-12-31",340,0,340,"135 - MAQUINÀRIA I INSTAL·LACIONS TÈCNIQUES","PROTECCIO CIVIL"]
["MOTOSERRA","2007-12-31",110,0,110,"135 - MAQUINÀRIA I INSTAL·LACIONS TÈCNIQUES","PROTECCIO CIVIL"]
["GENERADOR","2007-12-31",300,0,300,"135 - MAQUINÀRIA I INSTAL·LACIONS TÈCNIQUES","PROTECCIO CIVIL"]
["BOMBA AIGUA","2007-12-31",450,0,450,"135 - MAQUINÀRIA I INSTAL·LACIONS TÈCNIQUES","PROTECCIO CIVIL"]
["BOMBA AIGUA","2007-12-31",450,0,450,"135 - MAQUINÀRIA I INSTAL·LACIONS TÈCNIQUES","PROTECCIO CIVIL"]
["GENERADOR","2007-12-31",300,0,300,"135 - MAQUINÀRIA I INSTAL·LACIONS TÈCNIQUES","PROTECCIO CIVIL"]
["GENERADOR","2007-12-31",300,0,300,"135 - MAQUINÀRIA I INSTAL·LACIONS TÈCNIQUES","PROTECCIO CIVIL"]
["CAMIO","2007-12-31",257460,0,257460,"134 - VEHICLES","URBASER"]
["CAMIO","2007-12-31",257460,0,257460,"134 - VEHICLES","URBASER"]
["CAMIO","2007-12-31",225585,0,225585,"134 - VEHICLES","URBASER"]
["CAIXA OBERTA PER CAMIO","2007-12-31",4200,0,4200,"135 - MAQUINÀRIA I INSTAL·LACIONS TÈCNIQUES","URBASER"]
["FURGONETA","2007-12-31",11235,0,11235,"134 - VEHICLES","URBASER"]
["CONTENIDORS 3000 L REBUIG","2007-12-31",189000,0,189000,"135 - MAQUINÀRIA I INSTAL·LACIONS TÈCNIQUES","URBASER"]
["CONTENIDORS 3500 L REBUIG","2007-12-31",9450,0,9450,"135 - MAQUINÀRIA I INSTAL·LACIONS TÈCNIQUES","URBASER"]
["CONTENIDORS 1800 L ORGANICA","2007-12-31",148256,0,148256,"135 - MAQUINÀRIA I INSTAL·LACIONS TÈCNIQUES","URBASER"]
["CONTENIDORS 1800 L VIDRE","2007-12-31",150880,0,150880,"135 - MAQUINÀRIA I INSTAL·LACIONS TÈCNIQUES","URBASER"]
["CONTENIDORS 3000 L ENVASOS","2007-12-31",181125,0,181125,"135 - MAQUINÀRIA I INSTAL·LACIONS TÈCNIQUES","URBASER"]
["CONTENIDORS 3000 L PAPER","2007-12-31",189000,0,189000,"135 - MAQUINÀRIA I INSTAL·LACIONS TÈCNIQUES","URBASER"]
["CONTENIDORS 3500 L PAPER","2007-12-31",9450,0,9450,"135 - MAQUINÀRIA I INSTAL·LACIONS TÈCNIQUES","URBASER"]
["CONTENIDOR AUTOCOMPACTADOR","2007-12-31",15120,0,15120,"135 - MAQUINÀRIA I INSTAL·LACIONS TÈCNIQUES","URBASER"]
["FURGONETA","2007-12-31",15750,0,15750,"134 - VEHICLES","URBASER"]
["ESCOMBRADORA","2007-12-31",173250,0,173250,"134 - VEHICLES","URBASER"]
["FURGONETA","2007-12-31",11235,0,11235,"134 - VEHICLES","URBASER"]
["FURGONETA","2007-12-31",11235,0,11235,"134 - VEHICLES","URBASER"]
["CARRET ESCOMBRADA MANUAL","2007-12-31",703.5,0,703.5,"135 - MAQUINÀRIA I INSTAL·LACIONS TÈCNIQUES","URBASER"]
["ESCOMBRADORA","2007-12-31",173250,0,173250,"134 - VEHICLES","URBASER"]
["FURGONETA","2007-12-31",50274,0,50274,"134 - VEHICLES","URBASER"]
["CAMIO","2007-12-31",57750,0,57750,"134 - VEHICLES","URBASER"]
["BUFADORES","2007-12-31",1207.5,0,1207.5,"135 - MAQUINÀRIA I INSTAL·LACIONS TÈCNIQUES","URBASER"]
["CAMIO","2007-12-31",1,0,1,"134 - VEHICLES","URBASER"]
["CAMIO","2007-12-31",1,0,1,"134 - VEHICLES","URBASER"]
["FURGONETA","2007-12-31",1,0,1,"134 - VEHICLES","URBASER"]
["MOTOCICLETA","2007-12-31",1,0,1,"134 - VEHICLES","URBASER"]
["CONTENIDOR AUTOCOMPACTADOR","2007-12-31",27500,0,27500,"135 - MAQUINÀRIA I INSTAL·LACIONS TÈCNIQUES","URBASER"]
["MOBILIARI URBÀ","2007-12-31",1,601456.67999999993,601457.67999999993,"500 - MOBILIARI URBÀ","MUNICIPI"]
["DRETS DE PROPIETAT COMERCIAL (SOFTWARE)","2007-12-31",1,175735.77000000002,175736.77000000002,"154 - SOFTWARE","MUNICIPI"]
["PROPIETAT INTEL·LECTUAL","2007-12-31",1,35277,35278,"501 -PROPIETAT INTEL·LECTUAL","MUNICIPI"]
["FONS HISTÒRIC ARTÍSTIC","2007-12-31",1,56181.64,56182.64,"148 - FONS HISTÒRIC-ARTÍSTIC","MUNICIPI"]
["EXCAVACIONS ARQUEOLÒGIQUES","2007-12-31",1,291112.18000000005,291113.18000000005,"121 - INMOBLES (DOMINI PÚBLIC)","MUNICIPI"]
[null,"TOTAL:",{"$f":"SUM(C2:C1596)","v":71831301.675099939},{"$f":"SUM(D2:D1596)","v":29403467.740000006},{"$f":"SUM(E2:E1596)","v":101234769.41510007}]

{"sheet":"PAME","index":1,"n_rows":313,"n_cols":7,"rows_kept":313,"cut":false,"hidden":false,"merged":[]}
["Descripció del bé","Data adquisició","Valoració","Millores","Total","Família","Ubicació"]
["PAVELLÓ J. CREUS I CFA - C/ PIZARRO - ELS PINETONS","1968-01-23",1369279.23,555350.29,1924629.52,"121 - INMOBLES (DOMINI PÚBLIC)","MUNICIPI"]
["COMPLEX ESPORTIU - C/ MAGALLANES 26 - Z. ESPORTIVA","1981-06-11",3484803.75,2645319.620000001,6130123.370000001,"121 - INMOBLES (DOMINI PÚBLIC)","MUNICIPI"]
["CAMP DE FUTBOL - C/ MAGALLANES S/N - Z. ESPORTIVA","1971-05-05",328380.24,23225.15,351605.39,"121 - INMOBLES (DOMINI PÚBLIC)","MUNICIPI"]
["CAMP FUTBOL L'INDUSTRIAL - C/ PADRÓ - P. GASSÓ-V.","1992-07-23",1050916.5,1646724.3500000003,2697640.8500000006,"121 - INMOBLES (DOMINI PÚBLIC)","MUNICIPI"]
["PAVELLÓ FRANCESC BARNEDA - C/ TAMARIT 30 - N. URBÀ","1996-07-29",340484.53,386866.43000000005,727350.96000000008,"121 - INMOBLES (DOMINI PÚBLIC)","MUNICIPI"]
["TERRENY PAVELLÓ J. CREUS I CFA - C/ PIZARRO - ELS PINETONS","1968-01-23",140416.5,0,140416.5,"121 - INMOBLES (DOMINI PÚBLIC)","MUNICIPI"]
["TERRENY COMPLEX ESPORTIU - C/ MAGALLANES 26 - Z. ESPORTIVA","1981-06-11",1592247,0,1592247,"121 - INMOBLES (DOMINI PÚBLIC)","MUNICIPI"]
["TERRENY CAMP DE FUTBOL - C/ MAGALLANES S/N - Z. ESPORTIVA","1971-05-05",380614.5,0,380614.5,"121 - INMOBLES (DOMINI PÚBLIC)","MUNICIPI"]
["TERRENY CAMP FUTBOL L'INDUSTRIAL - C/ PADRÓ - P. GASSÓ-V.","1992-07-23",420862.5,0,420862.5,"121 - INMOBLES (DOMINI PÚBLIC)","MUNICIPI"]
["TERRENY PAVELLÓ FRANCESC BARNEDA - C/ TAMARIT 30 - N. URBÀ","1996-07-29",25454.924999999999,0,25454.924999999999,"121 - INMOBLES (DOMINI PÚBLIC)","MUNICIPI"]
["CADIRAM","2007-12-31",27360,0,27360,"147 - MOBILIARI","POLIESPORTIU / CAMP DE FUTBOL RIPOLLET"]
["TAULES","2007-12-31",6600,0,6600,"147 - MOBILIARI","POLIESPORTIU / CAMP DE FUTBOL RIPOLLET"]
["MOSTRADOR","2007-12-31",800,0,800,"147 - MOBILIARI","POLIESPORTIU / CAMP DE FUTBOL RIPOLLET"]
["BUCS DE CALAIXOS","2007-12-31",880,0,880,"147 - MOBILIARI","POLIESPORTIU / CAMP DE FUTBOL RIPOLLET"]
["PC","2007-12-31",700,0,700,"131 - EQUIPAMENTS DE PROCESSO D'INFORMACIÓ","POLIESPORTIU / CAMP DE FUTBOL RIPOLLET"]
["MONITOR","2007-12-31",90,0,90,"131 - EQUIPAMENTS DE PROCESSO D'INFORMACIÓ","POLIESPORTIU / CAMP DE FUTBOL RIPOLLET"]
["EXPENDEDOR TICKETS","2007-12-31",180,0,180,"147 - MOBILIARI","POLIESPORTIU / CAMP DE FUTBOL RIPOLLET"]
["CAIXA ENREGISTRADORA","2007-12-31",400,0,400,"147 - MOBILIARI","POLIESPORTIU / CAMP DE FUTBOL RIPOLLET"]
["PC","2007-12-31",700,0,700,"131 - EQUIPAMENTS DE PROCESSO D'INFORMACIÓ","POLIESPORTIU / CAMP DE FUTBOL RIPOLLET"]
["MONITOR","2007-12-31",90,0,90,"131 - EQUIPAMENTS DE PROCESSO D'INFORMACIÓ","POLIESPORTIU / CAMP DE FUTBOL RIPOLLET"]
["CAIXA ENREGISTRADORA","2007-12-31",400,0,400,"147 - MOBILIARI","POLIESPORTIU / CAMP DE FUTBOL RIPOLLET"]
["IMPRESSORA MULTIFUNCIO","2007-12-31",500,0,500,"131 - EQUIPAMENTS DE PROCESSO D'INFORMACIÓ","POLIESPORTIU / CAMP DE FUTBOL RIPOLLET"]
["MONITOR","2007-12-31",90,0,90,"131 - EQUIPAMENTS DE PROCESSO D'INFORMACIÓ","POLIESPORTIU / CAMP DE FUTBOL RIPOLLET"]
["PC","2007-12-31",700,0,700,"131 - EQUIPAMENTS DE PROCESSO D'INFORMACIÓ","POLIESPORTIU / CAMP DE FUTBOL RIPOLLET"]
["EXPENDEDOR TICKETS","2007-12-31",180,0,180,"147 - MOBILIARI","POLIESPORTIU / CAMP DE FUTBOL RIPOLLET"]
["DESFIBRIL·LADOR","2007-12-31",1100,0,1100,"147 - MOBILIARI","POLIESPORTIU / CAMP DE FUTBOL RIPOLLET"]
["MAQUINA CONEXIO PC TV","2007-12-31",110,0,110,"131 - EQUIPAMENTS DE PROCESSO D'INFORMACIÓ","POLIESPORTIU / CAMP DE FUTBOL RIPOLLET"]
["MINI CADENA","2007-12-31",100,0,100,"147 - MOBILIARI","POLIESPORTIU / CAMP DE FUTBOL RIPOLLET"]
["MICROFON","2007-12-31",80,0,80,"147 - MOBILIARI","POLIESPORTIU / CAMP DE FUTBOL RIPOLLET"]
["AMPLIFICADOR","2007-12-31",300,0,300,"147 - MOBILIARI","POLIESPORTIU / CAMP DE FUTBOL RIPOLLET"]
["AMPLIFICADOR","2007-12-31",300,0,300,"147 - MOBILIARI","POLIESPORTIU / CAMP DE FUTBOL RIPOLLET"]
["SWITCH","2007-12-31",50,0,50,"131 - EQUIPAMENTS DE PROCESSO D'INFORMACIÓ","POLIESPORTIU / CAMP DE FUTBOL RIPOLLET"]
["ARMARIS RACK","2007-12-31",1000,0,1000,"147 - MOBILIARI","POLIESPORTIU / CAMP DE FUTBOL RIPOLLET"]
["MINI CADENA","2007-12-31",100,0,100,"147 - MOBILIARI","POLIESPORTIU / CAMP DE FUTBOL RIPOLLET"]
["ARMARIS","2007-12-31",6200,0,6200,"147 - MOBILIARI","POLIESPORTIU / CAMP DE FUTBOL RIPOLLET"]
["QUIOSC TACTIL","2007-12-31",500,0,500,"147 - MOBILIARI","POLIESPORTIU / CAMP DE FUTBOL RIPOLLET"]
["LECTOR EMPREMTA DIGITAL","2007-12-31",160,0,160,"147 - MOBILIARI","POLIESPORTIU / CAMP DE FUTBOL RIPOLLET"]
["EXPOSITORS","2007-12-31",120,0,120,"147 - MOBILIARI","POLIESPORTIU / CAMP DE FUTBOL RIPOLLET"]
["TELEVISOR","2007-12-31",800,0,800,"147 - MOBILIARI","POLIESPORTIU / CAMP DE FUTBOL RIPOLLET"]
["PISSARRA","2007-12-31",490,0,490,"147 - MOBILIARI","POLIESPORTIU / CAMP DE FUTBOL RIPOLLET"]
["SPLIT","2007-12-31",400,0,400,"147 - MOBILIARI","POLIESPORTIU / CAMP DE FUTBOL RIPOLLET"]
["SPLIT","2007-12-31",400,0,400,"147 - MOBILIARI","POLIESPORTIU / CAMP DE FUTBOL RIPOLLET"]
["IMPRESSORA MULTIFUNCIO","2007-12-31",500,0,500,"131 - EQUIPAMENTS DE PROCESSO D'INFORMACIÓ","POLIESPORTIU / CAMP DE FUTBOL RIPOLLET"]
["DESTRUCTORA DE DOCUMENTS","2007-12-31",180,0,180,"147 - MOBILIARI","POLIESPORTIU / CAMP DE FUTBOL RIPOLLET"]
["MONITOR","2007-12-31",90,0,90,"131 - EQUIPAMENTS DE PROCESSO D'INFORMACIÓ","POLIESPORTIU / CAMP DE FUTBOL RIPOLLET"]
["PC","2007-12-31",700,0,700,"131 - EQUIPAMENTS DE PROCESSO D'INFORMACIÓ","POLIESPORTIU / CAMP DE FUTBOL RIPOLLET"]
["EXPENDEDOR TICKETS","2007-12-31",180,0,180,"147 - MOBILIARI","POLIESPORTIU / CAMP DE FUTBOL RIPOLLET"]
["SPLIT","2007-12-31",400,0,400,"147 - MOBILIARI","POLIESPORTIU / CAMP DE FUTBOL RIPOLLET"]
["ARXIVADORS","2007-12-31",600,0,600,"147 - MOBILIARI","POLIESPORTIU / CAMP DE FUTBOL RIPOLLET"]
["IMPRESSORA","2007-12-31",380,0,380,"131 - EQUIPAMENTS DE PROCESSO D'INFORMACIÓ","POLIESPORTIU / CAMP DE FUTBOL RIPOLLET"]
["SWITCH","2007-12-31",50,0,50,"131 - EQUIPAMENTS DE PROCESSO D'INFORMACIÓ","POLIESPORTIU / CAMP DE FUTBOL RIPOLLET"]
["PC","2007-12-31",700,0,700,"131 - EQUIPAMENTS DE PROCESSO D'INFORMACIÓ","POLIESPORTIU / CAMP DE FUTBOL RIPOLLET"]
["MONITOR","2007-12-31",90,0,90,"131 - EQUIPAMENTS DE PROCESSO D'INFORMACIÓ","POLIESPORTIU / CAMP DE FUTBOL RIPOLLET"]
["PC","2007-12-31",700,0,700,"131 - EQUIPAMENTS DE PROCESSO D'INFORMACIÓ","POLIESPORTIU / CAMP DE FUTBOL RIPOLLET"]
["MONITOR","2007-12-31",90,0,90,"131 - EQUIPAMENTS DE PROCESSO D'INFORMACIÓ","POLIESPORTIU / CAMP DE FUTBOL RIPOLLET"]
["PC","2007-12-31",700,0,700,"131 - EQUIPAMENTS DE PROCESSO D'INFORMACIÓ","POLIESPORTIU / CAMP DE FUTBOL RIPOLLET"]
["MONITOR","2007-12-31",90,0,90,"131 - EQUIPAMENTS DE PROCESSO D'INFORMACIÓ","POLIESPORTIU / CAMP DE FUTBOL RIPOLLET"]
["PC","2007-12-31",700,0,700,"131 - EQUIPAMENTS DE PROCESSO D'INFORMACIÓ","POLIESPORTIU / CAMP DE FUTBOL RIPOLLET"]
["MONITOR","2007-12-31",90,0,90,"131 - EQUIPAMENTS DE PROCESSO D'INFORMACIÓ","POLIESPORTIU / CAMP DE FUTBOL RIPOLLET"]
["PC","2007-12-31",700,0,700,"131 - EQUIPAMENTS DE PROCESSO D'INFORMACIÓ","POLIESPORTIU / CAMP DE FUTBOL RIPOLLET"]
["MONITOR","2007-12-31",90,0,90,"131 - EQUIPAMENTS DE PROCESSO D'INFORMACIÓ","POLIESPORTIU / CAMP DE FUTBOL RIPOLLET"]
["NEVERA","2007-12-31",400,0,400,"147 - MOBILIARI","POLIESPORTIU / CAMP DE FUTBOL RIPOLLET"]
["PLASTIFICADORA","2007-12-31",70,0,70,"147 - MOBILIARI","POLIESPORTIU / CAMP DE FUTBOL RIPOLLET"]
["CISSALLA ","2007-12-31",360,0,360,"147 - MOBILIARI","POLIESPORTIU / CAMP DE FUTBOL RIPOLLET"]
["ENQUADERNADORA","2007-12-31",80,0,80,"147 - MOBILIARI","POLIESPORTIU / CAMP DE FUTBOL RIPOLLET"]
["PC","2007-12-31",700,0,700,"131 - EQUIPAMENTS DE PROCESSO D'INFORMACIÓ","POLIESPORTIU / CAMP DE FUTBOL RIPOLLET"]
["MONITOR","2007-12-31",90,0,90,"131 - EQUIPAMENTS DE PROCESSO D'INFORMACIÓ","POLIESPORTIU / CAMP DE FUTBOL RIPOLLET"]
["IMPRESSORA","2007-12-31",380,0,380,"131 - EQUIPAMENTS DE PROCESSO D'INFORMACIÓ","POLIESPORTIU / CAMP DE FUTBOL RIPOLLET"]
["SPLIT","2007-12-31",400,0,400,"147 - MOBILIARI","POLIESPORTIU / CAMP DE FUTBOL RIPOLLET"]
["MONITOR","2007-12-31",90,0,90,"131 - EQUIPAMENTS DE PROCESSO D'INFORMACIÓ","POLIESPORTIU / CAMP DE FUTBOL RIPOLLET"]
["COMPRESSOR AIRE","2007-12-31",350,0,350,"135 - MAQUINÀRIA I INSTAL·LACIONS TÈCNIQUES","POLIESPORTIU / CAMP DE FUTBOL RIPOLLET"]
["SPLIT","2007-12-31",400,0,400,"147 - MOBILIARI","POLIESPORTIU / CAMP DE FUTBOL RIPOLLET"]
["PC","2007-12-31",700,0,700,"131 - EQUIPAMENTS DE PROCESSO D'INFORMACIÓ","POLIESPORTIU / CAMP DE FUTBOL RIPOLLET"]
["MONITOR","2007-12-31",90,0,90,"131 - EQUIPAMENTS DE PROCESSO D'INFORMACIÓ","POLIESPORTIU / CAMP DE FUTBOL RIPOLLET"]
["PC","2007-12-31",700,0,700,"131 - EQUIPAMENTS DE PROCESSO D'INFORMACIÓ","POLIESPORTIU / CAMP DE FUTBOL RIPOLLET"]
["MONITOR","2007-12-31",90,0,90,"131 - EQUIPAMENTS DE PROCESSO D'INFORMACIÓ","POLIESPORTIU / CAMP DE FUTBOL RIPOLLET"]
["CAIXA FORTA","2007-12-31",200,0,200,"147 - MOBILIARI","POLIESPORTIU / CAMP DE FUTBOL RIPOLLET"]
["SAI","2007-12-31",190,0,190,"147 - MOBILIARI","POLIESPORTIU / CAMP DE FUTBOL RIPOLLET"]
["SERVIDOR","2007-12-31",300,0,300,"131 - EQUIPAMENTS DE PROCESSO D'INFORMACIÓ","POLIESPORTIU / CAMP DE FUTBOL RIPOLLET"]
["SERVIDOR","2007-12-31",300,0,300,"131 - EQUIPAMENTS DE PROCESSO D'INFORMACIÓ","POLIESPORTIU / CAMP DE FUTBOL RIPOLLET"]
["MONITOR","2007-12-31",90,0,90,"131 - EQUIPAMENTS DE PROCESSO D'INFORMACIÓ","POLIESPORTIU / CAMP DE FUTBOL RIPOLLET"]
["SPLIT","2007-12-31",400,0,400,"147 - MOBILIARI","POLIESPORTIU / CAMP DE FUTBOL RIPOLLET"]
["ESCALES","2007-12-31",130,0,130,"147 - MOBILIARI","POLIESPORTIU / CAMP DE FUTBOL RIPOLLET"]
["SPLIT","2007-12-31",400,0,400,"147 - MOBILIARI","POLIESPORTIU / CAMP DE FUTBOL RIPOLLET"]
["PC","2007-12-31",700,0,700,"131 - EQUIPAMENTS DE PROCESSO D'INFORMACIÓ","POLIESPORTIU / CAMP DE FUTBOL RIPOLLET"]
["MONITOR","2007-12-31",90,0,90,"131 - EQUIPAMENTS DE PROCESSO D'INFORMACIÓ","POLIESPORTIU / CAMP DE FUTBOL RIPOLLET"]
["PC","2007-12-31",700,0,700,"131 - EQUIPAMENTS DE PROCESSO D'INFORMACIÓ","POLIESPORTIU / CAMP DE FUTBOL RIPOLLET"]
["MONITOR","2007-12-31",90,0,90,"131 - EQUIPAMENTS DE PROCESSO D'INFORMACIÓ","POLIESPORTIU / CAMP DE FUTBOL RIPOLLET"]
["PC","2007-12-31",700,0,700,"131 - EQUIPAMENTS DE PROCESSO D'INFORMACIÓ","POLIESPORTIU / CAMP DE FUTBOL RIPOLLET"]
["MONITOR","2007-12-31",90,0,90,"131 - EQUIPAMENTS DE PROCESSO D'INFORMACIÓ","POLIESPORTIU / CAMP DE FUTBOL RIPOLLET"]
["ESCANER","2007-12-31",150,0,150,"131 - EQUIPAMENTS DE PROCESSO D'INFORMACIÓ","POLIESPORTIU / CAMP DE FUTBOL RIPOLLET"]
["MICROONES","2007-12-31",70,0,70,"147 - MOBILIARI","POLIESPORTIU / CAMP DE FUTBOL RIPOLLET"]
["IMPRESSORA ","2007-12-31",380,0,380,"131 - EQUIPAMENTS DE PROCESSO D'INFORMACIÓ","POLIESPORTIU / CAMP DE FUTBOL RIPOLLET"]
["SERVIDOR","2007-12-31",300,0,300,"131 - EQUIPAMENTS DE PROCESSO D'INFORMACIÓ","POLIESPORTIU / CAMP DE FUTBOL RIPOLLET"]
["SWITCH","2007-12-31",50,0,50,"131 - EQUIPAMENTS DE PROCESSO D'INFORMACIÓ","POLIESPORTIU / CAMP DE FUTBOL RIPOLLET"]
["CAIXA ENREGISTRADORA","2007-12-31",400,0,400,"147 - MOBILIARI","POLIESPORTIU / CAMP DE FUTBOL RIPOLLET"]
["SPLIT","2007-12-31",400,0,400,"147 - MOBILIARI","POLIESPORTIU / CAMP DE FUTBOL RIPOLLET"]
["IMPRESSORA","2007-12-31",380,0,380,"131 - EQUIPAMENTS DE PROCESSO D'INFORMACIÓ","POLIESPORTIU / CAMP DE FUTBOL RIPOLLET"]
["TELEVISOR","2007-12-31",800,0,800,"147 - MOBILIARI","POLIESPORTIU / CAMP DE FUTBOL RIPOLLET"]
["PC","2007-12-31",700,0,700,"131 - EQUIPAMENTS DE PROCESSO D'INFORMACIÓ","POLIESPORTIU / CAMP DE FUTBOL RIPOLLET"]
["MONITOR","2007-12-31",90,0,90,"131 - EQUIPAMENTS DE PROCESSO D'INFORMACIÓ","POLIESPORTIU / CAMP DE FUTBOL RIPOLLET"]
["IMPRESSORA TICKETS","2007-12-31",250,0,250,"131 - EQUIPAMENTS DE PROCESSO D'INFORMACIÓ","POLIESPORTIU / CAMP DE FUTBOL RIPOLLET"]
["ORDINADOR PORTATIL","2007-12-31",600,0,600,"131 - EQUIPAMENTS DE PROCESSO D'INFORMACIÓ","POLIESPORTIU / CAMP DE FUTBOL RIPOLLET"]
["SPLIT","2007-12-31",400,0,400,"147 - MOBILIARI","POLIESPORTIU / CAMP DE FUTBOL RIPOLLET"]
["PANTALLA DE PROJECCIÓ","2007-12-31",90,0,90,"147 - MOBILIARI","POLIESPORTIU / CAMP DE FUTBOL RIPOLLET"]
["SPLIT","2007-12-31",400,0,400,"147 - MOBILIARI","POLIESPORTIU / CAMP DE FUTBOL RIPOLLET"]
["PORTERIES PETITES","2007-12-31",1800,0,1800,"147 - MOBILIARI","POLIESPORTIU / CAMP DE FUTBOL RIPOLLET"]
["PC","2007-12-31",700,0,700,"131 - EQUIPAMENTS DE PROCESSO D'INFORMACIÓ","POLIESPORTIU / CAMP DE FUTBOL RIPOLLET"]
["MONITOR","2007-12-31",90,0,90,"131 - EQUIPAMENTS DE PROCESSO D'INFORMACIÓ","POLIESPORTIU / CAMP DE FUTBOL RIPOLLET"]
["IMPRESSORA","2007-12-31",380,0,380,"131 - EQUIPAMENTS DE PROCESSO D'INFORMACIÓ","POLIESPORTIU / CAMP DE FUTBOL RIPOLLET"]
["MONITOR","2007-12-31",90,0,90,"131 - EQUIPAMENTS DE PROCESSO D'INFORMACIÓ","POLIESPORTIU / CAMP DE FUTBOL RIPOLLET"]
["PC","2007-12-31",700,0,700,"131 - EQUIPAMENTS DE PROCESSO D'INFORMACIÓ","POLIESPORTIU / CAMP DE FUTBOL RIPOLLET"]
["MONITOR","2007-12-31",90,0,90,"131 - EQUIPAMENTS DE PROCESSO D'INFORMACIÓ","POLIESPORTIU / CAMP DE FUTBOL RIPOLLET"]
["MONITOR","2007-12-31",90,0,90,"131 - EQUIPAMENTS DE PROCESSO D'INFORMACIÓ","POLIESPORTIU / CAMP DE FUTBOL RIPOLLET"]
["PC","2007-12-31",700,0,700,"131 - EQUIPAMENTS DE PROCESSO D'INFORMACIÓ","POLIESPORTIU / CAMP DE FUTBOL RIPOLLET"]
["IMPRESSORA","2007-12-31",380,0,380,"131 - EQUIPAMENTS DE PROCESSO D'INFORMACIÓ","POLIESPORTIU / CAMP DE FUTBOL RIPOLLET"]
["SWITCH","2007-12-31",50,0,50,"131 - EQUIPAMENTS DE PROCESSO D'INFORMACIÓ","POLIESPORTIU / CAMP DE FUTBOL RIPOLLET"]
["SWITCH","2007-12-31",50,0,50,"131 - EQUIPAMENTS DE PROCESSO D'INFORMACIÓ","POLIESPORTIU / CAMP DE FUTBOL RIPOLLET"]
["SAI","2007-12-31",190,0,190,"147 - MOBILIARI","POLIESPORTIU / CAMP DE FUTBOL RIPOLLET"]
["GRAVADORA CAMARA","2007-12-31",300,0,300,"147 - MOBILIARI","POLIESPORTIU / CAMP DE FUTBOL RIPOLLET"]
["MARTELL PNEUMATIC","2007-12-31",400,0,400,"135 - MAQUINÀRIA I INSTAL·LACIONS TÈCNIQUES","POLIESPORTIU / CAMP DE FUTBOL RIPOLLET"]
["TALLADORA CERAMICA","2007-12-31",250,0,250,"135 - MAQUINÀRIA I INSTAL·LACIONS TÈCNIQUES","POLIESPORTIU / CAMP DE FUTBOL RIPOLLET"]
["TOSTADORA","2007-12-31",30,0,30,"147 - MOBILIARI","POLIESPORTIU / CAMP DE FUTBOL RIPOLLET"]
["TRACTOR ","2007-12-31",7500,0,7500,"135 - MAQUINÀRIA I INSTAL·LACIONS TÈCNIQUES","POLIESPORTIU / CAMP DE FUTBOL RIPOLLET"]
["FORMIGONERA","2007-12-31",1500,0,1500,"135 - MAQUINÀRIA I INSTAL·LACIONS TÈCNIQUES","POLIESPORTIU / CAMP DE FUTBOL RIPOLLET"]
["FORMIGONERA","2007-12-31",1500,0,1500,"135 - MAQUINÀRIA I INSTAL·LACIONS TÈCNIQUES","POLIESPORTIU / CAMP DE FUTBOL RIPOLLET"]
["SOLDADOR ELECTRIC","2007-12-31",700,0,700,"135 - MAQUINÀRIA I INSTAL·LACIONS TÈCNIQUES","POLIESPORTIU / CAMP DE FUTBOL RIPOLLET"]
["TRONZADORA","2007-12-31",500,0,500,"135 - MAQUINÀRIA I INSTAL·LACIONS TÈCNIQUES","POLIESPORTIU / CAMP DE FUTBOL RIPOLLET"]
["MOTOR","2007-12-31",250,0,250,"135 - MAQUINÀRIA I INSTAL·LACIONS TÈCNIQUES","POLIESPORTIU / CAMP DE FUTBOL RIPOLLET"]
["MOLADORA ","2007-12-31",400,0,400,"135 - MAQUINÀRIA I INSTAL·LACIONS TÈCNIQUES","POLIESPORTIU / CAMP DE FUTBOL RIPOLLET"]
["TALADRE DE PEU","2007-12-31",220,0,220,"135 - MAQUINÀRIA I INSTAL·LACIONS TÈCNIQUES","POLIESPORTIU / CAMP DE FUTBOL RIPOLLET"]
["MOLADORA ","2007-12-31",400,0,400,"135 - MAQUINÀRIA I INSTAL·LACIONS TÈCNIQUES","POLIESPORTIU / CAMP DE FUTBOL RIPOLLET"]
["ROBOT NETEJA PISCINES","2007-12-31",550,0,550,"135 - MAQUINÀRIA I INSTAL·LACIONS TÈCNIQUES","POLIESPORTIU / CAMP DE FUTBOL RIPOLLET"]
["ROBOT NETEJA PISCINES","2007-12-31",550,0,550,"135 - MAQUINÀRIA I INSTAL·LACIONS TÈCNIQUES","POLIESPORTIU / CAMP DE FUTBOL RIPOLLET"]
["ROBOT NETEJA PISCINES","2007-12-31",550,0,550,"135 - MAQUINÀRIA I INSTAL·LACIONS TÈCNIQUES","POLIESPORTIU / CAMP DE FUTBOL RIPOLLET"]
["ROBOT NETEJA PISCINES","2007-12-31",550,0,550,"135 - MAQUINÀRIA I INSTAL·LACIONS TÈCNIQUES","POLIESPORTIU / CAMP DE FUTBOL RIPOLLET"]
["MESURADOR AIRE","2007-12-31",15,0,15,"135 - MAQUINÀRIA I INSTAL·LACIONS TÈCNIQUES","POLIESPORTIU / CAMP DE FUTBOL RIPOLLET"]
["MESURADOR AIGUA","2007-12-31",10,0,10,"135 - MAQUINÀRIA I INSTAL·LACIONS TÈCNIQUES","POLIESPORTIU / CAMP DE FUTBOL RIPOLLET"]
["MARCADOR","2007-12-31",3000,0,3000,"147 - MOBILIARI","POLIESPORTIU / CAMP DE FUTBOL RIPOLLET"]
["PORTERIES ","2007-12-31",1200,0,1200,"147 - MOBILIARI","POLIESPORTIU / CAMP DE FUTBOL RIPOLLET"]
["XARXES TENIS","2007-12-31",720,0,720,"147 - MOBILIARI","POLIESPORTIU / CAMP DE FUTBOL RIPOLLET"]
["CANASTES BASQUET","2007-12-31",3200,0,3200,"147 - MOBILIARI","POLIESPORTIU / CAMP DE FUTBOL RIPOLLET"]
["XARXES PADEL","2007-12-31",320,0,320,"147 - MOBILIARI","POLIESPORTIU / CAMP DE FUTBOL RIPOLLET"]
["PORTERIES FUTBOL SALA","2007-12-31",1600,0,1600,"147 - MOBILIARI","POLIESPORTIU / CAMP DE FUTBOL RIPOLLET"]
["COLCHONETA","2007-12-31",360,0,360,"147 - MOBILIARI","POLIESPORTIU / CAMP DE FUTBOL RIPOLLET"]
["ARMARIETS","2007-12-31",81400,0,81400,"147 - MOBILIARI","POLIESPORTIU / CAMP DE FUTBOL RIPOLLET"]
["PC","2007-12-31",700,0,700,"131 - EQUIPAMENTS DE PROCESSO D'INFORMACIÓ","POLIESPORTIU / CAMP DE FUTBOL RIPOLLET"]
["MONITOR","2007-12-31",90,0,90,"131 - EQUIPAMENTS DE PROCESSO D'INFORMACIÓ","POLIESPORTIU / CAMP DE FUTBOL RIPOLLET"]
["CINTA CORRER","2007-12-31",1900,0,1900,"147 - MOBILIARI","POLIESPORTIU / CAMP DE FUTBOL RIPOLLET"]
["CINTA CORRER","2007-12-31",1900,0,1900,"147 - MOBILIARI","POLIESPORTIU / CAMP DE FUTBOL RIPOLLET"]
["CINTA CORRER","2007-12-31",1900,0,1900,"147 - MOBILIARI","POLIESPORTIU / CAMP DE FUTBOL RIPOLLET"]
["CINTA CORRER","2007-12-31",1900,0,1900,"147 - MOBILIARI","POLIESPORTIU / CAMP DE FUTBOL RIPOLLET"]
["CINTA CORRER","2007-12-31",1900,0,1900,"147 - MOBILIARI","POLIESPORTIU / CAMP DE FUTBOL RIPOLLET"]
["REM","2007-12-31",1400,0,1400,"147 - MOBILIARI","POLIESPORTIU / CAMP DE FUTBOL RIPOLLET"]
["STEPS","2007-12-31",300,0,300,"147 - MOBILIARI","POLIESPORTIU / CAMP DE FUTBOL RIPOLLET"]
["STEPS","2007-12-31",300,0,300,"147 - MOBILIARI","POLIESPORTIU / CAMP DE FUTBOL RIPOLLET"]
["STEPS","2007-12-31",300,0,300,"147 - MOBILIARI","POLIESPORTIU / CAMP DE FUTBOL RIPOLLET"]
["ELIPTICA","2007-12-31",1900,0,1900,"147 - MOBILIARI","POLIESPORTIU / CAMP DE FUTBOL RIPOLLET"]
["ELIPTICA","2007-12-31",1900,0,1900,"147 - MOBILIARI","POLIESPORTIU / CAMP DE FUTBOL RIPOLLET"]
["REM","2007-12-31",1400,0,1400,"147 - MOBILIARI","POLIESPORTIU / CAMP DE FUTBOL RIPOLLET"]
["REM","2007-12-31",1400,0,1400,"147 - MOBILIARI","POLIESPORTIU / CAMP DE FUTBOL RIPOLLET"]
["MAQUINA PECTORALS","2007-12-31",2050,0,2050,"147 - MOBILIARI","POLIESPORTIU / CAMP DE FUTBOL RIPOLLET"]
["MAQUINA ESPATLLA","2007-12-31",2050,0,2050,"147 - MOBILIARI","POLIESPORTIU / CAMP DE FUTBOL RIPOLLET"]
["MAQUINA","2007-12-31",1500,0,1500,"147 - MOBILIARI","POLIESPORTIU / CAMP DE FUTBOL RIPOLLET"]
["MAQUINA PECTORALS","2007-12-31",2050,0,2050,"147 - MOBILIARI","POLIESPORTIU / CAMP DE FUTBOL RIPOLLET"]
["MAQUINA PESES","2007-12-31",1600,0,1600,"147 - MOBILIARI","POLIESPORTIU / CAMP DE FUTBOL RIPOLLET"]
["MAQUINA PESES","2007-12-31",1600,0,1600,"147 - MOBILIARI","POLIESPORTIU / CAMP DE FUTBOL RIPOLLET"]
["MAQUINA PESES","2007-12-31",1600,0,1600,"147 - MOBILIARI","POLIESPORTIU / CAMP DE FUTBOL RIPOLLET"]
["BANC PESES","2007-12-31",800,0,800,"147 - MOBILIARI","POLIESPORTIU / CAMP DE FUTBOL RIPOLLET"]
["BANC ABDOMINALS","2007-12-31",300,0,300,"147 - MOBILIARI","POLIESPORTIU / CAMP DE FUTBOL RIPOLLET"]
["BANC PESES","2007-12-31",800,0,800,"147 - MOBILIARI","POLIESPORTIU / CAMP DE FUTBOL RIPOLLET"]
["BANC PESES","2007-12-31",800,0,800,"147 - MOBILIARI","POLIESPORTIU / CAMP DE FUTBOL RIPOLLET"]
["BANC PESES","2007-12-31",800,0,800,"147 - MOBILIARI","POLIESPORTIU / CAMP DE FUTBOL RIPOLLET"]
["BANC PESES","2007-12-31",800,0,800,"147 - MOBILIARI","POLIESPORTIU / CAMP DE FUTBOL RIPOLLET"]
["BANC PESES","2007-12-31",800,0,800,"147 - MOBILIARI","POLIESPORTIU / CAMP DE FUTBOL RIPOLLET"]
["BANC PESES","2007-12-31",800,0,800,"147 - MOBILIARI","POLIESPORTIU / CAMP DE FUTBOL RIPOLLET"]
["MAQUINA","2007-12-31",1500,0,1500,"147 - MOBILIARI","POLIESPORTIU / CAMP DE FUTBOL RIPOLLET"]
["MAQUINA DORSAL","2007-12-31",2100,0,2100,"147 - MOBILIARI","POLIESPORTIU / CAMP DE FUTBOL RIPOLLET"]
["MAQUINA DORSAL","2007-12-31",2100,0,2100,"147 - MOBILIARI","POLIESPORTIU / CAMP DE FUTBOL RIPOLLET"]
["BANC PESES CAMES","2007-12-31",1000,0,1000,"147 - MOBILIARI","POLIESPORTIU / CAMP DE FUTBOL RIPOLLET"]
["MAQUINA CAMES","2007-12-31",1700,0,1700,"147 - MOBILIARI","POLIESPORTIU / CAMP DE FUTBOL RIPOLLET"]
["MAQUINA CAMES","2007-12-31",1700,0,1700,"147 - MOBILIARI","POLIESPORTIU / CAMP DE FUTBOL RIPOLLET"]
["MAQUINA CAMES","2007-12-31",1700,0,1700,"147 - MOBILIARI","POLIESPORTIU / CAMP DE FUTBOL RIPOLLET"]
["MAQUINA CAMES","2007-12-31",1700,0,1700,"147 - MOBILIARI","POLIESPORTIU / CAMP DE FUTBOL RIPOLLET"]
["FONT D'AIGUA","2007-12-31",500,0,500,"147 - MOBILIARI","POLIESPORTIU / CAMP DE FUTBOL RIPOLLET"]
["MAQUINA CAMES","2007-12-31",1700,0,1700,"147 - MOBILIARI","POLIESPORTIU / CAMP DE FUTBOL RIPOLLET"]
["MAQUINA CAMES","2007-12-31",1700,0,1700,"147 - MOBILIARI","POLIESPORTIU / CAMP DE FUTBOL RIPOLLET"]
["BICICLETA ESTATICA","2007-12-31",1800,0,1800,"147 - MOBILIARI","POLIESPORTIU / CAMP DE FUTBOL RIPOLLET"]
["BICICLETA ESTATICA","2007-12-31",1800,0,1800,"147 - MOBILIARI","POLIESPORTIU / CAMP DE FUTBOL RIPOLLET"]
["BICICLETA ESTATICA","2007-12-31",1800,0,1800,"147 - MOBILIARI","POLIESPORTIU / CAMP DE FUTBOL RIPOLLET"]
["BICICLETA ESTATICA","2007-12-31",1800,0,1800,"147 - MOBILIARI","POLIESPORTIU / CAMP DE FUTBOL RIPOLLET"]
["BICICLETA ESTATICA","2007-12-31",1800,0,1800,"147 - MOBILIARI","POLIESPORTIU / CAMP DE FUTBOL RIPOLLET"]
["BICICLETA ESTATICA","2007-12-31",1800,0,1800,"147 - MOBILIARI","POLIESPORTIU / CAMP DE FUTBOL RIPOLLET"]
["BICICLETA SPINING","2007-12-31",1800,0,1800,"147 - MOBILIARI","POLIESPORTIU / CAMP DE FUTBOL RIPOLLET"]
["MAQUINA BICEPS","2007-12-31",1600,0,1600,"147 - MOBILIARI","POLIESPORTIU / CAMP DE FUTBOL RIPOLLET"]
["MAQUINA CAMES","2007-12-31",1700,0,1700,"147 - MOBILIARI","POLIESPORTIU / CAMP DE FUTBOL RIPOLLET"]
["MAQUINA ","2007-12-31",1500,0,1500,"147 - MOBILIARI","POLIESPORTIU / CAMP DE FUTBOL RIPOLLET"]
["MAQUINA ","2007-12-31",1500,0,1500,"147 - MOBILIARI","POLIESPORTIU / CAMP DE FUTBOL RIPOLLET"]
["MAQUINA ","2007-12-31",1500,0,1500,"147 - MOBILIARI","POLIESPORTIU / CAMP DE FUTBOL RIPOLLET"]
["MAQUINA","2007-12-31",1500,0,1500,"147 - MOBILIARI","POLIESPORTIU / CAMP DE FUTBOL RIPOLLET"]
["MAQUINA","2007-12-31",1500,0,1500,"147 - MOBILIARI","POLIESPORTIU / CAMP DE FUTBOL RIPOLLET"]
["MAQUINA","2007-12-31",1500,0,1500,"147 - MOBILIARI","POLIESPORTIU / CAMP DE FUTBOL RIPOLLET"]
["MAQUINA TALONS","2007-12-31",1600,0,1600,"147 - MOBILIARI","POLIESPORTIU / CAMP DE FUTBOL RIPOLLET"]
["MAQUINA","2007-12-31",1500,0,1500,"147 - MOBILIARI","POLIESPORTIU / CAMP DE FUTBOL RIPOLLET"]
["MAQUINA","2007-12-31",1500,0,1500,"147 - MOBILIARI","POLIESPORTIU / CAMP DE FUTBOL RIPOLLET"]
["MAQUINA","2007-12-31",1500,0,1500,"147 - MOBILIARI","POLIESPORTIU / CAMP DE FUTBOL RIPOLLET"]
["MAQUINA CAMES","2007-12-31",1700,0,1700,"147 - MOBILIARI","POLIESPORTIU / CAMP DE FUTBOL RIPOLLET"]
["MAQUINA CAMES","2007-12-31",1700,0,1700,"147 - MOBILIARI","POLIESPORTIU / CAMP DE FUTBOL RIPOLLET"]
["BICICLETA ESTATICA","2007-12-31",1800,0,1800,"147 - MOBILIARI","POLIESPORTIU / CAMP DE FUTBOL RIPOLLET"]
["BICICLETA ESTATICA","2007-12-31",1800,0,1800,"147 - MOBILIARI","POLIESPORTIU / CAMP DE FUTBOL RIPOLLET"]
["BICICLETA ESTATICA","2007-12-31",1800,0,1800,"147 - MOBILIARI","POLIESPORTIU / CAMP DE FUTBOL RIPOLLET"]
["BICICLETA ESTATICA","2007-12-31",1800,0,1800,"147 - MOBILIARI","POLIESPORTIU / CAMP DE FUTBOL RIPOLLET"]
["BICICLETA ESTATICA","2007-12-31",1800,0,1800,"147 - MOBILIARI","POLIESPORTIU / CAMP DE FUTBOL RIPOLLET"]
["BICICLETA ESTATICA","2007-12-31",1800,0,1800,"147 - MOBILIARI","POLIESPORTIU / CAMP DE FUTBOL RIPOLLET"]
["BICICLETA ESTATICA","2007-12-31",1800,0,1800,"147 - MOBILIARI","POLIESPORTIU / CAMP DE FUTBOL RIPOLLET"]
["BICICLETA ESTATICA","2007-12-31",1800,0,1800,"147 - MOBILIARI","POLIESPORTIU / CAMP DE FUTBOL RIPOLLET"]
["BICICLETA ESTATICA","2007-12-31",1800,0,1800,"147 - MOBILIARI","POLIESPORTIU / CAMP DE FUTBOL RIPOLLET"]
["BICICLETA ESTATICA","2007-12-31",1800,0,1800,"147 - MOBILIARI","POLIESPORTIU / CAMP DE FUTBOL RIPOLLET"]
["BICICLETA ESTATICA","2007-12-31",1800,0,1800,"147 - MOBILIARI","POLIESPORTIU / CAMP DE FUTBOL RIPOLLET"]
["BICICLETA ESTATICA","2007-12-31",1800,0,1800,"147 - MOBILIARI","POLIESPORTIU / CAMP DE FUTBOL RIPOLLET"]
["BICICLETA ESTATICA","2007-12-31",1800,0,1800,"147 - MOBILIARI","POLIESPORTIU / CAMP DE FUTBOL RIPOLLET"]
["BICICLETA ESTATICA","2007-12-31",1800,0,1800,"147 - MOBILIARI","POLIESPORTIU / CAMP DE FUTBOL RIPOLLET"]
["BICICLETA ESTATICA","2007-12-31",1800,0,1800,"147 - MOBILIARI","POLIESPORTIU / CAMP DE FUTBOL RIPOLLET"]
["BICICLETA ESTATICA","2007-12-31",1800,0,1800,"147 - MOBILIARI","POLIESPORTIU / CAMP DE FUTBOL RIPOLLET"]
["BICICLETA ESTATICA","2007-12-31",1800,0,1800,"147 - MOBILIARI","POLIESPORTIU / CAMP DE FUTBOL RIPOLLET"]
["BICICLETA ESTATICA","2007-12-31",1800,0,1800,"147 - MOBILIARI","POLIESPORTIU / CAMP DE FUTBOL RIPOLLET"]
["BICICLETA ESTATICA","2007-12-31",1800,0,1800,"147 - MOBILIARI","POLIESPORTIU / CAMP DE FUTBOL RIPOLLET"]
["BICICLETA ESTATICA","2007-12-31",1800,0,1800,"147 - MOBILIARI","POLIESPORTIU / CAMP DE FUTBOL RIPOLLET"]
["BICICLETA ESTATICA","2007-12-31",1800,0,1800,"147 - MOBILIARI","POLIESPORTIU / CAMP DE FUTBOL RIPOLLET"]
["BICICLETA ESTATICA","2007-12-31",1800,0,1800,"147 - MOBILIARI","POLIESPORTIU / CAMP DE FUTBOL RIPOLLET"]
["BICICLETA ESTATICA","2007-12-31",1800,0,1800,"147 - MOBILIARI","POLIESPORTIU / CAMP DE FUTBOL RIPOLLET"]
["BICICLETA ESTATICA","2007-12-31",1800,0,1800,"147 - MOBILIARI","POLIESPORTIU / CAMP DE FUTBOL RIPOLLET"]
["BICICLETA ESTATICA","2007-12-31",1800,0,1800,"147 - MOBILIARI","POLIESPORTIU / CAMP DE FUTBOL RIPOLLET"]
["BICICLETA ESTATICA","2007-12-31",1800,0,1800,"147 - MOBILIARI","POLIESPORTIU / CAMP DE FUTBOL RIPOLLET"]
["BICICLETA ESTATICA","2007-12-31",1800,0,1800,"147 - MOBILIARI","POLIESPORTIU / CAMP DE FUTBOL RIPOLLET"]
["BICICLETA ESTATICA","2007-12-31",1800,0,1800,"147 - MOBILIARI","POLIESPORTIU / CAMP DE FUTBOL RIPOLLET"]
["BICICLETA ESTATICA","2007-12-31",1800,0,1800,"147 - MOBILIARI","POLIESPORTIU / CAMP DE FUTBOL RIPOLLET"]
["BICICLETA ESTATICA","2007-12-31",1800,0,1800,"147 - MOBILIARI","POLIESPORTIU / CAMP DE FUTBOL RIPOLLET"]
["BICICLETA ESTATICA","2007-12-31",1800,0,1800,"147 - MOBILIARI","POLIESPORTIU / CAMP DE FUTBOL RIPOLLET"]
["BICICLETA ESTATICA","2007-12-31",1800,0,1800,"147 - MOBILIARI","POLIESPORTIU / CAMP DE FUTBOL RIPOLLET"]
["BICICLETA ESTATICA","2007-12-31",1800,0,1800,"147 - MOBILIARI","POLIESPORTIU / CAMP DE FUTBOL RIPOLLET"]
["BICICLETA ESTATICA","2007-12-31",1800,0,1800,"147 - MOBILIARI","POLIESPORTIU / CAMP DE FUTBOL RIPOLLET"]
["BICICLETA ESTATICA","2007-12-31",1800,0,1800,"147 - MOBILIARI","POLIESPORTIU / CAMP DE FUTBOL RIPOLLET"]
["BICICLETA ESTATICA","2007-12-31",1800,0,1800,"147 - MOBILIARI","POLIESPORTIU / CAMP DE FUTBOL RIPOLLET"]
["BICICLETA ESTATICA","2007-12-31",1800,0,1800,"147 - MOBILIARI","POLIESPORTIU / CAMP DE FUTBOL RIPOLLET"]
["BICICLETA ESTATICA","2007-12-31",1800,0,1800,"147 - MOBILIARI","POLIESPORTIU / CAMP DE FUTBOL RIPOLLET"]
["BICICLETA ESTATICA","2007-12-31",1800,0,1800,"147 - MOBILIARI","POLIESPORTIU / CAMP DE FUTBOL RIPOLLET"]
["BICICLETA ESTATICA","2007-12-31",1800,0,1800,"147 - MOBILIARI","POLIESPORTIU / CAMP DE FUTBOL RIPOLLET"]
["BAFLE","2007-12-31",460,0,460,"147 - MOBILIARI","POLIESPORTIU / CAMP DE FUTBOL RIPOLLET"]
["BAFLE","2007-12-31",460,0,460,"147 - MOBILIARI","POLIESPORTIU / CAMP DE FUTBOL RIPOLLET"]
["BAFLE","2007-12-31",460,0,460,"147 - MOBILIARI","POLIESPORTIU / CAMP DE FUTBOL RIPOLLET"]
["BAFLE","2007-12-31",460,0,460,"147 - MOBILIARI","POLIESPORTIU / CAMP DE FUTBOL RIPOLLET"]
["EQUIP DE SO","2007-12-31",150,0,150,"147 - MOBILIARI","POLIESPORTIU / CAMP DE FUTBOL RIPOLLET"]
["AMPLIFICADOR","2007-12-31",300,0,300,"147 - MOBILIARI","POLIESPORTIU / CAMP DE FUTBOL RIPOLLET"]
["SOLDADOR TUBS","2007-12-31",70,0,70,"135 - MAQUINÀRIA I INSTAL·LACIONS TÈCNIQUES","POLIESPORTIU / CAMP DE FUTBOL RIPOLLET"]
["POLIDORA","2007-12-31",80,0,80,"135 - MAQUINÀRIA I INSTAL·LACIONS TÈCNIQUES","POLIESPORTIU / CAMP DE FUTBOL RIPOLLET"]
["POLIDORA","2007-12-31",80,0,80,"135 - MAQUINÀRIA I INSTAL·LACIONS TÈCNIQUES","POLIESPORTIU / CAMP DE FUTBOL RIPOLLET"]
["FRESADORA","2007-12-31",150,0,150,"135 - MAQUINÀRIA I INSTAL·LACIONS TÈCNIQUES","POLIESPORTIU / CAMP DE FUTBOL RIPOLLET"]
["DECAPADORA","2007-12-31",35,0,35,"135 - MAQUINÀRIA I INSTAL·LACIONS TÈCNIQUES","POLIESPORTIU / CAMP DE FUTBOL RIPOLLET"]
["TALADRE ","2007-12-31",130,0,130,"135 - MAQUINÀRIA I INSTAL·LACIONS TÈCNIQUES","POLIESPORTIU / CAMP DE FUTBOL RIPOLLET"]
["TALADRE","2007-12-31",130,0,130,"135 - MAQUINÀRIA I INSTAL·LACIONS TÈCNIQUES","POLIESPORTIU / CAMP DE FUTBOL RIPOLLET"]
["MOLADORA ","2007-12-31",130,0,130,"135 - MAQUINÀRIA I INSTAL·LACIONS TÈCNIQUES","POLIESPORTIU / CAMP DE FUTBOL RIPOLLET"]
["TALADRE","2007-12-31",130,0,130,"135 - MAQUINÀRIA I INSTAL·LACIONS TÈCNIQUES","POLIESPORTIU / CAMP DE FUTBOL RIPOLLET"]
["ATORNILLADOR","2007-12-31",700,0,700,"135 - MAQUINÀRIA I INSTAL·LACIONS TÈCNIQUES","POLIESPORTIU / CAMP DE FUTBOL RIPOLLET"]
["ATORNILLADOR","2007-12-31",700,0,700,"135 - MAQUINÀRIA I INSTAL·LACIONS TÈCNIQUES","POLIESPORTIU / CAMP DE FUTBOL RIPOLLET"]
["CADIRAM","2007-12-31",2090,0,2090,"147 - MOBILIARI","POLIESPORTIU FRANCESC BARNEDA"]
["TAULES","2007-12-31",200,0,200,"147 - MOBILIARI","POLIESPORTIU FRANCESC BARNEDA"]
["CONSOLA MARCADOR ","2007-12-31",500,0,500,"147 - MOBILIARI","POLIESPORTIU FRANCESC BARNEDA"]
["MARCADOR","2007-12-31",500,0,500,"147 - MOBILIARI","POLIESPORTIU FRANCESC BARNEDA"]
["SEGUNDERS","2007-12-31",460,0,460,"147 - MOBILIARI","POLIESPORTIU FRANCESC BARNEDA"]
["CANASTES BASQUET","2007-12-31",1600,0,1600,"147 - MOBILIARI","POLIESPORTIU FRANCESC BARNEDA"]
["MONITOR","2007-12-31",90,0,90,"131 - EQUIPAMENTS DE PROCESSO D'INFORMACIÓ","POLIESPORTIU FRANCESC BARNEDA"]
["PC","2007-12-31",700,0,700,"131 - EQUIPAMENTS DE PROCESSO D'INFORMACIÓ","POLIESPORTIU FRANCESC BARNEDA"]
["PISSARRA","2007-12-31",140,0,140,"147 - MOBILIARI","POLIESPORTIU FRANCESC BARNEDA"]
["CONSOLA MARCADOR ","2007-12-31",500,0,500,"147 - MOBILIARI","POLIESPORTIU FRANCESC BARNEDA"]
["PC","2007-12-31",700,0,700,"131 - EQUIPAMENTS DE PROCESSO D'INFORMACIÓ","CAMP DE FUTBOL INDUSTRIAL"]
["MONITOR","2007-12-31",90,0,90,"131 - EQUIPAMENTS DE PROCESSO D'INFORMACIÓ","CAMP DE FUTBOL INDUSTRIAL"]
["GRAVADORA CAMARA","2007-12-31",300,0,300,"147 - MOBILIARI","CAMP DE FUTBOL INDUSTRIAL"]
["GRAVADORA CAMARA","2007-12-31",300,0,300,"147 - MOBILIARI","CAMP DE FUTBOL INDUSTRIAL"]
["MONITOR","2007-12-31",90,0,90,"131 - EQUIPAMENTS DE PROCESSO D'INFORMACIÓ","CAMP DE FUTBOL INDUSTRIAL"]
["CADIRAM","2007-12-31",3800,0,3800,"147 - MOBILIARI","CAMP DE FUTBOL INDUSTRIAL"]
["ARMARIS","2007-12-31",800,0,800,"147 - MOBILIARI","CAMP DE FUTBOL INDUSTRIAL"]
["PISSARRA","2007-12-31",70,0,70,"147 - MOBILIARI","CAMP DE FUTBOL INDUSTRIAL"]
["PORTERIES FUTBOL 7","2007-12-31",4200,0,4200,"147 - MOBILIARI","CAMP DE FUTBOL INDUSTRIAL"]
["PORTERIES FUTBOL 11","2007-12-31",1400,0,1400,"147 - MOBILIARI","CAMP DE FUTBOL INDUSTRIAL"]
["PORTERIES DESMONTABLES","2007-12-31",400,0,400,"147 - MOBILIARI","CAMP DE FUTBOL INDUSTRIAL"]
["PC","2007-12-31",700,0,700,"131 - EQUIPAMENTS DE PROCESSO D'INFORMACIÓ","POLIESPORTIU JOAN CREUS"]
["MONITOR","2007-12-31",90,0,90,"131 - EQUIPAMENTS DE PROCESSO D'INFORMACIÓ","POLIESPORTIU JOAN CREUS"]
["GRAVADORA SEGURETAT","2007-12-31",300,0,300,"147 - MOBILIARI","POLIESPORTIU JOAN CREUS"]
["CADIRAM","2007-12-31",15580,0,15580,"147 - MOBILIARI","POLIESPORTIU JOAN CREUS"]
["PORTERIES FUTBOL SALA","2007-12-31",3200,0,3200,"147 - MOBILIARI","POLIESPORTIU JOAN CREUS"]
["CANASTES BASQUET","2007-12-31",7200,0,7200,"147 - MOBILIARI","POLIESPORTIU JOAN CREUS"]
["MARCADOR","2007-12-31",1000,0,1000,"147 - MOBILIARI","POLIESPORTIU JOAN CREUS"]
["PORTERIES HOCKEY","2007-12-31",2400,0,2400,"147 - MOBILIARI","POLIESPORTIU JOAN CREUS"]
["SPLIT","2007-12-31",400,0,400,"147 - MOBILIARI","POLIESPORTIU JOAN CREUS"]
["SPLIT","2007-12-31",400,0,400,"147 - MOBILIARI","POLIESPORTIU JOAN CREUS"]
["ESTUFA","2007-12-31",200,0,200,"147 - MOBILIARI","POLIESPORTIU JOAN CREUS"]
["CAMILLA","2007-12-31",900,0,900,"147 - MOBILIARI","POLIESPORTIU JOAN CREUS"]
["VITRINA BOTIQUI","2007-12-31",250,0,250,"147 - MOBILIARI","POLIESPORTIU JOAN CREUS"]
["SPLIT","2007-12-31",400,0,400,"147 - MOBILIARI","POLIESPORTIU JOAN CREUS"]
["SPLIT","2007-12-31",400,0,400,"147 - MOBILIARI","POLIESPORTIU JOAN CREUS"]
["SPLIT","2007-12-31",400,0,400,"147 - MOBILIARI","POLIESPORTIU JOAN CREUS"]
["SPLIT","2007-12-31",400,0,400,"147 - MOBILIARI","POLIESPORTIU JOAN CREUS"]
["CONSOLA MARCADOR ","2007-12-31",500,0,500,"147 - MOBILIARI","POLIESPORTIU JOAN CREUS"]
["CONSOLA MARCADOR ","2007-12-31",500,0,500,"147 - MOBILIARI","POLIESPORTIU JOAN CREUS"]
["SPLIT","2007-12-31",400,0,400,"147 - MOBILIARI","POLIESPORTIU JOAN CREUS"]
["SPLIT","2007-12-31",400,0,400,"147 - MOBILIARI","POLIESPORTIU JOAN CREUS"]
["SPLIT","2007-12-31",400,0,400,"147 - MOBILIARI","POLIESPORTIU JOAN CREUS"]
["SPLIT","2007-12-31",400,0,400,"147 - MOBILIARI","POLIESPORTIU JOAN CREUS"]
["SPLIT","2007-12-31",400,0,400,"147 - MOBILIARI","POLIESPORTIU JOAN CREUS"]
["SPLIT","2007-12-31",400,0,400,"147 - MOBILIARI","POLIESPORTIU JOAN CREUS"]
["","TOTAL:",{"$f":"SUM(C2:C312)","v":9542909.6750000007},{"$f":"SUM(D2:D312)","v":5257485.8400000008},{"$f":"SUM(E2:E312)","v":14800395.515000004},null,""]

{"sheet":"PMC","index":2,"n_rows":470,"n_cols":7,"rows_kept":470,"cut":false,"hidden":false,"merged":[]}
["Descripció del bé","Data adquisició","Valoració","Millores","Total","Família","Ubicació"]
["CASAL JOVES / RÀDIO - RBA. SANT JORDI, 6 - N. URBÀ","1981-06-03",411906.21,23225.15,435131.36000000004,"121 - INMOBLES (DOMINI PÚBLIC)","MUNICIPI"]
["TEATRE AUDITORI - PLÇ. 11 SETEMBRE - NUCLI URBÀ","1918-12-28",795770.38,145305.50000000003,941075.88,"121 - INMOBLES (DOMINI PÚBLIC)","MUNICIPI"]
["BIBLIOTECA - C/ DE L'ESTACIÓ, 40 - CAN MASACHS","1995-07-14",537699.28,527002.65,1064701.9300000002,"121 - INMOBLES (DOMINI PÚBLIC)","MUNICIPI"]
["CENTRE CULTURAL - RBA. SANT JORDI 2,4 - NUCLI URBÀ","1981-06-03",2446327.66,198689.21,2645016.87,"121 - INMOBLES (DOMINI PÚBLIC)","MUNICIPI"]
["CENTRE INTERPRETACIÓ PATRIMONI - P. MOLÍ D'EN RATA","1999-12-23",126421.46,23225.15,149646.61000000002,"121 - INMOBLES (DOMINI PÚBLIC)","MUNICIPI"]
["TERENY CASAL JOVES / RÀDIO - RBA. SANT JORDI, 6 - N. URBÀ","1981-06-03",47665.5,0,47665.5,"121 - INMOBLES (DOMINI PÚBLIC)","MUNICIPI"]
["TERRENY TEATRE AUDITORI - PLÇ. 11 SETEMBRE - NUCLI URBÀ","1918-12-28",46020.75,0,46020.75,"121 - INMOBLES (DOMINI PÚBLIC)","MUNICIPI"]
["TERRENY BIBLIOTECA - C/ DE L'ESTACIÓ, 40 - CAN MASACHS","1995-07-14",39990,0,39990,"121 - INMOBLES (DOMINI PÚBLIC)","MUNICIPI"]
["TERRENY CENTRE CULTURAL - RBA. SANT JORDI 2,4 - NUCLI URBÀ","1981-06-03",48858.75,0,48858.75,"121 - INMOBLES (DOMINI PÚBLIC)","MUNICIPI"]
["TERRENY CENTRE INTERPRETACIÓ PATRIMONI - P. MOLÍ D'EN RATA","1999-12-23",107521.5,0,107521.5,"121 - INMOBLES (DOMINI PÚBLIC)","MUNICIPI"]
["CADIRAM","2007-12-31",45600,0,45600,"147 - MOBILIARI","BIBLIOTECA MUNICIPAL"]
["TAULES","2007-12-31",9800,0,9800,"147 - MOBILIARI","BIBLIOTECA MUNICIPAL"]
["ARMARIS","2007-12-31",17800,0,17800,"147 - MOBILIARI","BIBLIOTECA MUNICIPAL"]
["TRANSPORTADOR LLIBRES","2007-12-31",960,0,960,"147 - MOBILIARI","BIBLIOTECA MUNICIPAL"]
["MOSTRADOR","2007-12-31",800,0,800,"147 - MOBILIARI","BIBLIOTECA MUNICIPAL"]
["BUCS DE CALAIXOS","2007-12-31",560,0,560,"147 - MOBILIARI","BIBLIOTECA MUNICIPAL"]
["TELEVISOR","2007-12-31",800,0,800,"147 - MOBILIARI","BIBLIOTECA MUNICIPAL"]
["PANTALLA DE PROJECCIÓ","2007-12-31",90,0,90,"147 - MOBILIARI","BIBLIOTECA MUNICIPAL"]
["CANO PROJECTOR","2007-12-31",800,0,800,"147 - MOBILIARI","BIBLIOTECA MUNICIPAL"]
["BAFLE","2007-12-31",460,0,460,"147 - MOBILIARI","BIBLIOTECA MUNICIPAL"]
["BAFLE","2007-12-31",460,0,460,"147 - MOBILIARI","BIBLIOTECA MUNICIPAL"]
["PISSARRA","2007-12-31",630,0,630,"147 - MOBILIARI","BIBLIOTECA MUNICIPAL"]
["PANTALLA DE PROJECCIÓ","2007-12-31",90,0,90,"147 - MOBILIARI","BIBLIOTECA MUNICIPAL"]
["CANO PROJECTOR","2007-12-31",800,0,800,"147 - MOBILIARI","BIBLIOTECA MUNICIPAL"]
["BAFLE","2007-12-31",460,0,460,"147 - MOBILIARI","BIBLIOTECA MUNICIPAL"]
["BAFLE","2007-12-31",460,0,460,"147 - MOBILIARI","BIBLIOTECA MUNICIPAL"]
["ARMARIETS","2007-12-31",2800,0,2800,"147 - MOBILIARI","BIBLIOTECA MUNICIPAL"]
["EXPOSITORS","2007-12-31",840,0,840,"147 - MOBILIARI","BIBLIOTECA MUNICIPAL"]
["MOBLES REVISTES","2007-12-31",350,0,350,"147 - MOBILIARI","BIBLIOTECA MUNICIPAL"]
["REPRODUCTOR CD","2007-12-31",50,0,50,"147 - MOBILIARI","BIBLIOTECA MUNICIPAL"]
["AMPLIFICADOR","2007-12-31",300,0,300,"147 - MOBILIARI","BIBLIOTECA MUNICIPAL"]
["EQUALITZADOR","2007-12-31",120,0,120,"147 - MOBILIARI","BIBLIOTECA MUNICIPAL"]
["AMPLIFICADOR","2007-12-31",300,0,300,"147 - MOBILIARI","BIBLIOTECA MUNICIPAL"]
["RECEPTOR MICROFON","2007-12-31",120,0,120,"147 - MOBILIARI","BIBLIOTECA MUNICIPAL"]
["MICROFON","2007-12-31",80,0,80,"147 - MOBILIARI","BIBLIOTECA MUNICIPAL"]
["MICROFON SOLAPA","2007-12-31",80,0,80,"147 - MOBILIARI","BIBLIOTECA MUNICIPAL"]
["MICROFON","2007-12-31",80,0,80,"147 - MOBILIARI","BIBLIOTECA MUNICIPAL"]
["IMPRESSORA MULTIFUNCIO","2007-12-31",500,0,500,"131 - EQUIPAMENTS DE PROCESSO D'INFORMACIÓ","BIBLIOTECA MUNICIPAL"]
["TELEVISOR","2007-12-31",800,0,800,"147 - MOBILIARI","BIBLIOTECA MUNICIPAL"]
["TELEVISOR","2007-12-31",800,0,800,"147 - MOBILIARI","BIBLIOTECA MUNICIPAL"]
["AMPLIFICADOR","2007-12-31",300,0,300,"147 - MOBILIARI","BIBLIOTECA MUNICIPAL"]
["REPRODUCTOR CD","2007-12-31",50,0,50,"147 - MOBILIARI","BIBLIOTECA MUNICIPAL"]
["MICROFON","2007-12-31",80,0,80,"147 - MOBILIARI","BIBLIOTECA MUNICIPAL"]
["IMPRESSORA MULTIFUNCIO","2007-12-31",500,0,500,"131 - EQUIPAMENTS DE PROCESSO D'INFORMACIÓ","BIBLIOTECA MUNICIPAL"]
["NEVERA","2007-12-31",400,0,400,"147 - MOBILIARI","BIBLIOTECA MUNICIPAL"]
["CISSALLA ","2007-12-31",360,0,360,"147 - MOBILIARI","BIBLIOTECA MUNICIPAL"]
["PLASTIFICADORA","2007-12-31",70,0,70,"147 - MOBILIARI","BIBLIOTECA MUNICIPAL"]
["TAULA DE MESCLES","2007-12-31",2500,0,2500,"147 - MOBILIARI","BIBLIOTECA MUNICIPAL"]
["REPRODUCTOR CD","2007-12-31",50,0,50,"147 - MOBILIARI","BIBLIOTECA MUNICIPAL"]
["PC","2007-12-31",700,0,700,"131 - EQUIPAMENTS DE PROCESSO D'INFORMACIÓ","BIBLIOTECA MUNICIPAL"]
["MONITOR ","2007-12-31",90,0,90,"131 - EQUIPAMENTS DE PROCESSO D'INFORMACIÓ","BIBLIOTECA MUNICIPAL"]
["ARMARIETS","2007-12-31",2800,0,2800,"147 - MOBILIARI","BIBLIOTECA MUNICIPAL"]
["AMPLIFICADOR","2007-12-31",300,0,300,"147 - MOBILIARI","BIBLIOTECA MUNICIPAL"]
["TAULA DE MESCLES","2007-12-31",2500,0,2500,"147 - MOBILIARI","BIBLIOTECA MUNICIPAL"]
["ESCALES","2007-12-31",130,0,130,"147 - MOBILIARI","BIBLIOTECA MUNICIPAL"]
["REPRODUCTOR BLURAY","2007-12-31",70,0,70,"147 - MOBILIARI","BIBLIOTECA MUNICIPAL"]
["REPRODUCTOR BLURAY","2007-12-31",70,0,70,"147 - MOBILIARI","BIBLIOTECA MUNICIPAL"]
["REPRODUCTOR BLURAY","2007-12-31",70,0,70,"147 - MOBILIARI","BIBLIOTECA MUNICIPAL"]
["TELEVISOR","2007-12-31",800,0,800,"147 - MOBILIARI","BIBLIOTECA MUNICIPAL"]
["REPRODUCTOR CD","2007-12-31",50,0,50,"147 - MOBILIARI","BIBLIOTECA MUNICIPAL"]
["TELEVISOR","2007-12-31",800,0,800,"147 - MOBILIARI","BIBLIOTECA MUNICIPAL"]
["CADIRAM","2007-12-31",9690,0,9690,"147 - MOBILIARI","CASAL DE JOVES"]
["TAULES","2007-12-31",3800,0,3800,"147 - MOBILIARI","CASAL DE JOVES"]
["ARMARIS","2007-12-31",6400,0,6400,"147 - MOBILIARI","CASAL DE JOVES"]
["MOSTRADOR","2007-12-31",800,0,800,"147 - MOBILIARI","CASAL DE JOVES"]
["PISSARRA","2007-12-31",840,0,840,"147 - MOBILIARI","CASAL DE JOVES"]
["SPLIT","2007-12-31",400,0,400,"147 - MOBILIARI","CASAL DE JOVES"]
["SPLIT","2007-12-31",400,0,400,"147 - MOBILIARI","CASAL DE JOVES"]
["PC","2007-12-31",700,0,700,"131 - EQUIPAMENTS DE PROCESSO D'INFORMACIÓ","CASAL DE JOVES"]
["MONITOR","2007-12-31",90,0,90,"131 - EQUIPAMENTS DE PROCESSO D'INFORMACIÓ","CASAL DE JOVES"]
["IMPRESSORA","2007-12-31",380,0,380,"131 - EQUIPAMENTS DE PROCESSO D'INFORMACIÓ","CASAL DE JOVES"]
["MONITOR","2007-12-31",90,0,90,"131 - EQUIPAMENTS DE PROCESSO D'INFORMACIÓ","CASAL DE JOVES"]
["PC","2007-12-31",700,0,700,"131 - EQUIPAMENTS DE PROCESSO D'INFORMACIÓ","CASAL DE JOVES"]
["MONITOR","2007-12-31",90,0,90,"131 - EQUIPAMENTS DE PROCESSO D'INFORMACIÓ","CASAL DE JOVES"]
["PC","2007-12-31",700,0,700,"131 - EQUIPAMENTS DE PROCESSO D'INFORMACIÓ","CASAL DE JOVES"]
["MINI CADENA","2007-12-31",100,0,100,"147 - MOBILIARI","CASAL DE JOVES"]
["BAFLE","2007-12-31",460,0,460,"147 - MOBILIARI","CASAL DE JOVES"]
["FUTBOLIN","2007-12-31",750,0,750,"147 - MOBILIARI","CASAL DE JOVES"]
["PANTALLA DE PROJECCIÓ","2007-12-31",90,0,90,"147 - MOBILIARI","CASAL DE JOVES"]
["TELEVISOR","2007-12-31",800,0,800,"147 - MOBILIARI","CASAL DE JOVES"]
["ESTUFA","2007-12-31",200,0,200,"147 - MOBILIARI","CASAL DE JOVES"]
["ESTUFA","2007-12-31",200,0,200,"147 - MOBILIARI","CASAL DE JOVES"]
["ESTUFA","2007-12-31",200,0,200,"147 - MOBILIARI","CASAL DE JOVES"]
["ESTUFA","2007-12-31",200,0,200,"147 - MOBILIARI","CASAL DE JOVES"]
["ESTUFA","2007-12-31",200,0,200,"147 - MOBILIARI","CASAL DE JOVES"]
["ESTUFA","2007-12-31",200,0,200,"147 - MOBILIARI","CASAL DE JOVES"]
["TAULA DE PING PONG","2007-12-31",300,0,300,"147 - MOBILIARI","CASAL DE JOVES"]
["BUCS DE CALAIXOS","2007-12-31",640,0,640,"147 - MOBILIARI","CASAL DE JOVES"]
["MINI CADENA","2007-12-31",100,0,100,"147 - MOBILIARI","CASAL DE JOVES"]
["PC","2007-12-31",700,0,700,"131 - EQUIPAMENTS DE PROCESSO D'INFORMACIÓ","CASAL DE JOVES"]
["MONITOR","2007-12-31",90,0,90,"131 - EQUIPAMENTS DE PROCESSO D'INFORMACIÓ","CASAL DE JOVES"]
["PC","2007-12-31",700,0,700,"131 - EQUIPAMENTS DE PROCESSO D'INFORMACIÓ","CASAL DE JOVES"]
["MONITOR","2007-12-31",90,0,90,"131 - EQUIPAMENTS DE PROCESSO D'INFORMACIÓ","CASAL DE JOVES"]
["SPLIT","2007-12-31",400,0,400,"147 - MOBILIARI","CASAL DE JOVES"]
["DESTRUCTORA DE DOCUMENTS","2007-12-31",180,0,180,"147 - MOBILIARI","CASAL DE JOVES"]
["MONITOR","2007-12-31",90,0,90,"131 - EQUIPAMENTS DE PROCESSO D'INFORMACIÓ","CASAL DE JOVES"]
["PC","2007-12-31",700,0,700,"131 - EQUIPAMENTS DE PROCESSO D'INFORMACIÓ","CASAL DE JOVES"]
["MONITOR","2007-12-31",90,0,90,"131 - EQUIPAMENTS DE PROCESSO D'INFORMACIÓ","CASAL DE JOVES"]
["PC","2007-12-31",700,0,700,"131 - EQUIPAMENTS DE PROCESSO D'INFORMACIÓ","CASAL DE JOVES"]
["ESTUFA","2007-12-31",200,0,200,"147 - MOBILIARI","CASAL DE JOVES"]
["SPLIT","2007-12-31",400,0,400,"147 - MOBILIARI","CASAL DE JOVES"]
["ESCALES","2007-12-31",130,0,130,"147 - MOBILIARI","CASAL DE JOVES"]
["ARXIVADORS","2007-12-31",120,0,120,"147 - MOBILIARI","CASAL DE JOVES"]
["ARMARIS RACK","2007-12-31",200,0,200,"147 - MOBILIARI","CASAL DE JOVES"]
["MONITOR","2007-12-31",90,0,90,"131 - EQUIPAMENTS DE PROCESSO D'INFORMACIÓ","CASAL DE JOVES"]
["PC","2007-12-31",700,0,700,"131 - EQUIPAMENTS DE PROCESSO D'INFORMACIÓ","CASAL DE JOVES"]
["PC","2007-12-31",700,0,700,"131 - EQUIPAMENTS DE PROCESSO D'INFORMACIÓ","CASAL DE JOVES"]
["MONITOR","2007-12-31",90,0,90,"131 - EQUIPAMENTS DE PROCESSO D'INFORMACIÓ","CASAL DE JOVES"]
["EQUIP DE SO","2007-12-31",150,0,150,"147 - MOBILIARI","CASAL DE JOVES"]
["EQUIP DE SO","2007-12-31",150,0,150,"147 - MOBILIARI","CASAL DE JOVES"]
["CISSALLA ","2007-12-31",360,0,360,"147 - MOBILIARI","CASAL DE JOVES"]
["CAFETERA","2007-12-31",100,0,100,"147 - MOBILIARI","CASAL DE JOVES"]
["MICROONES","2007-12-31",70,0,70,"147 - MOBILIARI","CASAL DE JOVES"]
["NEVERA","2007-12-31",400,0,400,"147 - MOBILIARI","CASAL DE JOVES"]
["CANO PROJECTOR","2007-12-31",800,0,800,"147 - MOBILIARI","CASAL DE JOVES"]
["CAMARA DE FOTOS","2007-12-31",100,0,100,"147 - MOBILIARI","CASAL DE JOVES"]
["CAMARA DE VIDEO","2007-12-31",100,0,100,"147 - MOBILIARI","CASAL DE JOVES"]
["CAMARA DE VIDEO","2007-12-31",100,0,100,"147 - MOBILIARI","CASAL DE JOVES"]
["ORDINADOR PORTATIL","2007-12-31",600,0,600,"131 - EQUIPAMENTS DE PROCESSO D'INFORMACIÓ","CASAL DE JOVES"]
["SPLIT","2007-12-31",400,0,400,"147 - MOBILIARI","CASAL DE JOVES"]
["ESTUFA","2007-12-31",200,0,200,"147 - MOBILIARI","CASAL DE JOVES"]
["ESTUFA","2007-12-31",200,0,200,"147 - MOBILIARI","CASAL DE JOVES"]
["MONITOR","2007-12-31",90,0,90,"131 - EQUIPAMENTS DE PROCESSO D'INFORMACIÓ","CASAL DE JOVES"]
["PC","2007-12-31",700,0,700,"131 - EQUIPAMENTS DE PROCESSO D'INFORMACIÓ","CASAL DE JOVES"]
["TELEVISOR","2007-12-31",800,0,800,"147 - MOBILIARI","CASAL DE JOVES"]
["REPRODUCTOR DVD","2007-12-31",60,0,60,"147 - MOBILIARI","CASAL DE JOVES"]
["EXPOSITORS","2007-12-31",60,0,60,"147 - MOBILIARI","CASAL DE JOVES"]
["CADIRAM","2007-12-31",106020,0,106020,"147 - MOBILIARI","CENTRE CULTURAL"]
["TAULES","2007-12-31",31200,0,31200,"147 - MOBILIARI","CENTRE CULTURAL"]
["ARMARIS","2007-12-31",17200,0,17200,"147 - MOBILIARI","CENTRE CULTURAL"]
["BUCS DE CALAIXOS","2007-12-31",560,0,560,"147 - MOBILIARI","CENTRE CULTURAL"]
["PANTALLA DE PROJECCIÓ","2007-12-31",90,0,90,"147 - MOBILIARI","CENTRE CULTURAL"]
["PANTALLA DE PROJECCIÓ","2007-12-31",90,0,90,"147 - MOBILIARI","CENTRE CULTURAL"]
["VITRINA ","2007-12-31",1750,0,1750,"147 - MOBILIARI","CENTRE CULTURAL"]
["BAFLE ","2007-12-31",460,0,460,"147 - MOBILIARI","CENTRE CULTURAL"]
["BAFLE ","2007-12-31",460,0,460,"147 - MOBILIARI","CENTRE CULTURAL"]
["BAFLE ","2007-12-31",460,0,460,"147 - MOBILIARI","CENTRE CULTURAL"]
["BAFLE ","2007-12-31",460,0,460,"147 - MOBILIARI","CENTRE CULTURAL"]
["MICROFON","2007-12-31",80,0,80,"147 - MOBILIARI","CENTRE CULTURAL"]
["MICROFON","2007-12-31",80,0,80,"147 - MOBILIARI","CENTRE CULTURAL"]
["TAULA DE MESCLES","2007-12-31",2500,0,2500,"147 - MOBILIARI","CENTRE CULTURAL"]
["REPRODUCTOR DVD","2007-12-31",60,0,60,"147 - MOBILIARI","CENTRE CULTURAL"]
["REPRODUCTOR DVD","2007-12-31",60,0,60,"147 - MOBILIARI","CENTRE CULTURAL"]
["AMPLIFICADOR","2007-12-31",300,0,300,"147 - MOBILIARI","CENTRE CULTURAL"]
["AMPLIFICADOR","2007-12-31",300,0,300,"147 - MOBILIARI","CENTRE CULTURAL"]
["TRANSMISSOR MICRÒFONS","2007-12-31",150,0,150,"147 - MOBILIARI","CENTRE CULTURAL"]
["MICROFON","2007-12-31",80,0,80,"147 - MOBILIARI","CENTRE CULTURAL"]
["ESCALES","2007-12-31",910,0,910,"147 - MOBILIARI","CENTRE CULTURAL"]
["TELEVISOR","2007-12-31",800,0,800,"147 - MOBILIARI","CENTRE CULTURAL"]
["REPRODUCTOR DVD","2007-12-31",60,0,60,"147 - MOBILIARI","CENTRE CULTURAL"]
["EXPOSITORS","2007-12-31",1140,0,1140,"147 - MOBILIARI","CENTRE CULTURAL"]
["SPLIT","2007-12-31",400,0,400,"147 - MOBILIARI","CENTRE CULTURAL"]
["ORDINADOR PORTATIL","2007-12-31",600,0,600,"131 - EQUIPAMENTS DE PROCESSO D'INFORMACIÓ","CENTRE CULTURAL"]
["CAFETERA","2007-12-31",100,0,100,"147 - MOBILIARI","CENTRE CULTURAL"]
["SPLIT","2007-12-31",400,0,400,"147 - MOBILIARI","CENTRE CULTURAL"]
["EQUIP DE SO","2007-12-31",150,0,150,"147 - MOBILIARI","CENTRE CULTURAL"]
["FOCUS","2007-12-31",80,0,80,"147 - MOBILIARI","CENTRE CULTURAL"]
["CISSALLA ","2007-12-31",360,0,360,"147 - MOBILIARI","CENTRE CULTURAL"]
["FAX","2007-12-31",60,0,60,"131 - EQUIPAMENTS DE PROCESSO D'INFORMACIÓ","CENTRE CULTURAL"]
["DESFIBRIL·LADOR","2007-12-31",1100,0,1100,"147 - MOBILIARI","CENTRE CULTURAL"]
["DESTRUCTORA DE DOCUMENTS","2007-12-31",180,0,180,"147 - MOBILIARI","CENTRE CULTURAL"]
["MONITOR","2007-12-31",90,0,90,"131 - EQUIPAMENTS DE PROCESSO D'INFORMACIÓ","CENTRE CULTURAL"]
["PC","2007-12-31",700,0,700,"131 - EQUIPAMENTS DE PROCESSO D'INFORMACIÓ","CENTRE CULTURAL"]
["MONITOR","2007-12-31",90,0,90,"131 - EQUIPAMENTS DE PROCESSO D'INFORMACIÓ","CENTRE CULTURAL"]
["PC","2007-12-31",700,0,700,"131 - EQUIPAMENTS DE PROCESSO D'INFORMACIÓ","CENTRE CULTURAL"]
["MONITOR","2007-12-31",90,0,90,"131 - EQUIPAMENTS DE PROCESSO D'INFORMACIÓ","CENTRE CULTURAL"]
["GRAVADORA SEGURETAT","2007-12-31",300,0,300,"147 - MOBILIARI","CENTRE CULTURAL"]
["ENQUADERNADORA","2007-12-31",80,0,80,"147 - MOBILIARI","CENTRE CULTURAL"]
["BAFLE","2007-12-31",460,0,460,"147 - MOBILIARI","CENTRE CULTURAL"]
["BAFLE","2007-12-31",460,0,460,"147 - MOBILIARI","CENTRE CULTURAL"]
["BAFLE","2007-12-31",460,0,460,"147 - MOBILIARI","CENTRE CULTURAL"]
["BAFLE","2007-12-31",460,0,460,"147 - MOBILIARI","CENTRE CULTURAL"]
["BAFLE","2007-12-31",460,0,460,"147 - MOBILIARI","CENTRE CULTURAL"]
["BAFLE","2007-12-31",460,0,460,"147 - MOBILIARI","CENTRE CULTURAL"]
["BAFLE","2007-12-31",460,0,460,"147 - MOBILIARI","CENTRE CULTURAL"]
["BAFLE","2007-12-31",460,0,460,"147 - MOBILIARI","CENTRE CULTURAL"]
["BAFLE","2007-12-31",460,0,460,"147 - MOBILIARI","CENTRE CULTURAL"]
["BAFLE","2007-12-31",460,0,460,"147 - MOBILIARI","CENTRE CULTURAL"]
["CARPES ","2007-12-31",1,0,1,"147 - MOBILIARI","CENTRE CULTURAL"]
["AMPLIFICADOR","2007-12-31",300,0,300,"147 - MOBILIARI","CENTRE CULTURAL"]
["REPRODUCTOR CD","2007-12-31",50,0,50,"147 - MOBILIARI","CENTRE CULTURAL"]
["TAULA DE MESCLES","2007-12-31",2500,0,2500,"147 - MOBILIARI","CENTRE CULTURAL"]
["REPRODUCTOR CD","2007-12-31",50,0,50,"147 - MOBILIARI","CENTRE CULTURAL"]
["AMPLIFICADOR","2007-12-31",300,0,300,"147 - MOBILIARI","CENTRE CULTURAL"]
["TAULA DE MESCLES","2007-12-31",2500,0,2500,"147 - MOBILIARI","CENTRE CULTURAL"]
["REPRODUCTOR CD","2007-12-31",50,0,50,"147 - MOBILIARI","CENTRE CULTURAL"]
["COMPRESSOR","2007-12-31",150,0,150,"147 - MOBILIARI","CENTRE CULTURAL"]
["AMPLIFICADOR","2007-12-31",300,0,300,"147 - MOBILIARI","CENTRE CULTURAL"]
["TRIPODES BAFLES","2007-12-31",600,0,600,"147 - MOBILIARI","CENTRE CULTURAL"]
["PEU DE MICRÒFON","2007-12-31",300,0,300,"147 - MOBILIARI","CENTRE CULTURAL"]
["TORRES DE FOCUS","2007-12-31",420,0,420,"147 - MOBILIARI","CENTRE CULTURAL"]
["BAFLE","2007-12-31",460,0,460,"147 - MOBILIARI","CENTRE CULTURAL"]
["BAFLE","2007-12-31",460,0,460,"147 - MOBILIARI","CENTRE CULTURAL"]
["BAFLE","2007-12-31",460,0,460,"147 - MOBILIARI","CENTRE CULTURAL"]
["BAFLE","2007-12-31",460,0,460,"147 - MOBILIARI","CENTRE CULTURAL"]
["PISSARRA","2007-12-31",1190,0,1190,"147 - MOBILIARI","CENTRE CULTURAL"]
["REPRODUCTOR DVD","2007-12-31",60,0,60,"147 - MOBILIARI","CENTRE CULTURAL"]
["COMPRESSOR","2007-12-31",150,0,150,"147 - MOBILIARI","CENTRE CULTURAL"]
["AMPLIFICADOR","2007-12-31",300,0,300,"147 - MOBILIARI","CENTRE CULTURAL"]
["AMPLIFICADOR","2007-12-31",300,0,300,"147 - MOBILIARI","CENTRE CULTURAL"]
["CONSOLA MESCLADORA","2007-12-31",500,0,500,"147 - MOBILIARI","CENTRE CULTURAL"]
["BAFLE","2007-12-31",460,0,460,"147 - MOBILIARI","CENTRE CULTURAL"]
["BAFLE","2007-12-31",460,0,460,"147 - MOBILIARI","CENTRE CULTURAL"]
["TRIPODE QUADRES","2007-12-31",2750,0,2750,"147 - MOBILIARI","CENTRE CULTURAL"]
["CADENA DE MUSICA","2007-12-31",60,0,60,"147 - MOBILIARI","CENTRE CULTURAL"]
["BAFLE","2007-12-31",460,0,460,"147 - MOBILIARI","CENTRE CULTURAL"]
["BAFLE","2007-12-31",460,0,460,"147 - MOBILIARI","CENTRE CULTURAL"]
["TORCUL","2007-12-31",800,0,800,"147 - MOBILIARI","CENTRE CULTURAL"]
["CADENA DE MUSICA","2007-12-31",60,0,60,"147 - MOBILIARI","CENTRE CULTURAL"]
["PROJECTOR DIAPOSITIVES","2007-12-31",450,0,450,"147 - MOBILIARI","CENTRE CULTURAL"]
["FORN CERÀMICA","2007-12-31",250,0,250,"147 - MOBILIARI","CENTRE CULTURAL"]
["FORN CERÀMICA","2007-12-31",250,0,250,"147 - MOBILIARI","CENTRE CULTURAL"]
["TORN CERÀMICA","2007-12-31",120,0,120,"147 - MOBILIARI","CENTRE CULTURAL"]
["NEVERA","2007-12-31",400,0,400,"147 - MOBILIARI","CENTRE CULTURAL"]
["NEVERA","2007-12-31",400,0,400,"147 - MOBILIARI","CENTRE CULTURAL"]
["MICROONES","2007-12-31",70,0,70,"147 - MOBILIARI","CENTRE CULTURAL"]
["FORN ","2007-12-31",250,0,250,"147 - MOBILIARI","CENTRE CULTURAL"]
["FORN","2007-12-31",250,0,250,"147 - MOBILIARI","CENTRE CULTURAL"]
["PANTALLA DE PROJECCIÓ","2007-12-31",90,0,90,"147 - MOBILIARI","CENTRE CULTURAL"]
["TELEVISOR","2007-12-31",800,0,800,"147 - MOBILIARI","CENTRE CULTURAL"]
["IMPRESSORA MULTIFUNCIO","2007-12-31",500,0,500,"131 - EQUIPAMENTS DE PROCESSO D'INFORMACIÓ","CENTRE CULTURAL"]
["CADENA DE MUSICA","2007-12-31",60,0,60,"147 - MOBILIARI","CENTRE CULTURAL"]
["MIRALLS","2007-12-31",400,0,400,"147 - MOBILIARI","CENTRE CULTURAL"]
["CADENA DE MUSICA","2007-12-31",60,0,60,"147 - MOBILIARI","CENTRE CULTURAL"]
["BAFLE ","2007-12-31",460,0,460,"147 - MOBILIARI","CENTRE CULTURAL"]
["BAFLE ","2007-12-31",460,0,460,"147 - MOBILIARI","CENTRE CULTURAL"]
["MAQUINA DE COSIR","2007-12-31",120,0,120,"147 - MOBILIARI","CENTRE CULTURAL"]
["MAQUINA DE COSIR","2007-12-31",120,0,120,"147 - MOBILIARI","CENTRE CULTURAL"]
["MAQUINA DE COSIR","2007-12-31",120,0,120,"147 - MOBILIARI","CENTRE CULTURAL"]
["MAQUINA DE COSIR","2007-12-31",120,0,120,"147 - MOBILIARI","CENTRE CULTURAL"]
["MAQUINA DE COSIR","2007-12-31",120,0,120,"147 - MOBILIARI","CENTRE CULTURAL"]
["MAQUINA DE COSIR","2007-12-31",120,0,120,"147 - MOBILIARI","CENTRE CULTURAL"]
["MAQUINA DE COSIR","2007-12-31",120,0,120,"147 - MOBILIARI","CENTRE CULTURAL"]
["PC","2007-12-31",700,0,700,"131 - EQUIPAMENTS DE PROCESSO D'INFORMACIÓ","CENTRE CULTURAL"]
["MONITOR","2007-12-31",90,0,90,"131 - EQUIPAMENTS DE PROCESSO D'INFORMACIÓ","CENTRE CULTURAL"]
["IMPRESSORA","2007-12-31",380,0,380,"131 - EQUIPAMENTS DE PROCESSO D'INFORMACIÓ","CENTRE CULTURAL"]
["FOCUS","2007-12-31",80,0,80,"147 - MOBILIARI","CENTRE CULTURAL"]
["FOCUS","2007-12-31",80,0,80,"147 - MOBILIARI","CENTRE CULTURAL"]
["PANTALLA DE FONS","2007-12-31",50,0,50,"147 - MOBILIARI","CENTRE CULTURAL"]
["FOCUS","2007-12-31",80,0,80,"147 - MOBILIARI","CENTRE CULTURAL"]
["FOCUS","2007-12-31",80,0,80,"147 - MOBILIARI","CENTRE CULTURAL"]
["FOTOCOPIADORA MULTIFUNCIO","2007-12-31",430,0,430,"147 - MOBILIARI","CENTRE CULTURAL"]
["CALEFACTOR","2007-12-31",230,0,230,"147 - MOBILIARI","CENTRE CULTURAL"]
["CALEFACTOR","2007-12-31",230,0,230,"147 - MOBILIARI","CENTRE CULTURAL"]
["PC","2007-12-31",700,0,700,"131 - EQUIPAMENTS DE PROCESSO D'INFORMACIÓ","CENTRE CULTURAL"]
["MONITOR","2007-12-31",90,0,90,"131 - EQUIPAMENTS DE PROCESSO D'INFORMACIÓ","CENTRE CULTURAL"]
["PC","2007-12-31",700,0,700,"131 - EQUIPAMENTS DE PROCESSO D'INFORMACIÓ","CENTRE CULTURAL"]
["MONITOR","2007-12-31",90,0,90,"131 - EQUIPAMENTS DE PROCESSO D'INFORMACIÓ","CENTRE CULTURAL"]
["PC","2007-12-31",700,0,700,"131 - EQUIPAMENTS DE PROCESSO D'INFORMACIÓ","CENTRE CULTURAL"]
["MONITOR","2007-12-31",90,0,90,"131 - EQUIPAMENTS DE PROCESSO D'INFORMACIÓ","CENTRE CULTURAL"]
["PC","2007-12-31",700,0,700,"131 - EQUIPAMENTS DE PROCESSO D'INFORMACIÓ","CENTRE CULTURAL"]
["MONITOR","2007-12-31",90,0,90,"131 - EQUIPAMENTS DE PROCESSO D'INFORMACIÓ","CENTRE CULTURAL"]
["PC","2007-12-31",700,0,700,"131 - EQUIPAMENTS DE PROCESSO D'INFORMACIÓ","CENTRE CULTURAL"]
["MONITOR","2007-12-31",90,0,90,"131 - EQUIPAMENTS DE PROCESSO D'INFORMACIÓ","CENTRE CULTURAL"]
["PC","2007-12-31",700,0,700,"131 - EQUIPAMENTS DE PROCESSO D'INFORMACIÓ","CENTRE CULTURAL"]
["MONITOR","2007-12-31",90,0,90,"131 - EQUIPAMENTS DE PROCESSO D'INFORMACIÓ","CENTRE CULTURAL"]
["PC","2007-12-31",700,0,700,"131 - EQUIPAMENTS DE PROCESSO D'INFORMACIÓ","CENTRE CULTURAL"]
["MONITOR","2007-12-31",90,0,90,"131 - EQUIPAMENTS DE PROCESSO D'INFORMACIÓ","CENTRE CULTURAL"]
["PC","2007-12-31",700,0,700,"131 - EQUIPAMENTS DE PROCESSO D'INFORMACIÓ","CENTRE CULTURAL"]
["MONITOR","2007-12-31",90,0,90,"131 - EQUIPAMENTS DE PROCESSO D'INFORMACIÓ","CENTRE CULTURAL"]
["PC","2007-12-31",700,0,700,"131 - EQUIPAMENTS DE PROCESSO D'INFORMACIÓ","CENTRE CULTURAL"]
["MONITOR","2007-12-31",90,0,90,"131 - EQUIPAMENTS DE PROCESSO D'INFORMACIÓ","CENTRE CULTURAL"]
["PC","2007-12-31",700,0,700,"131 - EQUIPAMENTS DE PROCESSO D'INFORMACIÓ","CENTRE CULTURAL"]
["MONITOR","2007-12-31",90,0,90,"131 - EQUIPAMENTS DE PROCESSO D'INFORMACIÓ","CENTRE CULTURAL"]
["PC","2007-12-31",700,0,700,"131 - EQUIPAMENTS DE PROCESSO D'INFORMACIÓ","CENTRE CULTURAL"]
["MONITOR","2007-12-31",90,0,90,"131 - EQUIPAMENTS DE PROCESSO D'INFORMACIÓ","CENTRE CULTURAL"]
["PC","2007-12-31",700,0,700,"131 - EQUIPAMENTS DE PROCESSO D'INFORMACIÓ","CENTRE CULTURAL"]
["MONITOR","2007-12-31",90,0,90,"131 - EQUIPAMENTS DE PROCESSO D'INFORMACIÓ","CENTRE CULTURAL"]
["PC","2007-12-31",700,0,700,"131 - EQUIPAMENTS DE PROCESSO D'INFORMACIÓ","CENTRE CULTURAL"]
["MONITOR","2007-12-31",90,0,90,"131 - EQUIPAMENTS DE PROCESSO D'INFORMACIÓ","CENTRE CULTURAL"]
["PC","2007-12-31",700,0,700,"131 - EQUIPAMENTS DE PROCESSO D'INFORMACIÓ","CENTRE CULTURAL"]
["MONITOR","2007-12-31",90,0,90,"131 - EQUIPAMENTS DE PROCESSO D'INFORMACIÓ","CENTRE CULTURAL"]
["TELEVISOR","2007-12-31",800,0,800,"147 - MOBILIARI","CENTRE CULTURAL"]
["PC","2007-12-31",700,0,700,"131 - EQUIPAMENTS DE PROCESSO D'INFORMACIÓ","CENTRE CULTURAL"]
["MONITOR","2007-12-31",90,0,90,"131 - EQUIPAMENTS DE PROCESSO D'INFORMACIÓ","CENTRE CULTURAL"]
["CANO PROJECTOR","2007-12-31",800,0,800,"147 - MOBILIARI","CENTRE CULTURAL"]
["ARMARIS RACK","2007-12-31",400,0,400,"147 - MOBILIARI","CENTRE CULTURAL"]
["CUB METACRILAT","2007-12-31",440,0,440,"147 - MOBILIARI","CENTRE CULTURAL"]
["SPLIT","2007-12-31",400,0,400,"147 - MOBILIARI","CENTRE CULTURAL"]
["PC","2007-12-31",700,0,700,"131 - EQUIPAMENTS DE PROCESSO D'INFORMACIÓ","CENTRE CULTURAL"]
["MONITOR","2007-12-31",90,0,90,"131 - EQUIPAMENTS DE PROCESSO D'INFORMACIÓ","CENTRE CULTURAL"]
["PC","2007-12-31",700,0,700,"131 - EQUIPAMENTS DE PROCESSO D'INFORMACIÓ","CENTRE CULTURAL"]
["MONITOR","2007-12-31",90,0,90,"131 - EQUIPAMENTS DE PROCESSO D'INFORMACIÓ","CENTRE CULTURAL"]
["PC","2007-12-31",700,0,700,"131 - EQUIPAMENTS DE PROCESSO D'INFORMACIÓ","CENTRE CULTURAL"]
["MONITOR","2007-12-31",90,0,90,"131 - EQUIPAMENTS DE PROCESSO D'INFORMACIÓ","CENTRE CULTURAL"]
["PC","2007-12-31",700,0,700,"131 - EQUIPAMENTS DE PROCESSO D'INFORMACIÓ","CENTRE CULTURAL"]
["MONITOR","2007-12-31",90,0,90,"131 - EQUIPAMENTS DE PROCESSO D'INFORMACIÓ","CENTRE CULTURAL"]
["PC","2007-12-31",700,0,700,"131 - EQUIPAMENTS DE PROCESSO D'INFORMACIÓ","CENTRE CULTURAL"]
["MONITOR","2007-12-31",90,0,90,"131 - EQUIPAMENTS DE PROCESSO D'INFORMACIÓ","CENTRE CULTURAL"]
["IMPRESSORA","2007-12-31",380,0,380,"131 - EQUIPAMENTS DE PROCESSO D'INFORMACIÓ","CENTRE CULTURAL"]
["IMPRESSORA MULTIFUNCIO","2007-12-31",500,0,500,"131 - EQUIPAMENTS DE PROCESSO D'INFORMACIÓ","CENTRE CULTURAL"]
["SERVIDOR","2007-12-31",300,0,300,"131 - EQUIPAMENTS DE PROCESSO D'INFORMACIÓ","CENTRE CULTURAL"]
["SAI","2007-12-31",190,0,190,"147 - MOBILIARI","CENTRE CULTURAL"]
["SAI","2007-12-31",190,0,190,"147 - MOBILIARI","CENTRE CULTURAL"]
["AMPLIFICADOR","2007-12-31",300,0,300,"147 - MOBILIARI","CENTRE CULTURAL"]
["RECEPTOR AUDIO","2007-12-31",110,0,110,"147 - MOBILIARI","CENTRE CULTURAL"]
["MICROFON","2007-12-31",80,0,80,"147 - MOBILIARI","CENTRE CULTURAL"]
["DESTRUCTORA DE DOCUMENTS","2007-12-31",180,0,180,"147 - MOBILIARI","CENTRE CULTURAL"]
["ARXIVADORS","2007-12-31",120,0,120,"147 - MOBILIARI","CENTRE CULTURAL"]
["CADIRAM","2007-12-31",37050,0,37050,"147 - MOBILIARI","CENTRE MOLI D'EN RATA"]
["TAULES","2007-12-31",5800,0,5800,"147 - MOBILIARI","CENTRE MOLI D'EN RATA"]
["ARMARIS","2007-12-31",5000,0,5000,"147 - MOBILIARI","CENTRE MOLI D'EN RATA"]
["MOSTRADOR","2007-12-31",800,0,800,"147 - MOBILIARI","CENTRE MOLI D'EN RATA"]
["PISSARRA","2007-12-31",980,0,980,"147 - MOBILIARI","CENTRE MOLI D'EN RATA"]
["PC","2007-12-31",700,0,700,"131 - EQUIPAMENTS DE PROCESSO D'INFORMACIÓ","CENTRE MOLI D'EN RATA"]
["MONITOR","2007-12-31",90,0,90,"131 - EQUIPAMENTS DE PROCESSO D'INFORMACIÓ","CENTRE MOLI D'EN RATA"]
["IMPRESSORA MULTIFUNCIO","2007-12-31",500,0,500,"131 - EQUIPAMENTS DE PROCESSO D'INFORMACIÓ","CENTRE MOLI D'EN RATA"]
["FARISTOLS","2007-12-31",1080,0,1080,"147 - MOBILIARI","CENTRE MOLI D'EN RATA"]
["EQUIP DE MUSICA","2007-12-31",130,0,130,"147 - MOBILIARI","CENTRE MOLI D'EN RATA"]
["EQUIP DE MUSICA","2007-12-31",130,0,130,"147 - MOBILIARI","CENTRE MOLI D'EN RATA"]
["EQUIP DE MUSICA","2007-12-31",130,0,130,"147 - MOBILIARI","CENTRE MOLI D'EN RATA"]
["EQUIP DE MUSICA","2007-12-31",130,0,130,"147 - MOBILIARI","CENTRE MOLI D'EN RATA"]
["BUCS DE CALAIXOS","2007-12-31",240,0,240,"147 - MOBILIARI","CENTRE MOLI D'EN RATA"]
["ARXIVADORS","2007-12-31",240,0,240,"147 - MOBILIARI","CENTRE MOLI D'EN RATA"]
["IMPRESSORA MULTIFUNCIO","2007-12-31",500,0,500,"131 - EQUIPAMENTS DE PROCESSO D'INFORMACIÓ","CENTRE MOLI D'EN RATA"]
["MONITOR","2007-12-31",90,0,90,"131 - EQUIPAMENTS DE PROCESSO D'INFORMACIÓ","CENTRE MOLI D'EN RATA"]
["PC","2007-12-31",700,0,700,"131 - EQUIPAMENTS DE PROCESSO D'INFORMACIÓ","CENTRE MOLI D'EN RATA"]
["SAI","2007-12-31",190,0,190,"147 - MOBILIARI","CENTRE MOLI D'EN RATA"]
["IMPRESSORA","2007-12-31",380,0,380,"131 - EQUIPAMENTS DE PROCESSO D'INFORMACIÓ","CENTRE MOLI D'EN RATA"]
["MONITOR","2007-12-31",90,0,90,"131 - EQUIPAMENTS DE PROCESSO D'INFORMACIÓ","CENTRE MOLI D'EN RATA"]
["PC","2007-12-31",700,0,700,"131 - EQUIPAMENTS DE PROCESSO D'INFORMACIÓ","CENTRE MOLI D'EN RATA"]
["PC","2007-12-31",700,0,700,"131 - EQUIPAMENTS DE PROCESSO D'INFORMACIÓ","CENTRE MOLI D'EN RATA"]
["MONITOR","2007-12-31",90,0,90,"131 - EQUIPAMENTS DE PROCESSO D'INFORMACIÓ","CENTRE MOLI D'EN RATA"]
["ORDINADOR PORTATIL","2007-12-31",600,0,600,"131 - EQUIPAMENTS DE PROCESSO D'INFORMACIÓ","CENTRE MOLI D'EN RATA"]
["PC","2007-12-31",700,0,700,"131 - EQUIPAMENTS DE PROCESSO D'INFORMACIÓ","CENTRE MOLI D'EN RATA"]
["PC","2007-12-31",700,0,700,"131 - EQUIPAMENTS DE PROCESSO D'INFORMACIÓ","CENTRE MOLI D'EN RATA"]
["MONITOR","2007-12-31",90,0,90,"131 - EQUIPAMENTS DE PROCESSO D'INFORMACIÓ","CENTRE MOLI D'EN RATA"]
["PANTALLA DE PROJECCIÓ","2007-12-31",180,0,180,"147 - MOBILIARI","CENTRE MOLI D'EN RATA"]
["TELEVISOR","2007-12-31",800,0,800,"147 - MOBILIARI","CENTRE MOLI D'EN RATA"]
["CANO PROJECTOR","2007-12-31",800,0,800,"147 - MOBILIARI","CENTRE MOLI D'EN RATA"]
["BAFLE","2007-12-31",460,0,460,"147 - MOBILIARI","CENTRE MOLI D'EN RATA"]
["BAFLE","2007-12-31",460,0,460,"147 - MOBILIARI","CENTRE MOLI D'EN RATA"]
["MICROONES","2007-12-31",70,0,70,"147 - MOBILIARI","CENTRE MOLI D'EN RATA"]
["NEVERA","2007-12-31",400,0,400,"147 - MOBILIARI","CENTRE MOLI D'EN RATA"]
["FORN","2007-12-31",250,0,250,"147 - MOBILIARI","CENTRE MOLI D'EN RATA"]
["VITRINA ","2007-12-31",750,0,750,"147 - MOBILIARI","CENTRE MOLI D'EN RATA"]
["IMPRESSORA","2007-12-31",380,0,380,"131 - EQUIPAMENTS DE PROCESSO D'INFORMACIÓ","CENTRE MOLI D'EN RATA"]
["FAX","2007-12-31",60,0,60,"131 - EQUIPAMENTS DE PROCESSO D'INFORMACIÓ","CENTRE MOLI D'EN RATA"]
["PC","2007-12-31",700,0,700,"131 - EQUIPAMENTS DE PROCESSO D'INFORMACIÓ","CENTRE MOLI D'EN RATA"]
["MONITOR","2007-12-31",90,0,90,"131 - EQUIPAMENTS DE PROCESSO D'INFORMACIÓ","CENTRE MOLI D'EN RATA"]
["ARMARIS RACK","2007-12-31",200,0,200,"147 - MOBILIARI","CENTRE MOLI D'EN RATA"]
["EXPOSITORS","2007-12-31",60,0,60,"147 - MOBILIARI","CENTRE MOLI D'EN RATA"]
["SERVIDOR","2007-12-31",300,0,300,"131 - EQUIPAMENTS DE PROCESSO D'INFORMACIÓ","CENTRE MOLI D'EN RATA"]
["SERVIDOR","2007-12-31",300,0,300,"131 - EQUIPAMENTS DE PROCESSO D'INFORMACIÓ","CENTRE MOLI D'EN RATA"]
["SERVIDOR","2007-12-31",300,0,300,"131 - EQUIPAMENTS DE PROCESSO D'INFORMACIÓ","CENTRE MOLI D'EN RATA"]
["SERVIDOR","2007-12-31",300,0,300,"131 - EQUIPAMENTS DE PROCESSO D'INFORMACIÓ","CENTRE MOLI D'EN RATA"]
["AMPLIFICADOR","2007-12-31",300,0,300,"147 - MOBILIARI","CENTRE MOLI D'EN RATA"]
["REPRODUCTOR CD","2007-12-31",50,0,50,"147 - MOBILIARI","CENTRE MOLI D'EN RATA"]
["GRAVADORA CAMARA","2007-12-31",300,0,300,"147 - MOBILIARI","CENTRE MOLI D'EN RATA"]
["DESTRUCTORA DE DOCUMENTS","2007-12-31",180,0,180,"147 - MOBILIARI","CENTRE MOLI D'EN RATA"]
["SPLIT","2007-12-31",400,0,400,"147 - MOBILIARI","CENTRE MOLI D'EN RATA"]
["SPLIT","2007-12-31",400,0,400,"147 - MOBILIARI","CENTRE MOLI D'EN RATA"]
["SPLIT","2007-12-31",400,0,400,"147 - MOBILIARI","CENTRE MOLI D'EN RATA"]
["SPLIT","2007-12-31",400,0,400,"147 - MOBILIARI","CENTRE MOLI D'EN RATA"]
["DESHUMIFICADORA","2007-12-31",120,0,120,"147 - MOBILIARI","CENTRE MOLI D'EN RATA"]
["GENERADOR ","2007-12-31",300,0,300,"135 - MAQUINÀRIA I INSTAL·LACIONS TÈCNIQUES","CENTRE MOLI D'EN RATA"]
["VITRINA ","2007-12-31",2250,0,2250,"147 - MOBILIARI","CENTRE MOLI D'EN RATA"]
["TELEVISOR","2007-12-31",800,0,800,"147 - MOBILIARI","CENTRE MOLI D'EN RATA"]
["MONITOR","2007-12-31",90,0,90,"131 - EQUIPAMENTS DE PROCESSO D'INFORMACIÓ","CENTRE MOLI D'EN RATA"]
["PC","2007-12-31",700,0,700,"131 - EQUIPAMENTS DE PROCESSO D'INFORMACIÓ","CENTRE MOLI D'EN RATA"]
["REPRODUCTOR DVD","2007-12-31",60,0,60,"147 - MOBILIARI","CENTRE MOLI D'EN RATA"]
["SPLIT","2007-12-31",400,0,400,"147 - MOBILIARI","CENTRE MOLI D'EN RATA"]
["SISTEMES INALAMBRICS MICROFON","2007-12-31",300,0,300,"147 - MOBILIARI","TEATRE AUDITORI"]
["SISTEMES INALAMBRICS MICROFON","2007-12-31",300,0,300,"147 - MOBILIARI","TEATRE AUDITORI"]
["RECEPTOR RADIO","2007-12-31",160,0,160,"147 - MOBILIARI","TEATRE AUDITORI"]
["AMPLIFICADOR","2007-12-31",300,0,300,"147 - MOBILIARI","TEATRE AUDITORI"]
["EQUALITZADOR","2007-12-31",120,0,120,"147 - MOBILIARI","TEATRE AUDITORI"]
["REPRODUCTOR DVD","2007-12-31",60,0,60,"147 - MOBILIARI","TEATRE AUDITORI"]
["REPRODUCTOR MINIDISC","2007-12-31",60,0,60,"147 - MOBILIARI","TEATRE AUDITORI"]
["REPRODUCTOR CD","2007-12-31",50,0,50,"147 - MOBILIARI","TEATRE AUDITORI"]
["AURICULARS","2007-12-31",220,0,220,"147 - MOBILIARI","TEATRE AUDITORI"]
["TAULA DE MESCLES","2007-12-31",2500,0,2500,"147 - MOBILIARI","TEATRE AUDITORI"]
["TAULA DE MESCLES","2007-12-31",2500,0,2500,"147 - MOBILIARI","TEATRE AUDITORI"]
["MONITOR","2007-12-31",90,0,90,"131 - EQUIPAMENTS DE PROCESSO D'INFORMACIÓ","TEATRE AUDITORI"]
["IMAC","2007-12-31",3000,0,3000,"131 - EQUIPAMENTS DE PROCESSO D'INFORMACIÓ","TEATRE AUDITORI"]
["RECEPTOR SATELIT","2007-12-31",90,0,90,"147 - MOBILIARI","TEATRE AUDITORI"]
["BAFLE ","2007-12-31",460,0,460,"147 - MOBILIARI","TEATRE AUDITORI"]
["BAFLE ","2007-12-31",460,0,460,"147 - MOBILIARI","TEATRE AUDITORI"]
["MONITOR","2007-12-31",90,0,90,"131 - EQUIPAMENTS DE PROCESSO D'INFORMACIÓ","TEATRE AUDITORI"]
["APARELL CAMERES","2007-12-31",1,0,1,"147 - MOBILIARI","TEATRE AUDITORI"]
["REPRODUCTOR CD","2007-12-31",50,0,50,"147 - MOBILIARI","TEATRE AUDITORI"]
["MICROFON","2007-12-31",80,0,80,"147 - MOBILIARI","TEATRE AUDITORI"]
["MICROFON","2007-12-31",80,0,80,"147 - MOBILIARI","TEATRE AUDITORI"]
["MICROFON","2007-12-31",80,0,80,"147 - MOBILIARI","TEATRE AUDITORI"]
["MICROFON","2007-12-31",80,0,80,"147 - MOBILIARI","TEATRE AUDITORI"]
["MICROFON","2007-12-31",80,0,80,"147 - MOBILIARI","TEATRE AUDITORI"]
["MICROFON","2007-12-31",80,0,80,"147 - MOBILIARI","TEATRE AUDITORI"]
["MICROFON","2007-12-31",80,0,80,"147 - MOBILIARI","TEATRE AUDITORI"]
["MICROFON","2007-12-31",80,0,80,"147 - MOBILIARI","TEATRE AUDITORI"]
["MICROFON","2007-12-31",80,0,80,"147 - MOBILIARI","TEATRE AUDITORI"]
["MICROFON","2007-12-31",80,0,80,"147 - MOBILIARI","TEATRE AUDITORI"]
["MICROFON","2007-12-31",80,0,80,"147 - MOBILIARI","TEATRE AUDITORI"]
["MICROFON","2007-12-31",80,0,80,"147 - MOBILIARI","TEATRE AUDITORI"]
["MICROFON","2007-12-31",80,0,80,"147 - MOBILIARI","TEATRE AUDITORI"]
["MICROFON","2007-12-31",80,0,80,"147 - MOBILIARI","TEATRE AUDITORI"]
["MICROFON","2007-12-31",80,0,80,"147 - MOBILIARI","TEATRE AUDITORI"]
["MICROFON","2007-12-31",80,0,80,"147 - MOBILIARI","TEATRE AUDITORI"]
["MICROFON","2007-12-31",80,0,80,"147 - MOBILIARI","TEATRE AUDITORI"]
["MICROFON","2007-12-31",80,0,80,"147 - MOBILIARI","TEATRE AUDITORI"]
["MICROFON","2007-12-31",80,0,80,"147 - MOBILIARI","TEATRE AUDITORI"]
["MICROFON","2007-12-31",80,0,80,"147 - MOBILIARI","TEATRE AUDITORI"]
["MICROFON","2007-12-31",80,0,80,"147 - MOBILIARI","TEATRE AUDITORI"]
["MICROFON","2007-12-31",80,0,80,"147 - MOBILIARI","TEATRE AUDITORI"]
["MICROFON","2007-12-31",80,0,80,"147 - MOBILIARI","TEATRE AUDITORI"]
["MICROFON","2007-12-31",80,0,80,"147 - MOBILIARI","TEATRE AUDITORI"]
["BASE MICROFON","2007-12-31",40,0,40,"147 - MOBILIARI","TEATRE AUDITORI"]
["BASE MICROFON","2007-12-31",40,0,40,"147 - MOBILIARI","TEATRE AUDITORI"]
["ESTABILITZADOR SENYAL","2007-12-31",90,0,90,"147 - MOBILIARI","TEATRE AUDITORI"]
["ESTABILITZADOR SENYAL","2007-12-31",90,0,90,"147 - MOBILIARI","TEATRE AUDITORI"]
["ESTABILITZADOR SENYAL","2007-12-31",90,0,90,"147 - MOBILIARI","TEATRE AUDITORI"]
["ESTABILITZADOR SENYAL","2007-12-31",90,0,90,"147 - MOBILIARI","TEATRE AUDITORI"]
["LENT DE PROJECCIO","2007-12-31",50,0,50,"147 - MOBILIARI","TEATRE AUDITORI"]
["ARMARIS","2007-12-31",1200,0,1200,"147 - MOBILIARI","TEATRE AUDITORI"]
["CADIRAM","2007-12-31",79420,0,79420,"147 - MOBILIARI","TEATRE AUDITORI"]
["TAULES","2007-12-31",3400,0,3400,"147 - MOBILIARI","TEATRE AUDITORI"]
["CANO PROJECTOR","2007-12-31",800,0,800,"147 - MOBILIARI","TEATRE AUDITORI"]
["BAFLE","2007-12-31",460,0,460,"147 - MOBILIARI","TEATRE AUDITORI"]
["BAFLE","2007-12-31",460,0,460,"147 - MOBILIARI","TEATRE AUDITORI"]
["BAFLE","2007-12-31",460,0,460,"147 - MOBILIARI","TEATRE AUDITORI"]
["BAFLE","2007-12-31",460,0,460,"147 - MOBILIARI","TEATRE AUDITORI"]
["BAFLE","2007-12-31",460,0,460,"147 - MOBILIARI","TEATRE AUDITORI"]
["BAFLE","2007-12-31",460,0,460,"147 - MOBILIARI","TEATRE AUDITORI"]
["BAFLE","2007-12-31",460,0,460,"147 - MOBILIARI","TEATRE AUDITORI"]
["BAFLE","2007-12-31",460,0,460,"147 - MOBILIARI","TEATRE AUDITORI"]
["BAFLE","2007-12-31",460,0,460,"147 - MOBILIARI","TEATRE AUDITORI"]
["BAFLE","2007-12-31",460,0,460,"147 - MOBILIARI","TEATRE AUDITORI"]
["PATCH AUDIO","2007-12-31",40,0,40,"147 - MOBILIARI","TEATRE AUDITORI"]
["BAFLE","2007-12-31",460,0,460,"147 - MOBILIARI","TEATRE AUDITORI"]
["ESCALES","2007-12-31",130,0,130,"147 - MOBILIARI","TEATRE AUDITORI"]
["CICLORAMA","2007-12-31",1000,0,1000,"147 - MOBILIARI","TEATRE AUDITORI"]
["BAFLE","2007-12-31",460,0,460,"147 - MOBILIARI","TEATRE AUDITORI"]
["PLAQUES TARIMA","2007-12-31",3240,0,3240,"147 - MOBILIARI","TEATRE AUDITORI"]
["ARMARIETS","2007-12-31",800,0,800,"147 - MOBILIARI","TEATRE AUDITORI"]
["ATORNILLADOR","2007-12-31",700,0,700,"135 - MAQUINÀRIA I INSTAL·LACIONS TÈCNIQUES","TEATRE AUDITORI"]
["TALADRE","2007-12-31",130,0,130,"135 - MAQUINÀRIA I INSTAL·LACIONS TÈCNIQUES","TEATRE AUDITORI"]
["TALLADORA FUSTA","2007-12-31",140,0,140,"135 - MAQUINÀRIA I INSTAL·LACIONS TÈCNIQUES","TEATRE AUDITORI"]
["MOLADORA ","2007-12-31",130,0,130,"135 - MAQUINÀRIA I INSTAL·LACIONS TÈCNIQUES","TEATRE AUDITORI"]
["PDA","2007-12-31",60,0,60,"147 - MOBILIARI","TEATRE AUDITORI"]
["ORDINADOR PORTATIL","2007-12-31",600,0,600,"131 - EQUIPAMENTS DE PROCESSO D'INFORMACIÓ","TEATRE AUDITORI"]
["DIMMER","2007-12-31",60,0,60,"147 - MOBILIARI","TEATRE AUDITORI"]
["DIMMER","2007-12-31",60,0,60,"147 - MOBILIARI","TEATRE AUDITORI"]
["DIMMER","2007-12-31",60,0,60,"147 - MOBILIARI","TEATRE AUDITORI"]
["DIMMER","2007-12-31",60,0,60,"147 - MOBILIARI","TEATRE AUDITORI"]
["DIMMER","2007-12-31",60,0,60,"147 - MOBILIARI","TEATRE AUDITORI"]
["DIMMER","2007-12-31",60,0,60,"147 - MOBILIARI","TEATRE AUDITORI"]
["DIMMER","2007-12-31",60,0,60,"147 - MOBILIARI","TEATRE AUDITORI"]
["DIMMER","2007-12-31",60,0,60,"147 - MOBILIARI","TEATRE AUDITORI"]
["DIMMER","2007-12-31",60,0,60,"147 - MOBILIARI","TEATRE AUDITORI"]
["AMPLIFICADOR","2007-12-31",300,0,300,"147 - MOBILIARI","TEATRE AUDITORI"]
["AMPLIFICADOR","2007-12-31",300,0,300,"147 - MOBILIARI","TEATRE AUDITORI"]
["MAQUINA ","2007-12-31",1500,0,1500,"147 - MOBILIARI","TEATRE AUDITORI"]
["MIRALLS","2007-12-31",560,0,560,"147 - MOBILIARI","TEATRE AUDITORI"]
["SPLIT","2007-12-31",400,0,400,"147 - MOBILIARI","TEATRE AUDITORI"]
["SPLIT","2007-12-31",400,0,400,"147 - MOBILIARI","TEATRE AUDITORI"]
["DESFIBRIL·LADOR","2007-12-31",1100,0,1100,"147 - MOBILIARI","TEATRE AUDITORI"]
["IMPRESSORA","2007-12-31",380,0,380,"131 - EQUIPAMENTS DE PROCESSO D'INFORMACIÓ","TEATRE AUDITORI"]
["MONITOR","2007-12-31",90,0,90,"131 - EQUIPAMENTS DE PROCESSO D'INFORMACIÓ","TEATRE AUDITORI"]
["EXPOSITORS","2007-12-31",120,0,120,"147 - MOBILIARI","TEATRE AUDITORI"]
["TELEVISOR","2007-12-31",800,0,800,"147 - MOBILIARI","TEATRE AUDITORI"]
["BAFLE","2007-12-31",460,0,460,"147 - MOBILIARI","TEATRE AUDITORI"]
["BAFLE","2007-12-31",460,0,460,"147 - MOBILIARI","TEATRE AUDITORI"]
["FOCUS","2007-12-31",1600,0,1600,"147 - MOBILIARI","TEATRE AUDITORI"]
["FOCUS","2007-12-31",800,0,800,"147 - MOBILIARI","TEATRE AUDITORI"]
["FOCUS","2007-12-31",720,0,720,"147 - MOBILIARI","TEATRE AUDITORI"]
["FOCUS","2007-12-31",480,0,480,"147 - MOBILIARI","TEATRE AUDITORI"]
["FOCUS","2007-12-31",320,0,320,"147 - MOBILIARI","TEATRE AUDITORI"]
["FOCUS","2007-12-31",480,0,480,"147 - MOBILIARI","TEATRE AUDITORI"]
["FOCUS","2007-12-31",1200,0,1200,"147 - MOBILIARI","TEATRE AUDITORI"]
[null,"TOTAL:",{"$f":"SUM(C2:C469)","v":5168323.49},{"$f":"SUM(D2:D469)","v":917447.66},{"$f":"SUM(E2:E469)","v":6085771.1500000004}]

{"sheet":"PMO","index":3,"n_rows":167,"n_cols":7,"rows_kept":167,"cut":false,"hidden":false,"merged":[]}
["Descripció del bé","Data adquisició","Valoració","Millores","Total","Família","Ubicació"]
["PATRONAT OCUPACIÓ - C/ S. SEBASTIÀ 26 - CAN TIANA","1974-07-05",433641.62,23225.15,456866.77,"121 - INMOBLES (DOMINI PÚBLIC)","MUNICIPI"]
["TERRENY CENTRE OCUPACIONAL - C/ PADRÓ - P.GASSÓ-V.","1992-07-23",495300,0,495300,"121 - INMOBLES (DOMINI PÚBLIC)","MUNICIPI"]
["BRIGADA I BUCS - AV RIU RIPOLL 95 97- CADESBANK","2001-06-22",541174.07999999996,23225.15,564399.23,"121 - INMOBLES (DOMINI PÚBLIC)","MUNICIPI"]
["ANNEX BRIGADA - AV RIU RIPOLL 95 97 - P. CADESBANK","2001-05-30",82699.27,23225.15,105924.42000000001,"121 - INMOBLES (DOMINI PÚBLIC)","MUNICIPI"]
["TERRENY PATRONAT OCUPACIÓ - C/ S. SEBASTIÀ 26 - CAN TIANA","1974-07-05",156928.5,0,156928.5,"121 - INMOBLES (DOMINI PÚBLIC)","MUNICIPI"]
["TERRENY BRIGADA I BUCS - AV RIU RIPOLL 95 97- CADESBANK","2001-06-22",30442.387500000001,0,30442.387500000001,"121 - INMOBLES (DOMINI PÚBLIC)","MUNICIPI"]
["CADIRAM","2007-12-31",49590,0,49590,"147 - MOBILIARI","PATRONAT MUNICIPAL D'OCUPACIÓ"]
["TAULES","2007-12-31",17000,0,17000,"147 - MOBILIARI","PATRONAT MUNICIPAL D'OCUPACIÓ"]
["ARMARIS","2007-12-31",12000,0,12000,"147 - MOBILIARI","PATRONAT MUNICIPAL D'OCUPACIÓ"]
["BUCS DE CALAIXOS","2007-12-31",1600,0,1600,"147 - MOBILIARI","PATRONAT MUNICIPAL D'OCUPACIÓ"]
["FONT D'AIGUA","2007-12-31",500,0,500,"147 - MOBILIARI","PATRONAT MUNICIPAL D'OCUPACIÓ"]
["EXPOSITORS","2007-12-31",180,0,180,"147 - MOBILIARI","PATRONAT MUNICIPAL D'OCUPACIÓ"]
["SPLIT","2007-12-31",400,0,400,"147 - MOBILIARI","PATRONAT MUNICIPAL D'OCUPACIÓ"]
["PC","2007-12-31",700,0,700,"131 - EQUIPAMENTS DE PROCESSO D'INFORMACIÓ","PATRONAT MUNICIPAL D'OCUPACIÓ"]
["MONITOR","2007-12-31",90,0,90,"131 - EQUIPAMENTS DE PROCESSO D'INFORMACIÓ","PATRONAT MUNICIPAL D'OCUPACIÓ"]
["PC","2007-12-31",700,0,700,"131 - EQUIPAMENTS DE PROCESSO D'INFORMACIÓ","PATRONAT MUNICIPAL D'OCUPACIÓ"]
["MONITOR","2007-12-31",90,0,90,"131 - EQUIPAMENTS DE PROCESSO D'INFORMACIÓ","PATRONAT MUNICIPAL D'OCUPACIÓ"]
["PISSARRA","2007-12-31",2310,0,2310,"147 - MOBILIARI","PATRONAT MUNICIPAL D'OCUPACIÓ"]
["SPLIT","2007-12-31",400,0,400,"147 - MOBILIARI","PATRONAT MUNICIPAL D'OCUPACIÓ"]
["ARXIVADORS","2007-12-31",240,0,240,"147 - MOBILIARI","PATRONAT MUNICIPAL D'OCUPACIÓ"]
["PC","2007-12-31",700,0,700,"131 - EQUIPAMENTS DE PROCESSO D'INFORMACIÓ","PATRONAT MUNICIPAL D'OCUPACIÓ"]
["MONITOR","2007-12-31",90,0,90,"131 - EQUIPAMENTS DE PROCESSO D'INFORMACIÓ","PATRONAT MUNICIPAL D'OCUPACIÓ"]
["IMPRESSORA","2007-12-31",380,0,380,"131 - EQUIPAMENTS DE PROCESSO D'INFORMACIÓ","PATRONAT MUNICIPAL D'OCUPACIÓ"]
["PC","2007-12-31",700,0,700,"131 - EQUIPAMENTS DE PROCESSO D'INFORMACIÓ","PATRONAT MUNICIPAL D'OCUPACIÓ"]
["MONITOR","2007-12-31",90,0,90,"131 - EQUIPAMENTS DE PROCESSO D'INFORMACIÓ","PATRONAT MUNICIPAL D'OCUPACIÓ"]
["IMPRESSORA","2007-12-31",380,0,380,"131 - EQUIPAMENTS DE PROCESSO D'INFORMACIÓ","PATRONAT MUNICIPAL D'OCUPACIÓ"]
["PC","2007-12-31",700,0,700,"131 - EQUIPAMENTS DE PROCESSO D'INFORMACIÓ","PATRONAT MUNICIPAL D'OCUPACIÓ"]
["PC","2007-12-31",700,0,700,"131 - EQUIPAMENTS DE PROCESSO D'INFORMACIÓ","PATRONAT MUNICIPAL D'OCUPACIÓ"]
["PC","2007-12-31",700,0,700,"131 - EQUIPAMENTS DE PROCESSO D'INFORMACIÓ","PATRONAT MUNICIPAL D'OCUPACIÓ"]
["MONITOR","2007-12-31",90,0,90,"131 - EQUIPAMENTS DE PROCESSO D'INFORMACIÓ","PATRONAT MUNICIPAL D'OCUPACIÓ"]
["TELEVISOR","2007-12-31",800,0,800,"147 - MOBILIARI","PATRONAT MUNICIPAL D'OCUPACIÓ"]
["PC","2007-12-31",700,0,700,"131 - EQUIPAMENTS DE PROCESSO D'INFORMACIÓ","PATRONAT MUNICIPAL D'OCUPACIÓ"]
["MICROFON","2007-12-31",80,0,80,"147 - MOBILIARI","PATRONAT MUNICIPAL D'OCUPACIÓ"]
["PC","2007-12-31",700,0,700,"131 - EQUIPAMENTS DE PROCESSO D'INFORMACIÓ","PATRONAT MUNICIPAL D'OCUPACIÓ"]
["MONITOR","2007-12-31",90,0,90,"131 - EQUIPAMENTS DE PROCESSO D'INFORMACIÓ","PATRONAT MUNICIPAL D'OCUPACIÓ"]
["PC","2007-12-31",700,0,700,"131 - EQUIPAMENTS DE PROCESSO D'INFORMACIÓ","PATRONAT MUNICIPAL D'OCUPACIÓ"]
["MONITOR","2007-12-31",90,0,90,"131 - EQUIPAMENTS DE PROCESSO D'INFORMACIÓ","PATRONAT MUNICIPAL D'OCUPACIÓ"]
["PC","2007-12-31",700,0,700,"131 - EQUIPAMENTS DE PROCESSO D'INFORMACIÓ","PATRONAT MUNICIPAL D'OCUPACIÓ"]
["SPLIT","2007-12-31",400,0,400,"147 - MOBILIARI","PATRONAT MUNICIPAL D'OCUPACIÓ"]
["SPLIT","2007-12-31",400,0,400,"147 - MOBILIARI","PATRONAT MUNICIPAL D'OCUPACIÓ"]
["ESCALES","2007-12-31",390,0,390,"147 - MOBILIARI","PATRONAT MUNICIPAL D'OCUPACIÓ"]
["SPLIT","2007-12-31",400,0,400,"147 - MOBILIARI","PATRONAT MUNICIPAL D'OCUPACIÓ"]
["ENQUADERNADORA","2007-12-31",80,0,80,"147 - MOBILIARI","PATRONAT MUNICIPAL D'OCUPACIÓ"]
["IMPRESSORA","2007-12-31",380,0,380,"131 - EQUIPAMENTS DE PROCESSO D'INFORMACIÓ","PATRONAT MUNICIPAL D'OCUPACIÓ"]
["DESTRUCTORA DE DOCUMENTS","2007-12-31",180,0,180,"147 - MOBILIARI","PATRONAT MUNICIPAL D'OCUPACIÓ"]
["IMPRESSORA MULTIFUNCIO","2007-12-31",500,0,500,"131 - EQUIPAMENTS DE PROCESSO D'INFORMACIÓ","PATRONAT MUNICIPAL D'OCUPACIÓ"]
["AMPLIFICADOR","2007-12-31",300,0,300,"147 - MOBILIARI","PATRONAT MUNICIPAL D'OCUPACIÓ"]
["PLASTIFICADORA","2007-12-31",70,0,70,"147 - MOBILIARI","PATRONAT MUNICIPAL D'OCUPACIÓ"]
["GRAVADORA","2007-12-31",150,0,150,"147 - MOBILIARI","PATRONAT MUNICIPAL D'OCUPACIÓ"]
["ARMARIS RACK","2007-12-31",600,0,600,"147 - MOBILIARI","PATRONAT MUNICIPAL D'OCUPACIÓ"]
["SWITCH","2007-12-31",50,0,50,"131 - EQUIPAMENTS DE PROCESSO D'INFORMACIÓ","PATRONAT MUNICIPAL D'OCUPACIÓ"]
["SWITCH","2007-12-31",50,0,50,"131 - EQUIPAMENTS DE PROCESSO D'INFORMACIÓ","PATRONAT MUNICIPAL D'OCUPACIÓ"]
["SAI","2007-12-31",190,0,190,"147 - MOBILIARI","PATRONAT MUNICIPAL D'OCUPACIÓ"]
["SPLIT","2007-12-31",400,0,400,"147 - MOBILIARI","PATRONAT MUNICIPAL D'OCUPACIÓ"]
["PC","2007-12-31",700,0,700,"131 - EQUIPAMENTS DE PROCESSO D'INFORMACIÓ","PATRONAT MUNICIPAL D'OCUPACIÓ"]
["IMPRESSORA","2007-12-31",380,0,380,"131 - EQUIPAMENTS DE PROCESSO D'INFORMACIÓ","PATRONAT MUNICIPAL D'OCUPACIÓ"]
["IMPRESSORA","2007-12-31",380,0,380,"131 - EQUIPAMENTS DE PROCESSO D'INFORMACIÓ","PATRONAT MUNICIPAL D'OCUPACIÓ"]
["PC","2007-12-31",700,0,700,"131 - EQUIPAMENTS DE PROCESSO D'INFORMACIÓ","PATRONAT MUNICIPAL D'OCUPACIÓ"]
["SPLIT","2007-12-31",400,0,400,"147 - MOBILIARI","PATRONAT MUNICIPAL D'OCUPACIÓ"]
["SPLIT","2007-12-31",400,0,400,"147 - MOBILIARI","PATRONAT MUNICIPAL D'OCUPACIÓ"]
["IMPRESSORA MULTIFUNCIO","2007-12-31",500,0,500,"131 - EQUIPAMENTS DE PROCESSO D'INFORMACIÓ","PATRONAT MUNICIPAL D'OCUPACIÓ"]
["IMPRESSORA","2007-12-31",380,0,380,"131 - EQUIPAMENTS DE PROCESSO D'INFORMACIÓ","PATRONAT MUNICIPAL D'OCUPACIÓ"]
["CAFETERA","2007-12-31",100,0,100,"147 - MOBILIARI","PATRONAT MUNICIPAL D'OCUPACIÓ"]
["SPLIT","2007-12-31",400,0,400,"147 - MOBILIARI","PATRONAT MUNICIPAL D'OCUPACIÓ"]
["PC","2007-12-31",700,0,700,"131 - EQUIPAMENTS DE PROCESSO D'INFORMACIÓ","PATRONAT MUNICIPAL D'OCUPACIÓ"]
["DESTRUCTORA DE DOCUMENTS","2007-12-31",180,0,180,"147 - MOBILIARI","PATRONAT MUNICIPAL D'OCUPACIÓ"]
["IMPRESSORA","2007-12-31",380,0,380,"131 - EQUIPAMENTS DE PROCESSO D'INFORMACIÓ","PATRONAT MUNICIPAL D'OCUPACIÓ"]
["IMPRESSORA","2007-12-31",380,0,380,"131 - EQUIPAMENTS DE PROCESSO D'INFORMACIÓ","PATRONAT MUNICIPAL D'OCUPACIÓ"]
["ARMARIS RACK","2007-12-31",600,0,600,"147 - MOBILIARI","PATRONAT MUNICIPAL D'OCUPACIÓ"]
["SPLIT","2007-12-31",400,0,400,"147 - MOBILIARI","PATRONAT MUNICIPAL D'OCUPACIÓ"]
["SPLIT","2007-12-31",400,0,400,"147 - MOBILIARI","PATRONAT MUNICIPAL D'OCUPACIÓ"]
["PROJECTOR DIAPOSITIVES","2007-12-31",450,0,450,"147 - MOBILIARI","PATRONAT MUNICIPAL D'OCUPACIÓ"]
["TELEVISOR","2007-12-31",800,0,800,"147 - MOBILIARI","PATRONAT MUNICIPAL D'OCUPACIÓ"]
["REPRODUCTOR VHS","2007-12-31",30,0,30,"147 - MOBILIARI","PATRONAT MUNICIPAL D'OCUPACIÓ"]
["SPLIT","2007-12-31",400,0,400,"147 - MOBILIARI","PATRONAT MUNICIPAL D'OCUPACIÓ"]
["SPLIT","2007-12-31",400,0,400,"147 - MOBILIARI","PATRONAT MUNICIPAL D'OCUPACIÓ"]
["CISSALLA ","2007-12-31",360,0,360,"147 - MOBILIARI","PATRONAT MUNICIPAL D'OCUPACIÓ"]
["SPLIT","2007-12-31",400,0,400,"147 - MOBILIARI","PATRONAT MUNICIPAL D'OCUPACIÓ"]
["ORDINADOR PORTATIL","2007-12-31",600,0,600,"131 - EQUIPAMENTS DE PROCESSO D'INFORMACIÓ","PATRONAT MUNICIPAL D'OCUPACIÓ"]
["CANO PROJECTOR","2007-12-31",800,0,800,"147 - MOBILIARI","PATRONAT MUNICIPAL D'OCUPACIÓ"]
["PC","2007-12-31",700,0,700,"131 - EQUIPAMENTS DE PROCESSO D'INFORMACIÓ","PATRONAT MUNICIPAL D'OCUPACIÓ"]
["MONITOR","2007-12-31",90,0,90,"131 - EQUIPAMENTS DE PROCESSO D'INFORMACIÓ","PATRONAT MUNICIPAL D'OCUPACIÓ"]
["SPLIT","2007-12-31",400,0,400,"147 - MOBILIARI","PATRONAT MUNICIPAL D'OCUPACIÓ"]
["SPLIT","2007-12-31",400,0,400,"147 - MOBILIARI","PATRONAT MUNICIPAL D'OCUPACIÓ"]
["SPLIT","2007-12-31",400,0,400,"147 - MOBILIARI","PATRONAT MUNICIPAL D'OCUPACIÓ"]
["CONJUNT BANDERES","2007-12-31",100,0,100,"147 - MOBILIARI","PATRONAT MUNICIPAL D'OCUPACIÓ"]
["ORDINADOR PORTATIL","2007-12-31",600,0,600,"131 - EQUIPAMENTS DE PROCESSO D'INFORMACIÓ","PATRONAT MUNICIPAL D'OCUPACIÓ"]
["ORDINADOR PORTATIL","2007-12-31",600,0,600,"131 - EQUIPAMENTS DE PROCESSO D'INFORMACIÓ","PATRONAT MUNICIPAL D'OCUPACIÓ"]
["SPLIT","2007-12-31",400,0,400,"147 - MOBILIARI","PATRONAT MUNICIPAL D'OCUPACIÓ"]
["PANTALLA DE PROJECCIÓ","2007-12-31",90,0,90,"147 - MOBILIARI","PATRONAT MUNICIPAL D'OCUPACIÓ"]
["SWITCH","2007-12-31",50,0,50,"131 - EQUIPAMENTS DE PROCESSO D'INFORMACIÓ","PATRONAT MUNICIPAL D'OCUPACIÓ"]
["MONITOR","2007-12-31",90,0,90,"131 - EQUIPAMENTS DE PROCESSO D'INFORMACIÓ","PATRONAT MUNICIPAL D'OCUPACIÓ"]
["PC","2007-12-31",700,0,700,"131 - EQUIPAMENTS DE PROCESSO D'INFORMACIÓ","PATRONAT MUNICIPAL D'OCUPACIÓ"]
["MONITOR","2007-12-31",90,0,90,"131 - EQUIPAMENTS DE PROCESSO D'INFORMACIÓ","PATRONAT MUNICIPAL D'OCUPACIÓ"]
["PC","2007-12-31",700,0,700,"131 - EQUIPAMENTS DE PROCESSO D'INFORMACIÓ","PATRONAT MUNICIPAL D'OCUPACIÓ"]
["MONITOR","2007-12-31",90,0,90,"131 - EQUIPAMENTS DE PROCESSO D'INFORMACIÓ","PATRONAT MUNICIPAL D'OCUPACIÓ"]
["PC","2007-12-31",700,0,700,"131 - EQUIPAMENTS DE PROCESSO D'INFORMACIÓ","PATRONAT MUNICIPAL D'OCUPACIÓ"]
["MONITOR","2007-12-31",90,0,90,"131 - EQUIPAMENTS DE PROCESSO D'INFORMACIÓ","PATRONAT MUNICIPAL D'OCUPACIÓ"]
["PC","2007-12-31",700,0,700,"131 - EQUIPAMENTS DE PROCESSO D'INFORMACIÓ","PATRONAT MUNICIPAL D'OCUPACIÓ"]
["MONITOR","2007-12-31",90,0,90,"131 - EQUIPAMENTS DE PROCESSO D'INFORMACIÓ","PATRONAT MUNICIPAL D'OCUPACIÓ"]
["PC","2007-12-31",700,0,700,"131 - EQUIPAMENTS DE PROCESSO D'INFORMACIÓ","PATRONAT MUNICIPAL D'OCUPACIÓ"]
["MONITOR","2007-12-31",90,0,90,"131 - EQUIPAMENTS DE PROCESSO D'INFORMACIÓ","PATRONAT MUNICIPAL D'OCUPACIÓ"]
["PC","2007-12-31",700,0,700,"131 - EQUIPAMENTS DE PROCESSO D'INFORMACIÓ","PATRONAT MUNICIPAL D'OCUPACIÓ"]
["MONITOR","2007-12-31",90,0,90,"131 - EQUIPAMENTS DE PROCESSO D'INFORMACIÓ","PATRONAT MUNICIPAL D'OCUPACIÓ"]
["PC","2007-12-31",700,0,700,"131 - EQUIPAMENTS DE PROCESSO D'INFORMACIÓ","PATRONAT MUNICIPAL D'OCUPACIÓ"]
["MONITOR","2007-12-31",90,0,90,"131 - EQUIPAMENTS DE PROCESSO D'INFORMACIÓ","PATRONAT MUNICIPAL D'OCUPACIÓ"]
["PC","2007-12-31",700,0,700,"131 - EQUIPAMENTS DE PROCESSO D'INFORMACIÓ","PATRONAT MUNICIPAL D'OCUPACIÓ"]
["MONITOR","2007-12-31",90,0,90,"131 - EQUIPAMENTS DE PROCESSO D'INFORMACIÓ","PATRONAT MUNICIPAL D'OCUPACIÓ"]
["PC","2007-12-31",700,0,700,"131 - EQUIPAMENTS DE PROCESSO D'INFORMACIÓ","PATRONAT MUNICIPAL D'OCUPACIÓ"]
["MONITOR","2007-12-31",90,0,90,"131 - EQUIPAMENTS DE PROCESSO D'INFORMACIÓ","PATRONAT MUNICIPAL D'OCUPACIÓ"]
["PC","2007-12-31",700,0,700,"131 - EQUIPAMENTS DE PROCESSO D'INFORMACIÓ","PATRONAT MUNICIPAL D'OCUPACIÓ"]
["MONITOR","2007-12-31",90,0,90,"131 - EQUIPAMENTS DE PROCESSO D'INFORMACIÓ","PATRONAT MUNICIPAL D'OCUPACIÓ"]
["PC","2007-12-31",700,0,700,"131 - EQUIPAMENTS DE PROCESSO D'INFORMACIÓ","PATRONAT MUNICIPAL D'OCUPACIÓ"]
["MONITOR","2007-12-31",90,0,90,"131 - EQUIPAMENTS DE PROCESSO D'INFORMACIÓ","PATRONAT MUNICIPAL D'OCUPACIÓ"]
["PC","2007-12-31",700,0,700,"131 - EQUIPAMENTS DE PROCESSO D'INFORMACIÓ","PATRONAT MUNICIPAL D'OCUPACIÓ"]
["MONITOR","2007-12-31",90,0,90,"131 - EQUIPAMENTS DE PROCESSO D'INFORMACIÓ","PATRONAT MUNICIPAL D'OCUPACIÓ"]
["PC","2007-12-31",700,0,700,"131 - EQUIPAMENTS DE PROCESSO D'INFORMACIÓ","PATRONAT MUNICIPAL D'OCUPACIÓ"]
["MONITOR","2007-12-31",90,0,90,"131 - EQUIPAMENTS DE PROCESSO D'INFORMACIÓ","PATRONAT MUNICIPAL D'OCUPACIÓ"]
["PC","2007-12-31",700,0,700,"131 - EQUIPAMENTS DE PROCESSO D'INFORMACIÓ","PATRONAT MUNICIPAL D'OCUPACIÓ"]
["MONITOR","2007-12-31",90,0,90,"131 - EQUIPAMENTS DE PROCESSO D'INFORMACIÓ","PATRONAT MUNICIPAL D'OCUPACIÓ"]
["PC","2007-12-31",700,0,700,"131 - EQUIPAMENTS DE PROCESSO D'INFORMACIÓ","PATRONAT MUNICIPAL D'OCUPACIÓ"]
["MONITOR","2007-12-31",90,0,90,"131 - EQUIPAMENTS DE PROCESSO D'INFORMACIÓ","PATRONAT MUNICIPAL D'OCUPACIÓ"]
["PC","2007-12-31",700,0,700,"131 - EQUIPAMENTS DE PROCESSO D'INFORMACIÓ","PATRONAT MUNICIPAL D'OCUPACIÓ"]
["MONITOR","2007-12-31",90,0,90,"131 - EQUIPAMENTS DE PROCESSO D'INFORMACIÓ","PATRONAT MUNICIPAL D'OCUPACIÓ"]
["PC","2007-12-31",700,0,700,"131 - EQUIPAMENTS DE PROCESSO D'INFORMACIÓ","PATRONAT MUNICIPAL D'OCUPACIÓ"]
["MONITOR","2007-12-31",90,0,90,"131 - EQUIPAMENTS DE PROCESSO D'INFORMACIÓ","PATRONAT MUNICIPAL D'OCUPACIÓ"]
["PC","2007-12-31",700,0,700,"131 - EQUIPAMENTS DE PROCESSO D'INFORMACIÓ","PATRONAT MUNICIPAL D'OCUPACIÓ"]
["MONITOR","2007-12-31",90,0,90,"131 - EQUIPAMENTS DE PROCESSO D'INFORMACIÓ","PATRONAT MUNICIPAL D'OCUPACIÓ"]
["PC","2007-12-31",700,0,700,"131 - EQUIPAMENTS DE PROCESSO D'INFORMACIÓ","PATRONAT MUNICIPAL D'OCUPACIÓ"]
["IMPRESSORA ","2007-12-31",380,0,380,"131 - EQUIPAMENTS DE PROCESSO D'INFORMACIÓ","PATRONAT MUNICIPAL D'OCUPACIÓ"]
["SPLIT","2007-12-31",400,0,400,"147 - MOBILIARI","PATRONAT MUNICIPAL D'OCUPACIÓ"]
["SPLIT","2007-12-31",400,0,400,"147 - MOBILIARI","PATRONAT MUNICIPAL D'OCUPACIÓ"]
["SPLIT","2007-12-31",400,0,400,"147 - MOBILIARI","PATRONAT MUNICIPAL D'OCUPACIÓ"]
["SPLIT","2007-12-31",400,0,400,"147 - MOBILIARI","PATRONAT MUNICIPAL D'OCUPACIÓ"]
["MONITOR","2007-12-31",90,0,90,"131 - EQUIPAMENTS DE PROCESSO D'INFORMACIÓ","PATRONAT MUNICIPAL D'OCUPACIÓ"]
["PC","2007-12-31",700,0,700,"131 - EQUIPAMENTS DE PROCESSO D'INFORMACIÓ","PATRONAT MUNICIPAL D'OCUPACIÓ"]
["MONITOR","2007-12-31",90,0,90,"131 - EQUIPAMENTS DE PROCESSO D'INFORMACIÓ","PATRONAT MUNICIPAL D'OCUPACIÓ"]
["PC","2007-12-31",700,0,700,"131 - EQUIPAMENTS DE PROCESSO D'INFORMACIÓ","PATRONAT MUNICIPAL D'OCUPACIÓ"]
["DESTRUCTORA DE DOCUMENTS","2007-12-31",180,0,180,"147 - MOBILIARI","PATRONAT MUNICIPAL D'OCUPACIÓ"]
["MONITOR","2007-12-31",90,0,90,"131 - EQUIPAMENTS DE PROCESSO D'INFORMACIÓ","PATRONAT MUNICIPAL D'OCUPACIÓ"]
["PC","2007-12-31",700,0,700,"131 - EQUIPAMENTS DE PROCESSO D'INFORMACIÓ","PATRONAT MUNICIPAL D'OCUPACIÓ"]
["ESCANER","2007-12-31",150,0,150,"131 - EQUIPAMENTS DE PROCESSO D'INFORMACIÓ","PATRONAT MUNICIPAL D'OCUPACIÓ"]
["MONITOR","2007-12-31",90,0,90,"131 - EQUIPAMENTS DE PROCESSO D'INFORMACIÓ","PATRONAT MUNICIPAL D'OCUPACIÓ"]
["PC","2007-12-31",700,0,700,"131 - EQUIPAMENTS DE PROCESSO D'INFORMACIÓ","PATRONAT MUNICIPAL D'OCUPACIÓ"]
["PC","2007-12-31",700,0,700,"131 - EQUIPAMENTS DE PROCESSO D'INFORMACIÓ","PATRONAT MUNICIPAL D'OCUPACIÓ"]
["FORN","2007-12-31",250,0,250,"147 - MOBILIARI","PATRONAT MUNICIPAL D'OCUPACIÓ"]
["RENTAPLATS","2007-12-31",300,0,300,"147 - MOBILIARI","PATRONAT MUNICIPAL D'OCUPACIÓ"]
["FORN","2007-12-31",250,0,250,"147 - MOBILIARI","PATRONAT MUNICIPAL D'OCUPACIÓ"]
["MICROONES","2007-12-31",70,0,70,"147 - MOBILIARI","PATRONAT MUNICIPAL D'OCUPACIÓ"]
["MICROONES","2007-12-31",70,0,70,"147 - MOBILIARI","PATRONAT MUNICIPAL D'OCUPACIÓ"]
["NEVERA","2007-12-31",400,0,400,"147 - MOBILIARI","PATRONAT MUNICIPAL D'OCUPACIÓ"]
["SPLIT","2007-12-31",400,0,400,"147 - MOBILIARI","PATRONAT MUNICIPAL D'OCUPACIÓ"]
["CUINA","2007-12-31",450,0,450,"147 - MOBILIARI","PATRONAT MUNICIPAL D'OCUPACIÓ"]
["TELEVISOR","2007-12-31",800,0,800,"147 - MOBILIARI","PATRONAT MUNICIPAL D'OCUPACIÓ"]
["SPLIT","2007-12-31",400,0,400,"147 - MOBILIARI","PATRONAT MUNICIPAL D'OCUPACIÓ"]
["RENTACAPS DE PERRUQUERIA","2007-12-31",900,0,900,"147 - MOBILIARI","PATRONAT MUNICIPAL D'OCUPACIÓ"]
["CAMILLA","2007-12-31",4500,0,4500,"147 - MOBILIARI","PATRONAT MUNICIPAL D'OCUPACIÓ"]
["SPLIT","2007-12-31",400,0,400,"147 - MOBILIARI","PATRONAT MUNICIPAL D'OCUPACIÓ"]
["MIRALLS","2007-12-31",320,0,320,"147 - MOBILIARI","PATRONAT MUNICIPAL D'OCUPACIÓ"]
["SECADOR DE PEU","2007-12-31",300,0,300,"147 - MOBILIARI","PATRONAT MUNICIPAL D'OCUPACIÓ"]
["CALENTADOR DE CERA","2007-12-31",70,0,70,"147 - MOBILIARI","PATRONAT MUNICIPAL D'OCUPACIÓ"]
["SECADOR DE PEU","2007-12-31",300,0,300,"147 - MOBILIARI","PATRONAT MUNICIPAL D'OCUPACIÓ"]
["TELEVISOR","2007-12-31",800,0,800,"147 - MOBILIARI","PATRONAT MUNICIPAL D'OCUPACIÓ"]
["SPLIT","2007-12-31",400,0,400,"147 - MOBILIARI","PATRONAT MUNICIPAL D'OCUPACIÓ"]
["SPLIT","2007-12-31",400,0,400,"147 - MOBILIARI","PATRONAT MUNICIPAL D'OCUPACIÓ"]
[null,"TOTAL:",{"$f":"SUM(C2:C166)","v":1887325.8574999999},{"$f":"SUM(D2:D166)","v":69675.450000000012},{"$f":"SUM(E2:E166)","v":1957001.3074999999}]